Workbook

Sheet NetWorth
B1: Financial Planning Worksheet | D1: Page 1
B2: Actual | C2: Projected | D2: Remarks | I2: Years | J2: BAH Status | K2: FSGLI | L2: SGLI | M2: MGIB | N2: Paygrade | P2: PayGrade
A3: Name | D3: =TODAY() -> 2019-07-11 | O3: Yes
A4: Age (Required for TSP Calculator) | D4: Age required for dual military FSLGI | I4: <2 | J4: With Dependents | K4: 0 | L4: 0 | M4: 0 | N4: E1 | O4: No | P4: E1
A5: Paygrade (E1, W2, etc) (Select from menu) | I5: 2 | J5: Single | K5: 10000 | L5: 50000 | M5: 100 | N5: E2 | P5: E2
A6: Years in Service (Select from menu) | I6: 3 | J6: Gov't Qtrs | K6: 20000 | L6: 100000 | N6: E3 | P6: E3
A7: Date Reported (Actual) / PRD (Projected) | I7: 4 | J7: Partial | K7: 30000 | L7: 150000 | N7: E4 | P7: E4
A8: BAH Status (Select from menu) | B8: With Dependents | C8: With Dependents | I8: 6 | J8: Differential | K8: 40000 | L8: 200000 | N8: E5 | P8: E5
A9: Spouse's Name | I9: 8 | K9: 50000 | L9: 250000 | N9: E6 | P9: E6
A10: Spouse's Age (Required for FSGLI) | I10: 10 | K10: 60000 | L10: 300000 | N10: E7 | P10: E7
A11: Spouse's Place of Employment | I11: 12 | K11: 70000 | L11: 350000 | N11: E8 | P11: E8
A12: Children/Ages (Living/w = Act/Away = Proj) | I12: 14 | K12: 80000 | L12: 400000 | N12: E9 | P12: E9
A13: BAH Zipcode (5 digits) | D13: =IF(ISERROR("Actual Zip "&F13&" / Projected Zip "&G13),0,"Actual Zip "&F13&" / Projected Zip "&G13) -> 0 | F13: =VALUE(RIGHT(B13,5)) ->  | G13: =VALUE(RIGHT(C13,5)) ->  | I13: 16 | K13: 90000 | N13: W1 | P13: W1
A14: Work Telephone | I14: 18 | K14: 100000 | N14: W2 | P14: W2
A15: Home/Cell Telephone | I15: 20 | N15: W3 | P15: W3
A16: Command & Referred By (Self, Cmd,etc) | I16: 22 | N16: W4 | P16: W4
A17: Amount of FSGLI Elected (Select from menu) | I17: 24 | N17: W5 | P17: W5
A18: Amount of SGLI Elected (Select from menu) | I18: 26 | N18: O1 | P18: O1
A19: TSP Basepay Contribution (Enter %) | I19: 30 | N19: O1E | P19: O1E
A20: TSP Bonus/Incentive/Special Pay | I20: 34 | N20: O2 | P20: O2
A21: Roth TSP Basepay Contribution (Enter %) | I21: 38 | N21: O2E | P21: O2E
A22: Roth TSP Bonus/Incentive/Special Pay | N22: O3 | P22: O3
A23: MGIB Monthly Contribution (Select from menu) | N23: O3E | P23: O3E
A24: Statement of Net Worth | N24: O4 | P24: O4
A25: Assets | C25: Liabilities | D25: From Indebt Page | N25: O5 | P25: O5
A26: Cash (On Hand) | C26: Signature Loans | D26: =SUMIF(Purps,"Signature",DebtTotal) -> 0 | N26: O6 | P26: O6
A27: Checking Accounts | C27: Auto Loans or Lease | D27: =SUMIF(Purps,"Auto Loan/Lease",DebtTotal) -> 0 | N27: O7 | P27: O7
A28: Saving Accounts | C28: Consolidation Loans | D28: =SUMIF(Purps,"Consolidation",DebtTotal) -> 0 | N28: O8 | P28: O8
A29: Certificates of Deposits | C29: Student Loans | D29: =SUMIF(Purps,"Student",DebtTotal) -> 0 | N29: O9 | P29: O9
A30: Cash value of life insurance (Not SGLI/FSGLI) | C30: NEX/AAFES (Star Card) | D30: =SUMIF(Purps,"Star Card",DebtTotal) -> 0 | N30: O10 | P30: O10
A31: U.S. Savings Bonds | C31: Dept Store Credit Cards | D31: =SUMIF(Purps,"Dept Store",DebtTotal) -> 0 | P31: E2 1 Drill
A32: Mutual Funds/Money Market | C32: Other Credit Cards | D32: =SUMIF(Purps,"Visa Card",DebtTotal)+SUMIF(Purps,"Major CreditCard",DebtTotal)+SUMIF(Purps,"MasterCard",DebtTotal) -> 0 | P32: E2 4 Drills
A33: Stocks/Bonds | C33: NMCRS (Loan) | D33: =SUMIF(Purps,"NMCRS",DebtTotal) -> 0 | P33: E3 1 Drill
A34: College Funds | C34: Other (Friends, Relatives, etc.) | D34: =SUMIF(Purps,"Other",DebtTotal) -> 0 | P34: E3 4 Drills
A35: 401(k)/403(b)/IRA etc. | C35: Advance/Over Payments | D35: =SUMIF(Purps,"Advance Pmts",DebtTotal)+SUMIF(Purps,"Over Payments",DebtTotal) -> 0 | P35: E4 1 Drill
A36: TSP Balance (Starting balance for Estimator) | B36: 0 | P36: E4 4 Drills
A37: Roth TSP (Starting balance for Estimator) | B37: 0 | P37: E5 1 Drill
A38: Real Estate (Market Value) | C38: Mortgages-Balance Due | P38: E5 4 Drills
A39: Home (look up value) | C39: Home | P39: E6 1 Drill
A40: Rental Property (look up value) | C40: Rental Property | P40: E6 4 Drills
A41: Other (Vac Hm/Trailer/Time Share) | C41: Other (Vac Hm/Trailer/Time Share) | P41: E7 1 Drill
A42: Personal Property | P42: E7 4 Drills
A43: Vehicles/Motorcycles/Boats (look up value) | P43: E8 1 Drill
A44: Furniture/Personal Belongings | C44: Estimate $1000/Room | P44: E8 4 Drills
A45: Jewelry | P45: E9 1 Drill
A46: Other (Collectibles, etc.) | P46: E9 4 Drills
A47: Total Assets | B47: =SUM(B26:B46)+SUM('2nd Active'!H26:H27) -> 0 | C47: Total Liabilities | D47: =SUM(D26:D46) -> 0 | P47: W1 1 Drill
P48: W1 4 Drills
P49: W2 1 Drill
A50: Net Worth | B50: =SUM(B47-D47) -> 0 | P50: W2 4 Drills
P51: W3 1 Drill
A52: Counseling Provided By: | P52: W3 4 Drills
P53: W4 1 Drill
A54: Counselor Phone #: | P54: W4 4 Drills
P55: W5 1 Drill
P56: W5 4 Drills
P57: O1E 1 Drill
P58: O1E 4 Drills
P59: O2E 1 Drill
P60: O2E 4 Drills
P61: O3E 1 Drill
P62: O3E 4 Drills
P63: O1 1 Drill
P64: O1 4 Drills
P65: O2 1 Drill
P66: O2 4 Drills
P67: O3 1 Drill
P68: O3 4 Drills
P69: O4 1 Drill
P70: O4 4 Drills
P71: O5 1 Drill
P72: O5 4 Drills
P73: O6 1 Drill
P74: O6 4 Drills
P75: O7 1 Drill
P76: O7 4 Drills

Sheet Income
D1: Monthly Income | H1: Page 2
A2: Entitlements | D2: Actual | F2: Projected | H2: Remarks | P2: Sea | Q2: Sub
A3: Base Pay | D3: =IF(ISERROR(VLOOKUP(APG,BASEPAY,IF(AYR="<2",2,AYR+1),FALSE)),0,(VLOOKUP(APG,BASEPAY,IF(AYR="<2",2,AYR+1),FALSE))) -> 0 | F3: =IF(ISERROR(VLOOKUP(PPG,BASEPAY,IF(PYR="<2",2,PYR+1),FALSE)),0,(VLOOKUP(PPG,BASEPAY,IF(PYR="<2",2,PYR+1),FALSE))) -> 0 | L3: None | M3: With Dependents | N3: Yes | O3: 0 | P3: None | Q3: None
A4: Basic Allowance for Housing (Select from menu of NetWorth) | D4: =IF(ISERROR(VLOOKUP(APG,ABAH,IF(LEFT(E4,1)="W",2,IF(LEFT(E4,1)="S",3,IF(LEFT(E4,1)="P",4,IF(LEFT(E4,1)="D",5,0)))),FALSE)),0,VLOOKUP(APG,ABAH,IF(LEFT(E4,1)="W",2,IF(LEFT(E4,1)="S",3,IF(LEFT(E4,1)="P",4,IF(LEFT(E4,1)="D",5,0)))),FALSE)) -> 0 | E4: =NetWorth!B8 -> With Dependents | F4: =IF(ISERROR(VLOOKUP(PPG,PBAH,IF(LEFT(G4,1)="W",2,IF(LEFT(G4,1)="S",3,IF(LEFT(G4,1)="P",4,IF(LEFT(G4,1)="D",5,0)))),FALSE)),0,VLOOKUP(PPG,PBAH,IF(LEFT(G4,1)="W",2,IF(LEFT(G4,1)="S",3,IF(LEFT(G4,1)="P",4,IF(LEFT(G4,1)="D",5,0)))),FALSE)) -> 0 | G4: =NetWorth!C8 -> With Dependents | L4: Standard | M4: Single | N4: No | O4: 1 | P4: 0 | Q4: <2
A5: Overseas Housing Allowance (OHA) | F5: 0 | L5: Partial | M5: Gov't Qtrs | O5: 2 | P5: 1 | Q5: 2
A6: Basic Allowance for Subsistence (BAS) (Select from menu) | D6: =IF(OR(LEFT(APG,1)="W",LEFT(APG,1)="O"),OFFICER,IF(LEFT(E6,1)="N",0,STANDARD)) -> 369.39 | E6: Standard | F6: =IF(OR(LEFT(PPG,1)="W",LEFT(PPG,1)="O"),OFFICER,IF(LEFT(G6,1)="N",0,STANDARD)) -> 369.39 | G6: Standard | L6: Rations not Avail | M6: Partial | O6: 3 | P6: 2 | Q6: 3
A7: Family Separation Allowance (FSA) (Select Yes or No) | D7: =IF(E7="Yes",FSA,0) -> 0 | E7: No | F7: =IF(G7="Yes",FSA,0) -> 0 | G7: No | M7: Differential | O7: 4 | P7: 3 | Q7: 4
A8: Flight Pay/Diving Pay/Flight Deck Pay | D8: 0 | F8: 0 | O8: 5 | P8: 4 | Q8: 6
A9: Submarine Pay (None or select qualified years) | D9: =IF(E9<>"None",VLOOKUP(APG,SUBPAY,IF(E9="<2",2,E9+1),FALSE),0) -> 0 | E9: None | F9: =IF(G9<>"None",VLOOKUP(PPG,SUBPAY,IF(G9="<2",2,G9+1),FALSE),0) -> 0 | G9: None | L9: Single | M9: Single | O9: 6 | P9: 5 | Q9: 8
A10: Other Hazardous Duty Pay | D10: 0 | F10: 0 | L10: Married | M10: Family | O10: 7 | P10: 6 | Q10: 10
A11: Sea Pay (None or select qualified years) | D11: =IF(E11<>"None",VLOOKUP(APG,SEAPAY,E11+2,FALSE),0) -> 0 | E11: None | F11: =IF(G11<>"None",VLOOKUP(PPG,SEAPAY,G11+2,FALSE),0) -> 0 | G11: None | L11: Exempt | M11: None | O11: 8 | P11: 7 | Q11: 12
A12: Taxable COLA | D12: 0 | F12: 0 | O12: 9 | P12: 8 | Q12: 14
A13: Other (tax exempt/allowance eg. COLA/FSSA) | D13: 0 | F13: 0 | O13: 10 | P13: 9 | Q13: 16
A14: Total Military Compensation (A) | D14: =SUM(D3:D13) -> 369.39 | F14: =SUM(F3:F13) -> 369.39 | P14: 10 | Q14: 18
A15: Taxable pay (Excludes PreTax for TSP/MGIB) | D15: =D14-D4-D5-D6-D7-D13-D26-D28 -> 0 | F15: =F14-F4-F5-F6-F7-F13-F26-F28 -> 0 | P15: 11 | Q15: 20
A16: Deductions: (Use CheckBox to include allotment in Spending Plan) | H16: Allotments must ALSO go somewhere else. | L16: Allotment Formulas | P16: 12 | Q16: 22
A17: Allotment (a) (Use remarks for description and end date) | D17: 0 | F17: 0 | L17: =IF(M17=TRUE,$D$17,0) -> 0 | M17: FALSE | N17: =IF(O17=TRUE,$F$17,0) -> 0 | O17: FALSE | P17: 13 | Q17: 24
A18: Allotment (b) | D18: 0 | F18: 0 | L18: =IF(M18=TRUE,$D$18,0) -> 0 | M18: FALSE | N18: =IF(O18=TRUE,$F$18,0) -> 0 | O18: FALSE | P18: 14 | Q18: 26
A19: Allotment (c) | D19: 0 | F19: 0 | L19: =IF(M19=TRUE,$D$19,0) -> 0 | M19: FALSE | N19: =IF(O19=TRUE,$F$19,0) -> 0 | O19: FALSE | P19: 16 | Q19: 30
A20: Allotment (d) | D20: 0 | F20: 0 | L20: =IF(M20=TRUE,$D$20,0) -> 0 | M20: FALSE | N20: =IF(O20=TRUE,$F$20,0) -> 0 | O20: FALSE | P20: 18 | Q20: 34
A21: Allotment (e) | D21: 0 | F21: 0 | L21: =IF(M21=TRUE,$D$21,0) -> 0 | M21: FALSE | N21: =IF(O21=TRUE,$F$21,0) -> 0 | O21: FALSE | P21: 20 | Q21: 38
A22: Allotment (f ) | D22: 0 | F22: 0 | L22: =IF(M22=TRUE,$D$22,0) -> 0 | M22: FALSE | N22: =IF(O22=TRUE,$F$22,0) -> 0 | O22: FALSE | P22: 22
A23: Meal Collection Deduction | D23: 0 | F23: 0 | L23: =SUM(L17:L22) -> 0 | N23: =SUM(N17:N22) -> 0 | P23: 24
A24: Family SGLI (For Spouses) (From NetWorth) | D24: =FSGLI(NetWorth!B10,NetWorth!B17) -> 0 | F24: =FSGLI(NetWorth!C10,NetWorth!C17) -> 0 | P24: 26
A25: Servicemen's Group Life Insurance (SGLI) (From NetWorth) | D25: =IF(APG="",0,IF(ASGLI="0",0,NetWorth!$B$18/1000*FACTOR)+1) -> 0 | F25: =IF(PPG="",0,IF(PSGLI="0",0,NetWorth!$C$18/1000*FACTOR)+1) -> 0 | P25: 28
A26: Uniform Services TSP (From NetWorth) | D26: =ROUND(D3*NetWorth!B19,2)+NetWorth!B20 -> 0 | F26: =ROUND(F3*NetWorth!C19,2)+NetWorth!C20 -> 0 | P26: 30
A27: Uniform Services Roth TSP (From NetWorth) | D27: =ROUND(D3*NetWorth!B21,2)+NetWorth!B22 -> 0 | F27: =ROUND(F3*NetWorth!C21,2)+NetWorth!C22 -> 0 | L27: Actual Status | M27: Exemptions | N27: Projected Status | O27: Exemptions | P27: 34
A28: MGIB (From NetWorth) | D28: =VALUE(NetWorth!B23) -> 0 | F28: =VALUE(NetWorth!C23) -> 0 | H28: =F29-D29 -> 0 | L28: =B29 -> Married | M28: =C29 -> 1 | N28: =I29 -> Married | O28: =J29 -> 1 | P28: 38
A29: FITW Filing Status Actual: | B29: Married | C29: 1 | D29: =afitw(D15,L28,M28) -> 0 | F29: =afitw(F15, N28,O28) -> 0 | H29: Proj Status: | I29: Married | J29: 1
A30: FICA (Social Security) (Base Pay only Excludes MGIB) | D30: =ROUND((D3-D28)*0.062,2) -> 0 | F30: =ROUND((F3-F28)*0.062,2) -> 0
A31: FICA (Medicare) (Base Pay only Excludes MGIB) | D31: =ROUND((D3-D28)*0.0145,2) -> 0 | F31: =ROUND((F3-F28)*0.0145,2) -> 0
A32: State Income Tax (Use Remarks to indicate State) | D32: 0 | F32: 0
A33: AFRH (Armed Forces Retirement Home) | D33: =IF(OR(LEFT(APG,1)="E",LEFT(APG,1)="W",RIGHT(APG,1)="E"),AFRH,0) -> 0 | F33: =IF(OR(LEFT(PPG,1)="E",LEFT(PPG,1)="W",RIGHT(PPG,1)="E"),AFRH,0) -> 0
A34: Tricare Dental Plan (TDP) (Select None, Single or Family) | D34: =IF(E34="None",0,IF(E34="Single",IF(TODAY()>=43220,SINGDENTFEB,SINGDENT),IF(E34="Family",IF(TODAY()>=43220,FAMDENTFEB,FAMDENT),0))) -> 0 | E34: None | F34: =IF(G34="None",0,IF(G34="Single",IF(TODAY()>=43220,SINGDENTFEB,SINGDENT),IF(G34="Family",IF(TODAY()>=43220,FAMDENTFEB,FAMDENT),0))) -> 0 | G34: None | H34: ="Actual = "&E34&" / Projected = "&G34 -> Actual = None / Projected = None
A35: Advance Payments (Use Remarks to indicate end Date) | D35: 0 | F35: 0
A36: Over Payments (Use Remarks to indicate end Date) | D36: 0 | F36: 0
A37: Total Deductions (B) | D37: =SUM(D17:D36) -> 0 | F37: =SUM(F17:F36) -> 0
A38: Calculate Net Income
A39: Servicemember's Take Home Pay (A-B) | D39: =D14-D37 -> 369.39 | F39: =F14-F37 -> 369.39 | H39: ="Actual $"&ROUND(D39/2,2)&"/ Projected $"&ROUND(F39/2,2) -> Actual $184.7/ Projected $184.7
A40: Spouse's Earnings (less taxes) (From 2nd Income) | D40: ='2ndIncome'!D29 -> 0 | F40: ='2ndIncome'!F29 -> 0 | H40: Enter monthly income or
A41: Member's 2nd Income (less taxes) (From 2nd Income) | D41: ='2ndIncome'!D59 -> 0 | F41: ='2ndIncome'!F59 -> 0 | H41: use 2nd Income page.
A42: =A17 -> Allotment (a) (Use remarks for description and end date) | D42: 0 | F42: =F17 -> 0
A43: Allotment (b) | D43: 0 | F43: 0
A44: Allotment (c) | D44: 0 | F44: 0
A45: Allotment (d) | D45: 0 | F45: 0
A46: Allotment (e) | D46: 0 | F46: 0
A47: Allotment (f ) | D47: 0 | F47: 0
A48: Meal Collection Deduction | D48: =D23 -> 0 | F48: 0
A49: Family SGLI (For Spouses) | D49: 0 | F49: 0
A50: Servicemen's Group Life Insurance (SGLI) | D50: 0 | F50: 0
A51: Uniform Services TSP | D51: 0 | F51: 0
A52: Uniform Services Roth TSP | D52: 0 | F52: 0
A53: MGIB | D53: 0 | F53: 0
A54: Tricare Dental Plan (TDP) | D54: =D34 -> 0 | F54: =F34 -> 0
A55: Advance Payments | D55: =D35 -> 0 | F55: =F35 -> 0
A56: Over Payments | D56: =D36 -> 0 | F56: =F36 -> 0
A57: Child Support/Alimony (Received Income) | D57: 0 | F57: 0
A58: Other Income (e.g. SSI, Rental Income, VA Disability) | D58: 0 | F58: 0
A59: Total Net Monthly Income | D59: =SUM(D39:D58) -> 369.39 | F59: =SUM(F39:F58) -> 369.39
A60: =IF(OR('2nd Active'!D57>0,'2nd Active'!F57>0),"Dual Military Total Net Monthly Income","") ->  | D60: =IF('2nd Active'!D57>0,D59+'2nd Active'!D57,"") ->  | F60: =IF('2nd Active'!F57>0,F59+'2nd Active'!F57,"") -> 

Sheet 2nd Active
D1: Monthly Income | H1: Page 2B | L1: =B3 -> 0 | M1: =C3 -> 0 | N1: =H3 -> 0 | O1: =I3 -> 0 | P1: =H4 -> 0 | Q1: =H4 -> 0 | U1: =I24 -> 0 | V1: =I25 -> 0
A2: Entitlements | D2: Actual | F2: Projected | H2: Remarks | P2: Sea | Q2: Sub | U2: FSGLI | V2: SGLI
A3: Base Pay | D3: =IF(ISERROR(VLOOKUP(L1,BASEPAY,IF(M1="<2",2,M1+1),FALSE)),0,(VLOOKUP(L1,BASEPAY,IF(M1="<2",2,M1+1),FALSE))) -> 0 | F3: =IF(ISERROR(VLOOKUP(N1,BASEPAY,IF(O1="<2",2,O1+1),FALSE)),0,(VLOOKUP(N1,BASEPAY,IF(O1="<2",2,O1+1),FALSE))) -> 0 | L3: None | M3: With Dependents | N3: Yes | O3: 0 | P3: None | Q3: None
A4: Basic Allowance for Housing (Enter Zipcode in Remarks) | D4: =IF(ISERROR(VLOOKUP(L1,ABAH,IF(LEFT(E4,1)="W",6,IF(LEFT(E4,1)="S",7,IF(LEFT(E4,1)="P",4,IF(LEFT(E4,1)="D",5,0)))),FALSE)),0,VLOOKUP(L1,ABAH,IF(LEFT(E4,1)="W",6,IF(LEFT(E4,1)="S",7,IF(LEFT(E4,1)="P",4,IF(LEFT(E4,1)="D",5,0)))),FALSE)) -> 0 | E4: With Dependents | F4: =IF(ISERROR(VLOOKUP(N1,PBAH,IF(LEFT(G4,1)="W",6,IF(LEFT(G4,1)="S",7,IF(LEFT(G4,1)="P",4,IF(LEFT(G4,1)="D",5,0)))),FALSE)),0,VLOOKUP(N1,PBAH,IF(LEFT(G4,1)="W",6,IF(LEFT(G4,1)="S",7,IF(LEFT(G4,1)="P",4,IF(LEFT(G4,1)="D",5,0)))),FALSE)) -> 0 | G4: With Dependents | L4: Standard | M4: Single | N4: No | O4: 1 | P4: 0 | Q4: <2 | R4: <2 | U4: 0 | V4: 0
A5: Overseas Housing Allowance (OHA) | F5: 0 | L5: Partial | M5: Gov't Qtrs | O5: 2 | P5: 1 | Q5: 2 | R5: 2 | U5: 10000 | V5: 50000
A6: Basic Allowance for Subsistence (BAS) (Select from menu) | D6: =IF(OR(LEFT(L1,1)="W",LEFT(L1,1)="O"),OFFICER,IF(LEFT(E6,1)="N",0,STANDARD)) -> 0 | E6: None | F6: =IF(OR(LEFT(N1,1)="W",LEFT(N1,1)="O"),OFFICER,IF(LEFT(G6,1)="N",0,STANDARD)) -> 0 | G6: None | L6: Rations not Avail | M6: Partial | O6: 3 | P6: 2 | Q6: 3 | R6: 3 | U6: 20000 | V6: 100000
A7: Family Separation Allowance (FSA) (Select Yes or No) | D7: =IF(E7="Yes",FSA,0) -> 0 | E7: No | F7: =IF(G7="Yes",FSA,0) -> 0 | G7: No | M7: Differential | O7: 4 | P7: 3 | Q7: 4 | R7: 4 | U7: 30000 | V7: 150000
A8: Flight Pay/Diving Pay/Flight Deck Pay | D8: 0 | F8: 0 | O8: 5 | P8: 4 | Q8: 6 | R8: 6 | U8: 40000 | V8: 200000
A9: Submarine Pay (None or select qualified years) | D9: =IF(E9<>"None",VLOOKUP(L1,SUBPAY,IF(E9="<2",2,E9+1),FALSE),0) -> 0 | E9: None | F9: =IF(G9<>"None",VLOOKUP(N1,SUBPAY,IF(G9="<2",2,G9+1),FALSE),0) -> 0 | G9: None | L9: Single | M9: Single | O9: 6 | P9: 5 | Q9: 8 | R9: 8 | U9: 50000 | V9: 250000
A10: Other Hazardous Duty Pay | D10: 0 | F10: 0 | L10: Married | M10: Family | O10: 7 | P10: 6 | Q10: 10 | R10: 10 | U10: 60000 | V10: 300000
A11: Sea Pay (None or select qualified years) | D11: =IF(E11<>"None",VLOOKUP(L1,SEAPAY,E11+2,FALSE),0) -> 0 | E11: None | F11: =IF(G11<>"None",VLOOKUP(N1,SEAPAY,G11+2,FALSE),0) -> 0 | G11: None | L11: Exempt | M11: None | O11: 8 | P11: 7 | Q11: 12 | R11: 12 | U11: 70000 | V11: 350000
A12: Taxable COLA | D12: 0 | F12: 0 | O12: 9 | P12: 8 | Q12: 14 | R12: 14 | U12: 80000 | V12: 400000
A13: Other (tax exempt/allowance eg. COLA/FSSA) | D13: 0 | F13: 0 | O13: 10 | P13: 9 | Q13: 16 | R13: 16 | U13: 90000
A14: Total Military Compensation (A) | D14: =SUM(D3:D13) -> 0 | F14: =SUM(F3:F13) -> 0 | P14: 10 | Q14: 18 | R14: 18 | U14: 100000
A15: Taxable pay (Excludes PreTax for TSP/MGIB) | D15: =D14-D4-D5-D6-D7-D13-D26-D28 -> 0 | F15: =F14-F4-F5-F6-F7-F13-F26-F28 -> 0 | P15: 11 | Q15: 20 | R15: 20
A16: Deductions: (Use CheckBox to include allotment in Spending Plan) | H16: Allotments must ALSO go somewhere else. | L16: Allotment Formulas | P16: 12 | Q16: 22 | R16: 22
A17: Allotment (a) (Use remarks for description and end date) | D17: 0 | F17: 0 | L17: =IF(M17=TRUE,$D$17,0) -> 0 | M17: FALSE | N17: =IF(O17=TRUE,$F$17,0) -> 0 | O17: FALSE | P17: 13 | Q17: 24 | R17: 24
A18: Allotment (b) | D18: 0 | F18: 0 | L18: =IF(M18=TRUE,$D$18,0) -> 0 | M18: FALSE | N18: =IF(O18=TRUE,$F$18,0) -> 0 | O18: FALSE | P18: 14 | Q18: 26 | R18: 26
A19: Allotment (c) | D19: 0 | F19: 0 | L19: =IF(M19=TRUE,$D$19,0) -> 0 | M19: FALSE | N19: =IF(O19=TRUE,$F$19,0) -> 0 | O19: FALSE | P19: 16 | Q19: 30 | R19: 30
A20: Allotment (d) | D20: 0 | F20: 0 | L20: =IF(M20=TRUE,$D$20,0) -> 0 | M20: FALSE | N20: =IF(O20=TRUE,$F$20,0) -> 0 | O20: FALSE | P20: 18 | Q20: 34 | R20: 34
A21: Allotment (e) | D21: 0 | F21: 0 | L21: =IF(M21=TRUE,$D$21,0) -> 0 | M21: FALSE | N21: =IF(O21=TRUE,$F$21,0) -> 0 | O21: FALSE | P21: 20 | Q21: 38 | R21: 38
A22: Allotment (f ) | D22: 0 | F22: 0 | L22: =IF(M22=TRUE,$D$22,0) -> 0 | M22: FALSE | N22: =IF(O22=TRUE,$F$22,0) -> 0 | O22: FALSE | P22: 22
A23: Meal Collection Deduction | D23: 0 | F23: 0 | L23: =SUM(L17:L22) -> 0 | N23: =SUM(N17:N22) -> 0 | P23: 24
A24: Family SGLI (For Spouses) | D24: =IF(E24<17,0,FSGLI(E24,U1)) -> 0 | E24: =NetWorth!B4 -> 0 | F24: =IF(G24<17,0,FSGLI(G24,U1)) -> 0 | G24: =NetWorth!C4 -> 0 | H24: Elected Coverage of | I24: 0 | P24: 26
A25: Servicemen's Group Life Insurance (SGLI) | D25: =IF(D3=0,0,IF(L1="",0,IF(V1="0",0,V1/1000*FACTOR)+1)) -> 0 | F25: =IF(F3=0,0,IF(N1="",0,IF(V1="0",0,V1/1000*FACTOR)+1)) -> 0 | H25: Elected Coverage of | I25: 0 | P25: 28
A26: Uniform Services TSP (Enter Percentage in "E26" & "G26") | D26: =ROUND(D3*E26,2) -> 0 | E26: 0 | F26: =ROUND(F3*G26,2) -> 0 | G26: 0 | H26: Enter Starting Balance | P26: 30
A27: Uniform Services Roth TSP (Enter Percentage in "E27" & "G27") | D27: =ROUND(D3*E27,2) -> 0 | E27: 0 | F27: =ROUND(F3*G27,2) -> 0 | G27: 0 | H27: Enter Starting Balance | L27: Actual Status | M27: Exemptions | N27: Projected Status | O27: Exemptions | P27: 34
A28: MGIB (Select Yes or No) | D28: =IF(E28="yes",100,0) -> 0 | E28: No | F28: =IF(G28="Yes",100,0) -> 0 | G28: No | H28: =F29-D29 -> 0 | L28: =B29 -> Married | M28: =C29 -> 1 | N28: =I29 -> Married | O28: =J29 -> 1 | P28: 38
A29: FITW Filing Status Actual: | B29: Married | C29: 1 | D29: =afitw(D15,L28,M28) -> 0 | F29: =afitw(F15, N28,O28) -> 0 | H29: Projected Status: | I29: Married | J29: 1
A30: FICA (Social Security) (Base Pay only Excludes MGIB) | D30: =ROUND((D3-D28)*0.062,2) -> 0 | F30: =ROUND((F3-F28)*0.062,2) -> 0
A31: FICA (Medicare) (Base Pay only Excludes MGIB) | D31: =ROUND((D3-D28)*0.0145,2) -> 0 | F31: =ROUND((F3-F28)*0.0145,2) -> 0
A32: State Income Tax (Use Remarks to indicate State) | D32: 0 | F32: 0
A33: AFRH (Armed Forces Retirement Home) | D33: =IF(OR(LEFT(L1,1)="E",LEFT(L1,1)="W",RIGHT(L1,1)="E"),AFRH,0) -> 0 | F33: =IF(OR(LEFT(N1,1)="E",LEFT(N1,1)="W",RIGHT(N1,1)="E"),AFRH,0) -> 0
A34: Tricare Dental Plan (TDP) (Select None, Single or Family) | D34: =IF(E34="None",0,IF(E34="Single",IF(TODAY()>=43220,SINGDENTFEB,SINGDENT),IF(E34="Family",IF(TODAY()>=43220,FAMDENTFEB,FAMDENT),0))) -> 0 | E34: None | F34: =IF(G34="None",0,IF(G34="Single",IF(TODAY()>=43220,SINGDENTFEB,SINGDENT),IF(G34="Family",IF(TODAY()>=43220,FAMDENTFEB,FAMDENT),0))) -> 0 | G34: None | H34: ="Actual = "&E34&" / Projected = "&G34 -> Actual = None / Projected = None
A35: Advance Payments (Use Remarks to indicate end Date) | D35: 0 | F35: 0
A36: Over Payments (Use Remarks to indicate end Date) | D36: 0 | F36: 0
A37: Total Deductions (B) | D37: =SUM(D17:D36) -> 0 | F37: =SUM(F17:F36) -> 0
A38: Calculate Net Income
A39: Servicemember's Take Home Pay (A-B) | D39: =D14-D37 -> 0 | F39: =F14-F37 -> 0 | H39: ="Actual $"&ROUND(D39/2,2)&"/ Projected $"&ROUND(F39/2,2) -> Actual $0/ Projected $0
A40: =A17 -> Allotment (a) (Use remarks for description and end date) | D40: 0 | F40: =F17 -> 0
A41: Allotment (b) | D41: 0 | F41: 0
A42: Allotment (c) | D42: 0 | F42: 0
A43: Allotment (d) | D43: 0 | F43: 0
A44: Allotment (e) | D44: 0 | F44: 0
A45: Allotment (f ) | D45: 0 | F45: 0
A46: Meal Collection Deduction | D46: 0 | F46: 0
A47: Family SGLI (For Spouses) | D47: =D24 -> 0 | F47: 0
A48: Servicemen's Group Life Insurance (SGLI) | D48: 0 | F48: 0
A49: Uniform Services TSP | D49: 0 | F49: 0
A50: Uniform Services Roth TSP | D50: =D27 -> 0 | F50: =F27 -> 0
A51: MGIB | D51: =D28 -> 0 | F51: =F28 -> 0
A52: Tricare Dental Plan (TDP) | D52: =D34 -> 0 | F52: =F34 -> 0
A53: Advance Payments | D53: =D35 -> 0 | F53: =F35 -> 0
A54: Over Payments | D54: =D36 -> 0 | F54: =F36 -> 0
A55: Child Support/Alimony (Received/Income) | D55: 0 | F55: 0
A56: Other Income (e.g. SSI, Rental Income, VA Disability) | D56: 0 | F56: 0
A57: Total Net Monthly Income | D57: =SUM(D39:D56) -> 0 | F57: =SUM(F39:F56) -> 0

Sheet 2ndIncome
D1: Spouse's Earnings | H1: Page 2A
A2: Entitlements | D2: Actual | F2: Projected | H2: Remarks
A3: Hourly Rate | D3: 0 | F3: 0
A4: Total Regular Hours | B4: BiWeekly | D4: 0 | F4: 0 | H4: BiWeekly
A5: Annual Leave Hours | D5: 0 | F5: 0
A6: Sick Leave Hours | D6: 0 | F6: 0
A7: Overtime Hours | D7: 0 | F7: 0
A8: Bonus | D8: 0 | F8: 0
A9: Other (tax exempt income) | D9: 0 | F9: 0
A10: Total Pay Period Wage (A) | D10: =(D3*D4)+(D3*D5)+(D3*D6)+((D3*1.5)*D7)+D8 -> 0 | F10: =(F3*F4)+(F3*F5)+(F3*F6)+((F3*1.5)*F7)+F8 -> 0
A11: Taxable pay (Excludes pretax deductions) | D11: =D10-D9-D16-D18 -> 0 | F11: =F10-F9-F16-F18 -> 0
A12: Deductions: | H12: Allotments must ALSO go somewhere else.
A13: Allotment (a) (Use remarks for description and end date) | D13: 0 | F13: 0 | L13: Retirement Funds
A14: Allotment (b) | D14: 0 | F14: 0 | L14: =IF(LEFT($L17,1)="W",SUM(D17:D18)*52/12,IF(LEFT($L17,1)="B",SUM(D17:D18)*26/12,IF(LEFT($L17,1)="S", SUM(D17:D18)*24/12,SUM(D17:D18)))) -> 0 | M14: =IF(LEFT($M17,1)="W",SUM(F17:F18)*52/12,IF(LEFT($M17,1)="B",SUM(F17:F18)*26/12,IF(LEFT($M17,1)="S", SUM(F17:F18)*24/12,SUM(F17:F18)))) -> 0 | P14: Weekly
A15: Life Insurance (Taxable) | D15: 0 | F15: 0 | P15: BiWeekly
A16: Health and Dental Care Plans (PreTax except FICA) | D16: 0 | F16: 0 | P16: Semi-Monthly
A17: Retirement Fund (Taxable) | D17: 0 | F17: 0 | L17: =B4 -> BiWeekly | M17: =H4 -> BiWeekly | P17: Monthly | Q17: 0
A18: 401k/403b/Retirement Fund (PreTax) | D18: 0 | F18: 0 | L18: Actual Status | M18: Exemptions | N18: Projected Status | O18: Exemptions | P18: Married | Q18: 1
A19: Additional Federal Withholding | D19: 0 | F19: 0 | H19: =F20-D20 -> 0 | L19: =B20 -> Married | M19: =C20 -> 1 | N19: =I20 -> Married | O19: =J20 -> 1 | P19: Single | Q19: 2
A20: FITW Filing Status Actual: | B20: Married | C20: 1 | D20: =IF(LEFT($L17,1)="W",witw(D11,L19,M19),IF(LEFT($L17,1)="B",BITW(D11,L19,M19),IF(LEFT($L17,1)="S",SITW(D11,L19,M19),afitw(D11,L19,M19))))+D19 -> 0 | F20: =IF(LEFT($M17,1)="W",witw(F11,N19,O19),IF(LEFT($M17,1)="B",BITW(F11,N19,O19),IF(LEFT($M17,1)="S",SITW(F11,N19,O19),afitw(F11,N19,O19))))+F19 -> 0 | H20: Projected Status: | I20: Married | J20: 1 | P20: Exempt | Q20: 3
A21: FICA (Social Security) | D21: =ROUND((D10-D16)*0.062,2) -> 0 | F21: =ROUND((F10-F16)*0.062,2) -> 0 | Q21: 4
A22: FICA (Medicare) | D22: =ROUND((D10-D16)*0.0145,2) -> 0 | F22: =ROUND((F10-F16)*0.0145,2) -> 0 | Q22: 5
A23: State Income Tax (Use Remarks to indicate State) | D23: 0 | F23: 0 | Q23: 6
A24: Total Deductions (B) | D24: =SUM(D13:D23)-D19 -> 0 | F24: =SUM(F13:F23)-F19 -> 0 | Q24: 7
A25: Calculate Net Income | Q25: 8
A26: 2nd Income's Take Home Pay (A-B) | D26: =D10-D24 -> 0 | F26: =F10-F24 -> 0 | Q26: 9
A27: =A13 -> Allotment (a) (Use remarks for description and end date) | D27: =D13 -> 0 | F27: =F13 -> 0 | Q27: 10
A28: =A14 -> Allotment (b) | D28: =D14 -> 0 | F28: =F14 -> 0
A29: Total Net Monthly Income | D29: =IF(LEFT($L17,1)="W",SUM(D26:D28,D15:D18)*52/12,IF(LEFT($L17,1)="B",SUM(D26:D28,D15:D18)*26/12,IF(LEFT($L17,1)="S", SUM(D26:D28,D15:D18)*24/12,SUM(D26:D28,D15:D18)))) -> 0 | F29: =IF(LEFT($M17,1)="W",SUM(F26:F28,F15:F18)*52/12,IF(LEFT($M17,1)="B",SUM(F26:F28,F15:F18)*26/12,IF(LEFT($M17,1)="S", SUM(F26:F28,F15:F18)*24/12,SUM(F26:F28,F15:F18)))) -> 0
D31: Sevicemember's 2nd Income
A32: Entitlements | D32: Actual | F32: Projected | H32: Remarks
A33: Hourly Rate | D33: 0 | F33: 0
A34: Total Regular Hours | B34: BiWeekly | D34: 0 | F34: 0 | H34: BiWeekly
A35: Annual Leave Hours | D35: 0 | F35: 0
A36: Sick Leave Hours | D36: 0 | F36: 0
A37: Overtime Hours | D37: 0 | F37: 0
A38: Bonus | D38: 0 | F38: 0
A39: Other (tax exempt income) | D39: 0 | F39: 0
A40: Total Pay Period Wage (A) | D40: =(D33*D34)+(D33*D35)+(D33*D36)+((D33*1.5)*D37)+D38 -> 0 | F40: =(F33*F34)+(F33*F35)+(F33*F36)+((F33*1.5)*F37)+F38 -> 0
A41: Taxable pay (Excludes pretax deductions) | D41: =D40-D39-D46-D48 -> 0 | F41: =F40-F39-F46-F48 -> 0
A42: Deductions: | H42: Allotments must ALSO go somewhere else.
A43: Allotment (a) (Use remarks for description and end date) | D43: 0 | F43: 0 | L43: Retirement Funds
A44: Allotment (b) | D44: 0 | F44: 0 | L44: =IF(LEFT($L49,1)="W",SUM(D47:D48)*52/12,IF(LEFT($L49,1)="B",SUM(D47:D48)*26/12,IF(LEFT($L49,1)="S", SUM(D47:D48)*24/12,SUM(D47:D48)))) -> 0 | M44: =IF(LEFT($M49,1)="W",SUM(F47:F48)*52/12,IF(LEFT($M49,1)="B",SUM(F47:F48)*26/12,IF(LEFT($M49,1)="S", SUM(F47:F48)*24/12,SUM(F47:F48)))) -> 0
A45: Life Insurance (Taxable) | D45: 0 | F45: 0
A46: Health and Dental Care Plans (PreTax except FICA) | D46: 0 | F46: 0
A47: Retirement Fund (Taxable) | D47: 0 | F47: 0
A48: 401k/403b/Retirement Fund (PreTax) | D48: 0 | F48: 0
A49: Additional Federal Withholding | D49: 0 | F49: 0 | L49: =B34 -> BiWeekly | M49: =H34 -> BiWeekly
A50: FITW Filing Status Actual: | B50: Married | C50: 1 | D50: =IF(LEFT($L49,1)="W",witw(D41,L50,M50),IF(LEFT($L49,1)="B",BITW(D41,L50,M50),IF(LEFT($L49,1)="S",SITW(D41,L50,M50),afitw(D41,L50,M50))))+D49 -> 0 | F50: =IF(LEFT($M49,1)="W",witw(F41,N50,O50),IF(LEFT($M49,1)="B",BITW(F41,N50,O50),IF(LEFT($M49,1)="S",SITW(F41,N50,O50),afitw(F41,N50,O50))))+F49 -> 0 | H50: Projected Status: | I50: Married | J50: 1 | L50: =B50 -> Married | M50: =C50 -> 1 | N50: =I50 -> Married | O50: =J50 -> 1
A51: FICA (Social Security) | D51: =ROUND((D40-D46)*0.062,2) -> 0 | F51: =ROUND((F40-F46)*0.062,2) -> 0
A52: FICA (Medicare) | D52: =ROUND((D40-D46)*0.0145,2) -> 0 | F52: =ROUND((F40-F46)*0.0145,2) -> 0
A53: State Income Tax (Use Remarks to indicate State) | D53: 0 | F53: 0
A54: Total Deductions (B) | D54: =SUM(D43:D53)-D49 -> 0 | F54: =SUM(F43:F53)-F49 -> 0
A55: Calculate Net Income
A56: Members 2nd Income's Take Home Pay (A-B) | D56: =D40-D54 -> 0 | F56: =F40-F54 -> 0
A57: =A43 -> Allotment (a) (Use remarks for description and end date) | D57: =D43 -> 0 | F57: =F43 -> 0
A58: =A44 -> Allotment (b) | D58: =D44 -> 0 | F58: =F44 -> 0
A59: Total Net Monthly Income | D59: =IF(LEFT($L49,1)="W",SUM(D56:D58,D45:D48)*52/12,IF(LEFT($L49,1)="B",SUM(D56:D58,D45:D48)*26/12,IF(LEFT($L49,1)="S",SUM(D56:D58,D45:D48)*24/12,SUM(D56:D58,D45:D48)))) -> 0 | F59: =IF(LEFT($M49,1)="W",SUM(F56:F58,F45:F48)*52/12,IF(LEFT($M49,1)="B",SUM(F56:F58,F45:F48)*26/12,IF(LEFT($M49,1)="S",SUM(F56:F58,F45:F48)*24/12,SUM(F56:F58,F45:F48)))) -> 0

Sheet LivingExp
C1: MONTHLY SAVINGS AND LIVING EXPENSES | H1: Page 3
A2: Note: Actual or Projected Figures are carried forward to spending plan.
A3: Savings | D3: Actual | F3: Projected | H3: Remarks
A4: SAVINGS | C4: Emergency Fund (1-3 Months) (Monthly Amount)
A5: 10% Minimum | C5: Reserve Fund (Monthly Amount)
C6: "Goal Getter" Fund (Monthly Amount)
A7: Actual | B7: Projected | C7: Investments/IRAs/etc. (Monthly Amount)
A8: =(Income!D59+'2nd Active'!D57)*0.1 -> 36.939 | B8: =(Income!F59+'2nd Active'!F57)*0.1 -> 36.939 | C8: TSP/401k/403b (From Income pages) | D8: =SUM(Income!D26:D27)+'2ndIncome'!L14+'2ndIncome'!L44+SUM('2nd Active'!D26:D27) -> 0 | F8: =SUM(Income!F26:F27)+'2ndIncome'!M14+'2ndIncome'!M44+SUM('2nd Active'!F26:F27) -> 0
A9: Total Savings & Investments (10%) | D9: =SUM(D4:D8) -> 0 | F9: =SUM(F4:F8) -> 0 | H9: ="Actual: "&IF(ISERROR(D9/(Income!D59+'2nd Active'!D57))=TRUE,"",ROUND((D9/(Income!D59+'2nd Active'!D57)*100),2)&"% Projected: "&IF(ISERROR(F9/(Income!F59+'2nd Active'!F57))=TRUE,"",ROUND((F9/(Income!F59+'2nd Active'!D57)*100),2)&"%")) -> Actual: 0% Projected: 0%
A10: Living Expenses | D10: Actual | F10: Projected | H10: Remarks
A11: Household | C11: Furnishings/Misc Household Items | D11: 0 | F11: 0
C12: Maintenance/Repairs/Storage Fees
C13: Mortgage/Rent | D13: 0 | F13: 0
C14: Taxes/Fees/Homeowners Assoc Fees
A15: Food | C15: Dining Out/Dinners | D15: 0 | F15: 0
C16: Food/Supplies (Commissary & other stores) | D16: 0 | F16: 0
C17: Lunches (Include school and work lunches) | D17: 0 | F17: 0
C18: Coffee/Gedunk/Vending Machines/Energy Drinks | D18: 0 | F18: 0
C19: Meal Deductions (From Income Page) | D19: =Income!D23+'2nd Active'!D23 -> 0 | F19: =Income!F23+'2nd Active'!F23 -> 0
A20: Utilities | C20: Cable/Satellite TV | D20: 0 | F20: 0
C21: Cellular/Pagers/Phone Cards | D21: 0 | F21: 0
C22: Electricity | D22: 0 | F22: 0
C23: Internet Service | D23: 0 | F23: 0
C24: Natural Gas/Propane | D24: 0 | F24: 0
C25: Telephone | D25: 0 | F25: 0
C26: Water/Sewage/Garbage
A27: Family/Child Care | C27: Allowances (AD/Spouse/Children)
C28: Daycare/Private School Tuition
C29: Support (Include other dependent/family care)
A30: Automobile | C30: Gasoline | D30: 0 | F30: 0
C31: Maintenance/Repairs (Oil changes, etc)
C32: Other (Plates, Registration, taxes, etc) | D32: 0 | F32: 0
A33: Clothing | C33: Laundry/Dry Cleaning
C34: Purchases (Estimate $50 Monthly per Person)
A35: Insurance | C35: Automobile
C36: Health/Life (add additional insurance here)
C37: Homeowners/Renters
C38: SGLI/FSGLI (From Income Pages) | D38: =SUM(Income!D24:D25)+SUM('2nd Active'!D24:D25) -> 0 | F38: =SUM(Income!F24:F25)+SUM('2nd Active'!F24:F25) -> 0
C39: Tricare Dental (From Income Pages) | D39: =Income!D34+'2nd Active'!D34 -> 0 | F39: =Income!F34+'2nd Active'!F34 -> 0
A40: Healthcare | C40: Dental (Co-Pays)
C41: Eye Care (Glasses/Contacts) | D41: 0 | F41: 0
C42: Hospital/Physician (Co-Pays/Deductibles)
C43: Prescriptions/Vitamins/Supplements
A44: Education | C44: Books (Plus other school supplies) | D44: 0 | F44: 0
C45: Fees (Other/Room & Board)
C46: Tuition | D46: 0 | F46: 0
C47: Montgomery GI Bill (MGIB from Income Pages) | D47: =Income!D28+'2nd Active'!D28 -> 0 | F47: =Income!F28+'2nd Active'!F28 -> 0
A48: Contributions | C48: Charities (CFC/NMCRS Allotments)
C49: Club Dues/Association Fees | D49: 0 | F49: 0
C50: Religious
A51: Leisure | C51: Athletic Events/Sporting Goods (Event Tickets) | D51: 0 | F51: 0
C52: Books & Magazines/eBooks | D52: 0 | F52: 0
C53: Computer Products (Software/Hardware/Supplies)
C54: Movie/Games Rentals/Memberships (Netflix/Hulu)
C55: Purchase DVD's/CD's/Apps & ITunes
C56: Entertainment/Entertaining (Movies/Bowling/Casino)
C57: Lessons (Dance, Music, Self-Defense, etc) | D57: 0 | F57: 0
C58: Hobbies / Toys / Games
C59: Travel/Lodging (Trips home/sightseeing) | D59: 0 | F59: 0
A60: Gifts | C60: Holidays (Yearly amount divided by 12)
C61: Birthdays/Anniversaries (Yearly amount divided by 12)
A62: Personal Care | C62: Barber/Beauty Shop (Hair/Nails/Waxing) | D62: 0 | F62: 0
C63: Beer/Liquor/Wine (ABC, Package Store, etc)
C64: Other (Fitness Center/Tanning/Massage/Tattoos) | D64: 0 | F64: 0
C65: Tobacco Products (including anti-smoking)
A66: Pet Care | C66: Food/Supplies (if not included in food/supplies above)
C67: Veterinarian/Service (Boarding/Grooming) | D67: 0 | F67: 0
A68: Job Expense | C68: Non-Reimbursed
C69: Reimbursed | D69: 0 | F69: 0
A70: Miscellaneous | C70: ATM Fees/Overdraft fees/Stamps/etc…
C71: Other (Recommended $50-$150 Buffer)
A72: Total Monthly Living Expenses (70%) | D72: =SUM(D11:D71) -> 0 | F72: =SUM(F11:F71) -> 0 | H72: ="Actual: "&IF(ISERROR(D72/(Income!D59+'2nd Active'!D57))=TRUE,"",ROUND((D72/(Income!D59+'2nd Active'!D57)*100),2)&"% Projected: "&IF(ISERROR(F72/(Income!F59+'2nd Active'!F57))=TRUE,"",ROUND((F72/(Income!F59+'2nd Active'!F57)*100),2)&"%")) -> Actual: 0% Projected: 0%

Sheet Indebt
B1: Indebtedness (20%) | H1: Page 4
B2: Creditor (Account #/Phone #) | C2: Purpose | D2: Min Mo. Payment | E2: Balance | F2: Proj Payment | G2: Remarks (Mos Behind, Paid by Allotment, etc.) | H2: APR (%)
A3: 1 | B3: US Govt. | C3: Advance Pmts | D3: =Income!D35+'2nd Active'!D35 -> 0 | F3: =Income!F35+'2nd Active'!F35 -> 0 | G3: Automatic Deduction | I3: Advance Pmts
A4: 2 | B4: Gov't Credit Card | C4: Over Payments | D4: =Income!D36+'2nd Active'!D36 -> 0 | F4: =Income!F36+'2nd Active'!F36 -> 0 | G4: Automatic Deduction | I4: Auto Loan/Lease
A5: 3 | I5: Consolidation
A6: 4 | I6: Dept Store
A7: 5 | I7: Major CreditCard
A8: 6 | I8: MasterCard
A9: 7 | I9: NMCRS
A10: 8 | I10: Other
A11: 9 | I11: Over Payments
A12: 10 | I12: Signature
A13: 11 | I13: Star Card
A14: 12 | I14: Student
A15: 13 | I15: Visa Card
A16: 14
A17: 15
A18: 16
A19: 17
A20: 18
A21: 19
A22: 20
A23: 21
A24: 22
A25: 23
A26: 24
A27: 25
C28: Total | D28: =SUM(D3:D27) -> 0 | E28: =SUM(E3:E27) -> 0 | F28: =SUM(F3:F27) -> 0 | H28: Actual
H29: Projected
C30: Actual | D30: Projected | H30: Projected
B31: Net Income (Bottom of Page 2 & 2B) | C31: =Income!D59+'2nd Active'!D57 -> 369.39 | D31: =Income!F59+'2nd Active'!F57 -> 369.39 | E31: =IF(LEFT($H$30,1)="A",C31,D31) -> 369.39 | F31: Income
B32: Savings and Investments (Near Top of Page 3) | C32: =LivingExp!D9 -> 0 | D32: =LivingExp!F9 -> 0 | E32: 0 | F32: Savings
B33: Living Expenses (Bottom of Page 3) | C33: =LivingExp!D72 -> 0 | D33: =LivingExp!F72 -> 0 | E33: 0 | F33: Living Expenses
B34: Amount Left to Pay Debts | C34: =C31-C32-C33 -> 369.39 | D34: =D31-D32-D33 -> 369.39 | E34: 369.39
B35: Debts (Bottom of Page 4) | C35: =D28 -> 0 | D35: =F28 -> 0 | E35: 0 | F35: Debts
B36: Extra Steam (Bottom Page 9) | C36: =FullSteam!monext -> 0 | D36: =FullSteam!monext -> 0 | E36: =IF(LEFT($H$30,1)="A",C37,D37) -> 369.39 | F36: Surplus
B37: Surplus or Deficit | C37: =C34-C35-C36 -> 369.39 | D37: =D34-D35-D36 -> 369.39
B39: Debt to Income Ratio | C39: =IF(ISERROR(C35/C31)=TRUE, "",C35/C31) -> 0 | D39: =IF(ISERROR(D35/D31)=TRUE, "",D35/D31) -> 0

Sheet Action
B1: Action Plan | H1: Page 5
B3: Proposed Options
C5: Increase Income
C6: 1. | D6: Check/Change Federal Withholding in myPay
C7: 2. | D7: Check/Change State Withholding at CMD Admin / PS
C8: 3.
C9: 4.
C10: 5.
C11: 6.
C13: Decrease Living Expenses
C14: 1. | D14: Track Expenses for 30 Days / Change if Needed (can use apps, Mint/Financial Institution)
C15: 2.
C16: 3.
C17: 4.
C18: 5.
C19: 6.
C21: Decrease Indebtedness
C22: 1. | D22: Follow Full Steam
C23: 2.
C24: 3.
C25: 4.
C26: 5.
C27: 6.
B30: Referrals/Recommended Training
C32: 1. | D32: Attend the next Million Dollar Sailor Class, call 1-866-854-0638
C33: 2.
C34: 3.
C35: 4.
C36: 5.
C37: 6.
B40: Setting Your Goals
B41: (Short Term & Long Term)
D43: Goal | E43: Cost | F43: / Date Wanted | G43: = Monthly Savings to Reach Goal
C44: 1. | D44: ER Fund 1 Mth LE | E44: =LivingExp!F72 -> 0
C45: 2. | D45: ER Fund 3 Mth LE | E45: =E44*3 -> 0
C46: 3. | D46: ER Fund 6 Mth LE | E46: =E44*6 -> 0
C47: 4.
C48: 5.
C49: 6.

Sheet Spending
A1: Use Take Home/Actual | C1: Spending Plan | N1: Page 6
A2: =IF(A1="Use Net/Projected","Projected Net Pay",IF(A1="Use Net/Actual","Actual Net Pay",IF(A1="Use Take Home/Projected","Projected Take Home Pay", "Actual Take Home Pay"))) -> Actual Take Home Pay | B2: =IF(LEFT(A1,9)="Use Net/A",Income!D59+'2nd Active'!D57,IF(LEFT(A1,9)="Use Net/P",Income!F59+'2nd Active'!F57,IF(LEFT(A1,15)="Use Take Home/P",SUM(Income!F39:F41)+'2nd Active'!F39+SUM(Income!F57:F58)+SUM('2nd Active'!F55:F56)+Income!N23+'2nd Active'!N23,SUM(Income!D39:D41)+'2nd Active'!D39+SUM(Income!D57:D58)+SUM('2nd Active'!D55:D56)+Income!L23+'2nd Active'!L23))) -> 369.39 | C2: Month | G2: Month | K2: Month
A3: By Payday | C3: 1ST | D3: =IF(LEFT(A1,9)="Use Net/A",(B2-SUM(Income!D42:D56)-SUM('2nd Active'!D40:D54))/2+SUM(Income!D42:D56)+SUM('2nd Active'!D40:D54),IF(LEFT(A1,9)="Use Net/P",(B2-SUM(Income!F42:F56)-SUM('2nd Active'!F40:F54))/2+SUM(Income!F42:F56)+SUM('2nd Active'!F40:F54),IF(LEFT(A1,15)="Use Take Home/A",(B2-Income!L23-'2nd Active'!L23)/2+Income!L23+'2nd Active'!L23,(B2-Income!N23-'2nd Active'!N23)/2+Income!N23+'2nd Active'!N23))) -> 184.695 | E3: 15TH | F3: =B2-D3 -> 184.695 | G3: 1ST | H3: =D3 -> 184.695 | I3: 15TH | J3: =F3 -> 184.695 | K3: 1ST | L3: =D3 -> 184.695 | M3: 15TH | N3: =F3 -> 184.695
A4: P=Planned/A=Actual | C4: P | D4: A | E4: P | F4: A | G4: P | H4: A | I4: P | J4: A | K4: P | L4: A | M4: P | N4: A | Q4: Use Take Home/Actual
A5: Living Expenses | B5: Note: If using Take Home Pay, Subtract all savings or living expenses deducted from pay (e.g. TSP) or paid by allotment. | Q5: Use Take Home/Projected
A6: Savings and Investments | B6: =IF(LEFT(A1,9)="Use Net/A",LivingExp!D9,IF(LEFT(A1,9)="Use Net/P",LivingExp!F9,IF(LEFT(A1,15)="Use Take Home/P",LivingExp!F9-(Income!D26+Income!D27)-('2nd Active'!D26+'2nd Active'!D27),LivingExp!D9-(Income!B26+Income!B27)-('2nd Active'!B26+'2nd Active'!B27)))) -> 0 | C6: =IF(LEFT(A1,9)="Use Net/A",((B6-(Income!B26+Income!B27)-('2nd Active'!B26+'2nd Active'!B27))/2+(Income!B26+Income!B27)+('2nd Active'!B26+'2nd Active'!B27)),IF(LEFT(A1,9)="Use Net/P",((B6-(Income!D26+Income!D27)-('2nd Active'!D26+'2nd Active'!D27))/2+(Income!D26+Income!D27)+('2nd Active'!B26+'2nd Active'!B27)),B6/2)) -> 0 | D6: 0 | E6: =B6-C6 -> 0 | F6: 0 | G6: =C6 -> 0 | H6: 0 | I6: =E6 -> 0 | J6: 0 | K6: =G6 -> 0 | L6: 0 | M6: =I6 -> 0 | N6: 0 | Q6: Use Net/Actual
A7: =LivingExp!A11 -> Household | B7: =IF(RIGHT(A1,1)="d",SUM(LivingExp!F11:F14),SUM(LivingExp!D11:D14)) -> 0 | C7: =B7/2 -> 0 | D7: 0 | E7: 0 | F7: 0 | G7: 0 | H7: 0 | I7: 0 | J7: 0 | K7: 0 | L7: 0 | M7: 0 | N7: 0 | Q7: Use Net/Projected
A8: =LivingExp!A15 -> Food | B8: =IF(LEFT(A1,9)="Use Net/A",SUM(LivingExp!D15:D19),IF(LEFT(A1,9)="Use Net/P",SUM(LivingExp!F15:F19),IF(LEFT(A1,15)="Use Take Home/P",SUM(LivingExp!F15:F19)-Income!D23-'2nd Active'!D23,SUM(LivingExp!D15:D19)-Income!B23-'2nd Active'!B23))) -> 0 | C8: =IF(LEFT(A1,9)="Use Net/A",((B8-Income!B23-'2nd Active'!B23)/2+Income!B23+'2nd Active'!B23),IF(LEFT(A1,9)="Use Net/P",((B8-Income!D23-'2nd Active'!D23)/2+Income!D23+'2nd Active'!D23),B8/2)) -> 0 | D8: 0 | E8: 0 | F8: 0 | G8: 0 | H8: 0 | I8: 0 | J8: 0 | K8: 0 | L8: 0 | M8: 0 | N8: 0
A9: =LivingExp!A20 -> Utilities | B9: =IF(RIGHT(A1,1)="d",SUM(LivingExp!F20:F26),SUM(LivingExp!D20:D26)) -> 0 | C9: =B9/2 -> 0 | D9: 0 | E9: 0 | F9: 0 | G9: 0 | H9: 0 | I9: 0 | J9: 0 | K9: 0 | L9: 0 | M9: 0 | N9: 0
A10: =LivingExp!A27 -> Family/Child Care | B10: =IF(RIGHT(A1,1)="d",SUM(LivingExp!F27:F29),SUM(LivingExp!D27:D29)) -> 0 | C10: =B10/2 -> 0 | D10: 0 | E10: 0 | F10: 0 | G10: 0 | H10: 0 | I10: 0 | J10: 0 | K10: 0 | L10: 0 | M10: 0 | N10: 0
A11: =LivingExp!A30 -> Automobile | B11: =IF(RIGHT(A1,1)="d",SUM(LivingExp!F30:F32),SUM(LivingExp!D30:D32)) -> 0 | C11: =B11/2 -> 0 | D11: 0 | E11: 0 | F11: 0 | G11: 0 | H11: 0 | I11: 0 | J11: 0 | K11: 0 | L11: 0 | M11: 0 | N11: 0
A12: =LivingExp!A33 -> Clothing | B12: =IF(RIGHT(A1,1)="d",SUM(LivingExp!F33:F34),SUM(LivingExp!D33:D34)) -> 0 | C12: =B12/2 -> 0 | D12: 0 | E12: 0 | F12: 0 | G12: 0 | H12: 0 | I12: 0 | J12: 0 | K12: 0 | L12: 0 | M12: 0 | N12: 0
A13: =LivingExp!A35 -> Insurance | B13: =IF(LEFT(A1,9)="Use Net/A",SUM(LivingExp!D35:D39),IF(LEFT(A1,9)="Use Net/P",SUM(LivingExp!F35:F39),IF(LEFT(A1,15)="Use Take Home/P",SUM(LivingExp!F35:F37),SUM(LivingExp!D35:D37)))) -> 0 | C13: =IF(LEFT(A1,9)="Use Net/A",((B13-SUM(LivingExp!D38:D39))/2+SUM(LivingExp!D38:D39)),IF(LEFT(A1,9)="Use Net/P",((B13-SUM(LivingExp!F38:F39))/2+SUM(LivingExp!F38:F39)),B13/2)) -> 0 | D13: 0 | E13: 0 | F13: 0 | G13: 0 | H13: 0 | I13: 0 | J13: 0 | K13: 0 | L13: 0 | M13: 0 | N13: 0
A14: =LivingExp!A40 -> Healthcare | B14: =IF(RIGHT(A1,1)="d",SUM(LivingExp!F40:F43),SUM(LivingExp!D40:D43)) -> 0 | C14: =B14/2 -> 0 | D14: 0 | E14: 0 | F14: 0 | G14: 0 | H14: 0 | I14: 0 | J14: 0 | K14: 0 | L14: 0 | M14: 0 | N14: 0
A15: =LivingExp!A44 -> Education | B15: =IF(LEFT(A1,9)="Use Net/A",SUM(LivingExp!D44:D47),IF(LEFT(A1,9)="Use Net/P",SUM(LivingExp!F44:F47),IF(LEFT(A1,15)="Use Take Home/P",SUM(LivingExp!F44:F46),SUM(LivingExp!D44:D46)))) -> 0 | C15: =IF(LEFT(A1,9)="Use Net/A",((B15-Income!B28-'2nd Active'!B28)/2+Income!B28+'2nd Active'!B28),IF(LEFT(A1,9)="Use Net/P",((B15-Income!D28-'2nd Active'!D28)/2+Income!D28+'2nd Active'!D28),B15/2)) -> 0 | D15: 0 | E15: 0 | F15: 0 | G15: 0 | H15: 0 | I15: 0 | J15: 0 | K15: 0 | L15: 0 | M15: 0 | N15: 0
A16: =LivingExp!A48 -> Contributions | B16: =IF(RIGHT(A1,1)="d",SUM(LivingExp!F48:F50),SUM(LivingExp!D48:D50)) -> 0 | C16: =B16/2 -> 0 | D16: 0 | E16: 0 | F16: 0 | G16: 0 | H16: 0 | I16: 0 | J16: 0 | K16: 0 | L16: 0 | M16: 0 | N16: 0
A17: =LivingExp!A51 -> Leisure | B17: =IF(RIGHT(A1,1)="d",SUM(LivingExp!F51:F59),SUM(LivingExp!D51:D59)) -> 0 | C17: 0 | D17: 0 | E17: 0 | F17: 0 | G17: 0 | H17: 0 | I17: 0 | J17: 0 | K17: 0 | L17: 0 | M17: 0 | N17: 0
A18: =LivingExp!A60 -> Gifts | B18: =IF(RIGHT(A1,1)="d",SUM(LivingExp!F60:F61),SUM(LivingExp!D60:D61)) -> 0 | C18: 0 | D18: 0 | E18: 0 | F18: 0 | G18: 0 | H18: 0 | I18: 0 | J18: 0 | K18: 0 | L18: 0 | M18: 0 | N18: 0
A19: =LivingExp!A62 -> Personal Care | B19: =IF(RIGHT(A1,1)="d",SUM(LivingExp!F62:F65),SUM(LivingExp!D62:D65)) -> 0 | C19: 0 | D19: 0 | E19: 0 | F19: 0 | G19: 0 | H19: 0 | I19: 0 | J19: 0 | K19: 0 | L19: 0 | M19: 0 | N19: 0
A20: =LivingExp!A66 -> Pet Care | B20: =IF(RIGHT(A1,1)="d",SUM(LivingExp!F66:F67),SUM(LivingExp!D66:D67)) -> 0 | C20: 0 | D20: 0 | E20: 0 | F20: 0 | G20: 0 | H20: 0 | I20: 0 | J20: 0 | K20: 0 | L20: 0 | M20: 0 | N20: 0
A21: =LivingExp!A68 -> Job Expense | B21: =IF(RIGHT(A1,1)="d",SUM(LivingExp!F68:F69),SUM(LivingExp!D68:D69)) -> 0 | C21: 0 | D21: 0 | E21: 0 | F21: 0 | G21: 0 | H21: 0 | I21: 0 | J21: 0 | K21: 0 | L21: 0 | M21: 0 | N21: 0
A22: =LivingExp!A70 -> Miscellaneous | B22: =IF(RIGHT(A1,1)="d",SUM(LivingExp!F70:F71),SUM(LivingExp!D70:D71)) -> 0 | C22: 0 | D22: 0 | E22: 0 | F22: 0 | G22: 0 | H22: 0 | I22: 0 | J22: 0 | K22: 0 | L22: 0 | M22: 0 | N22: 0
A23: Creditors: | B23: If using Take Home Pay, Do not include creditors paid by Allotment (Use CheckBox to delete creditors paid by allotment)
A24: =IF(LEFT(A1,5)="Use N","Adv/Over Pmts","") ->  | B24: =IF(LEFT(A1,9)="Use Net/A",SUM(Indebt!D3:D4),IF(LEFT(A1,9)="Use Net/P",SUM(Indebt!F3:F4),0)) -> 0 | C24: =B24 -> 0 | D24: 0 | E24: =B24-C24 -> 0 | G24: =C24 -> 0 | I24: =E24 -> 0 | J24: 0 | K24: =G24 -> 0 | L24: 0 | M24: =I24 -> 0 | N24: 0
A25: =PROPER(Indebt!B5) ->  | B25: =IF(P25=TRUE,0,IF(RIGHT(A1,1)="d",Indebt!F5,Indebt!D5)) -> 0 | C25: 0 | D25: 0 | E25: =B25-C25 -> 0 | F25: 0 | G25: =C25 -> 0 | H25: 0 | I25: =E25 -> 0 | J25: 0 | K25: =G25 -> 0 | L25: 0 | M25: =I25 -> 0 | N25: 0 | P25: FALSE
A26: =PROPER(Indebt!B6) ->  | B26: =IF(P26=TRUE,0,IF(RIGHT(A1,1)="d",Indebt!F6,Indebt!D6)) -> 0 | C26: 0 | D26: 0 | E26: =B26-C26 -> 0 | F26: 0 | G26: =C26 -> 0 | H26: 0 | I26: =E26 -> 0 | J26: 0 | K26: =G26 -> 0 | L26: 0 | M26: =I26 -> 0 | N26: 0 | P26: FALSE
A27: =PROPER(Indebt!B7) ->  | B27: =IF(P27=TRUE,0,IF(RIGHT(A1,1)="d",Indebt!F7,Indebt!D7)) -> 0 | C27: 0 | D27: 0 | E27: 0 | F27: 0 | G27: 0 | H27: 0 | I27: =E27 -> 0 | J27: 0 | K27: 0 | L27: 0 | M27: 0 | N27: 0 | P27: FALSE
A28: =PROPER(Indebt!B8) ->  | B28: =IF(P28=TRUE,0,IF(RIGHT(A1,1)="d",Indebt!F8,Indebt!D8)) -> 0 | C28: 0 | D28: 0 | E28: 0 | F28: 0 | G28: 0 | H28: 0 | I28: 0 | J28: 0 | K28: 0 | L28: 0 | M28: 0 | N28: 0 | P28: FALSE
A29: =PROPER(Indebt!B9) ->  | B29: =IF(P29=TRUE,0,IF(RIGHT(A1,1)="d",Indebt!F9,Indebt!D9)) -> 0 | C29: 0 | D29: 0 | E29: 0 | F29: 0 | G29: 0 | H29: 0 | I29: 0 | J29: 0 | K29: 0 | L29: 0 | M29: 0 | N29: 0 | P29: FALSE
A30: =PROPER(Indebt!B10) ->  | B30: =IF(P30=TRUE,0,IF(RIGHT(A1,1)="d",Indebt!F10,Indebt!D10)) -> 0 | C30: 0 | D30: 0 | E30: 0 | F30: 0 | G30: 0 | H30: 0 | I30: 0 | J30: 0 | K30: 0 | L30: 0 | M30: 0 | N30: 0 | P30: FALSE
A31: =PROPER(Indebt!B11) ->  | B31: =IF(P31=TRUE,0,IF(RIGHT(A1,1)="d",Indebt!F11,Indebt!D11)) -> 0 | C31: 0 | D31: 0 | E31: 0 | F31: 0 | G31: 0 | H31: 0 | I31: 0 | J31: 0 | K31: 0 | L31: 0 | M31: 0 | N31: 0 | P31: FALSE
A32: =PROPER(Indebt!B12) ->  | B32: =IF(P32=TRUE,0,IF(RIGHT(A1,1)="d",Indebt!F12,Indebt!D12)) -> 0 | C32: 0 | D32: 0 | E32: 0 | F32: 0 | G32: 0 | H32: 0 | I32: 0 | J32: 0 | K32: 0 | L32: 0 | M32: 0 | N32: 0 | P32: FALSE
A33: =PROPER(Indebt!B13) ->  | B33: =IF(P33=TRUE,0,IF(RIGHT(A1,1)="d",Indebt!F13,Indebt!D13)) -> 0 | C33: 0 | D33: 0 | E33: 0 | F33: 0 | G33: 0 | H33: 0 | I33: 0 | J33: 0 | K33: 0 | L33: 0 | M33: 0 | N33: 0 | P33: FALSE
A34: =PROPER(Indebt!B14) ->  | B34: =IF(P34=TRUE,0,IF(RIGHT(A1,1)="d",Indebt!F14,Indebt!D14)) -> 0 | C34: 0 | D34: 0 | E34: 0 | F34: 0 | G34: 0 | H34: 0 | I34: 0 | J34: 0 | K34: 0 | L34: 0 | M34: 0 | N34: 0 | P34: FALSE
A35: =PROPER(Indebt!B15) ->  | B35: =IF(P35=TRUE,0,IF(RIGHT(A1,1)="d",Indebt!F15,Indebt!D15)) -> 0 | C35: 0 | D35: 0 | E35: 0 | F35: 0 | G35: 0 | H35: 0 | I35: 0 | J35: 0 | K35: 0 | L35: 0 | M35: 0 | N35: 0 | P35: FALSE
A36: =PROPER(Indebt!B16) ->  | B36: =IF(P36=TRUE,0,IF(RIGHT(A1,1)="d",Indebt!F16,Indebt!D16)) -> 0 | C36: 0 | D36: 0 | E36: 0 | F36: 0 | G36: 0 | H36: 0 | I36: 0 | J36: 0 | K36: 0 | L36: 0 | M36: 0 | N36: 0 | P36: FALSE
A37: =PROPER(Indebt!B17) ->  | B37: =IF(P37=TRUE,0,IF(RIGHT(A1,1)="d",Indebt!F17,Indebt!D17)) -> 0 | C37: 0 | D37: 0 | E37: 0 | F37: 0 | G37: 0 | H37: 0 | I37: 0 | J37: 0 | K37: 0 | L37: 0 | M37: 0 | N37: 0 | P37: FALSE
A38: =PROPER(Indebt!B18) ->  | B38: =IF(P38=TRUE,0,IF(RIGHT(A1,1)="d",Indebt!F18,Indebt!D18)) -> 0 | C38: 0 | D38: 0 | E38: 0 | F38: 0 | G38: 0 | H38: 0 | I38: 0 | J38: 0 | K38: 0 | L38: 0 | M38: 0 | N38: 0 | P38: FALSE
A39: =PROPER(Indebt!B19) ->  | B39: =IF(P39=TRUE,0,IF(RIGHT(A1,1)="d",Indebt!F19,Indebt!D19)) -> 0 | C39: 0 | D39: 0 | E39: 0 | F39: 0 | G39: 0 | H39: 0 | I39: 0 | J39: 0 | K39: 0 | L39: 0 | M39: 0 | N39: 0 | P39: FALSE
A40: =PROPER(Indebt!B20) ->  | B40: =IF(P40=TRUE,0,IF(RIGHT(A1,1)="d",Indebt!F20,Indebt!D20)) -> 0 | C40: 0 | D40: 0 | E40: 0 | F40: 0 | G40: 0 | H40: 0 | I40: 0 | J40: 0 | K40: 0 | L40: 0 | M40: 0 | N40: 0 | P40: FALSE
A41: =PROPER(Indebt!B21) ->  | B41: =IF(P41=TRUE,0,IF(RIGHT(A1,1)="d",Indebt!F21,Indebt!D21)) -> 0 | C41: 0 | D41: 0 | E41: 0 | F41: 0 | G41: 0 | H41: 0 | I41: 0 | J41: 0 | K41: 0 | L41: 0 | M41: 0 | N41: 0 | P41: FALSE
A42: =PROPER(Indebt!B22) ->  | B42: =IF(P42=TRUE,0,IF(RIGHT(A1,1)="d",Indebt!F22,Indebt!D22)) -> 0 | C42: 0 | D42: 0 | E42: 0 | F42: 0 | G42: 0 | H42: 0 | I42: 0 | J42: 0 | K42: 0 | L42: 0 | M42: 0 | N42: 0 | P42: FALSE
A43: =PROPER(Indebt!B23) ->  | B43: =IF(P43=TRUE,0,IF(RIGHT(A1,1)="d",Indebt!F23,Indebt!D23)) -> 0 | C43: 0 | D43: 0 | E43: 0 | F43: 0 | G43: 0 | H43: 0 | I43: 0 | J43: 0 | K43: 0 | L43: 0 | M43: 0 | N43: 0 | P43: FALSE
A44: =PROPER(Indebt!B24) ->  | B44: =IF(P44=TRUE,0,IF(RIGHT(A1,1)="d",Indebt!F24,Indebt!D24)) -> 0 | C44: 0 | D44: 0 | E44: 0 | F44: 0 | G44: 0 | H44: 0 | I44: 0 | J44: 0 | K44: 0 | L44: 0 | M44: 0 | N44: 0 | P44: FALSE
A45: =PROPER(Indebt!B25) ->  | B45: =IF(P45=TRUE,0,IF(RIGHT(A1,1)="d",Indebt!F25,Indebt!D25)) -> 0 | C45: 0 | D45: 0 | E45: 0 | F45: 0 | G45: 0 | H45: 0 | I45: 0 | J45: 0 | K45: 0 | L45: 0 | M45: 0 | N45: 0 | P45: FALSE
A46: =PROPER(Indebt!B26) ->  | B46: =IF(P46=TRUE,0,IF(RIGHT(A1,1)="d",Indebt!F26,Indebt!D26)) -> 0 | C46: 0 | D46: 0 | E46: 0 | F46: 0 | G46: 0 | H46: 0 | I46: 0 | J46: 0 | K46: 0 | L46: 0 | M46: 0 | N46: 0 | P46: FALSE
A47: =PROPER(Indebt!B27) ->  | B47: =IF(P47=TRUE,0,IF(RIGHT(A1,1)="d",Indebt!F27,Indebt!D27)) -> 0 | C47: 0 | D47: 0 | E47: 0 | F47: 0 | G47: 0 | H47: 0 | I47: 0 | J47: 0 | K47: 0 | L47: 0 | M47: 0 | N47: 0 | P47: FALSE
A48: Totals: | B48: =SUM(B6:B47) -> 0 | C48: =SUM(C6:C47) -> 0 | D48: =SUM(D6:D47) -> 0 | E48: 0 | F48: 0 | G48: 0 | H48: 0 | I48: 0 | J48: 0 | K48: 0 | L48: 0 | M48: 0 | N48: 0

Sheet Record
A1: Monthly Spending Record | H1: Page 7
A2: Keep track of your daily spending for two weeks
A3: Keep a record of how you spend your money for the next two weeks. The secret is to record it when you spend it. Using a "stickie" note in your wallet or purse will help you track your expenditures. When you go for your money make a note on your on your "stickie": (put the amount and what you spent your money on). At the end of the day, transfer the recorded amounts to this record. Be sure to include bills paid, along with sodas, lunches, etc.
A5: Remember this is for tracking your take home pay, don't include allotments.
A7: Take Home Pay for Two Weeks | F7: Dates
A9: Date: | C9: Date: | E9: Date: | G9: Date:
A10: Item | B10: Amount | C10: Item | D10: Amount | E10: Item | F10: Amount | G10: Item | H10: Amount
A20: Date: | C20: Date: | E20: Date: | G20: Date:
A21: Item | B21: Amount | C21: Item | D21: Amount | E21: Item | F21: Amount | G21: Item | H21: Amount
A31: Date: | C31: Date: | E31: Date: | G31: Date:
A32: Item | B32: Amount | C32: Item | D32: Amount | E32: Item | F32: Amount | G32: Item | H32: Amount
A42: Date: | C42: Date: | E42: Date: | G42: Take
A43: Item | B43: Amount | C43: Item | D43: Amount | E43: Item | F43: Amount | G43: Home Pay +$
G45: Amount
G46: Spent -$
G48: Balance $
H49: (+ or -)
A54: Monthly Spending Record | H54: Page 8
A56: Keep a daily record like you did for the first two weeks. Remember to count ALL spending.
A58: Take Home Pay For Two Weeks | F58: Dates
A60: Date: | C60: Date: | E60: Date: | G60: Date:
A61: Item | B61: Amount | C61: Item | D61: Amount | E61: Item | F61: Amount | G61: Item | H61: Amount
A71: Date: | C71: Date: | E71: Date: | G71: Date:
A72: Item | B72: Amount | C72: Item | D72: Amount | E72: Item | F72: Amount | G72: Item | H72: Amount
A82: Date: | C82: Date: | E82: Date: | G82: Date:
A83: Item | B83: Amount | C83: Item | D83: Amount | E83: Item | F83: Amount | G83: Item | H83: Amount
A93: Date: | C93: Date: | E93: Date: | G93: Take
A94: Item | B94: Amount | C94: Item | D94: Amount | E94: Item | F94: Amount | G94: Home Pay +$
G96: Amount
G97: Spent -$
G99: Balance $
H100: (+ or -)

Sheet FullSteam
B1: Minimum Payment | C1: FullSteam: Debt Reduction through use of Power Payments | H1: Page 9 | N1: RePayment Schedule | AM1: =l1n -> 0 | AN1: =SUM(AO3:AO102) -> 0 | AP1: Balance | AQ1: 0 | AR1: 0 | AS1: 1 | AT1: =l2n -> 0 | AU1: =SUM(AV3:AV102) -> 0 | AW1: Balance | AX1: 0 | AY1: 0 | AZ1: 0 | BA1: =l3n -> 0 | BB1: =SUM(BC3:BC102) -> 0 | BD1: Balance | BH1: =l4n -> 0 | BI1: =SUM(BJ3:BJ102) -> 0 | BK1: Balance | BO1: =l5n -> 0 | BP1: =SUM(BQ3:BQ102) -> 0 | BR1: Balance | BV1: =l6n -> 0 | BW1: =SUM(BX3:BX102) -> 0 | BY1: Balance | CC1: =l7n -> 0 | CD1: =SUM(CE3:CE102) -> 0 | CF1: Balance | CJ1: =l8n -> 0 | CK1: =SUM(CL3:CL102) -> 0 | CM1: Balance | CQ1: =l9n -> 0 | CR1: =SUM(CS3:CS102) -> 0 | CT1: Balance | CX1: =l10n -> 0 | CY1: =SUM(CZ3:CZ102) -> 0 | DA1: Balance | DE1: =l11n -> 0 | DF1: =SUM(DG3:DG102) -> 0 | DH1: Balance | DL1: =l12n -> 0 | DM1: =SUM(DN3:DN102) -> 0 | DO1: Balance | DS1: =l13n -> 0 | DT1: =SUM(DU3:DU102) -> 0 | DV1: Balance | DZ1: =l14n -> 0 | EA1: =SUM(EB3:EB102) -> 0 | EC1: Balance | EG1: =l15n -> 0 | EH1: =SUM(EI3:EI102) -> 0 | EJ1: Balance | EN1: =l16n -> 0 | EO1: =SUM(EP3:EP102) -> 0 | EQ1: Balance | EU1: =l17n -> 0 | EV1: =SUM(EW3:EW102) -> 0 | EX1: Balance | FB1: =l18n -> 0 | FC1: =SUM(FD3:FD102) -> 0 | FE1: Balance | FI1: =l19n -> 0 | FJ1: =SUM(FK3:FK102) -> 0 | FL1: Balance | FP1: =l20n -> 0 | FQ1: =SUM(FR3:FR102) -> 0 | FS1: Balance | FW1: =l21n -> 0 | FX1: =SUM(FY3:FY102) -> 0 | FZ1: Balance | GD1: =l22n -> 0 | GE1: =SUM(GF3:GF102) -> 0 | GG1: Balance | GK1: =l23n -> 0 | GL1: =SUM(GM3:GM102) -> 0 | GN1: Balance
B2: Balance | C2: Payment | D2: Rate | E2: # of Pmts | F2: Account | G2: #ofPMT w/o | H2: # of Pmts with FS | M2: 0 | N2: =l1n -> 0 | O2: =l2n -> 0 | P2: =l3n -> 0 | Q2: =l4n -> 0 | R2: =l5n -> 0 | S2: =l6n -> 0 | T2: =l7n -> 0 | U2: =l8n -> 0 | V2: =l9n -> 0 | W2: =l10n -> 0 | X2: =l11n -> 0 | Y2: =l12n -> 0 | Z2: =l13n -> 0 | AA2: =l14n -> 0 | AB2: =l15n -> 0 | AC2: =l16n -> 0 | AD2: =l17n -> 0 | AE2: =l18n -> 0 | AF2: =l19n -> 0 | AG2: =l20n -> 0 | AH2: =l21n -> 0 | AI2: =l22n -> 0 | AJ2: =l23n -> 0 | AM2: Payment | AN2: Principal | AO2: Interest | AP2: =l1b -> 0 | AQ2: 0 | AR2: 0 | AS2: 0 | AT2: Payment | AU2: Principal | AV2: Interest | AW2: =l2b -> 0 | AX2: 0 | AY2: 0 | AZ2: 0 | BA2: Payment | BB2: Principal | BC2: Interest | BD2: =l3b -> 0 | BE2: 0 | BF2: 0 | BG2: 0 | BH2: Payment | BI2: Principal | BJ2: Interest | BK2: =l4b -> 0 | BL2: 0 | BM2: 0 | BN2: 0 | BO2: Payment | BP2: Principal | BQ2: Interest | BR2: =l5b -> 0 | BS2: 0 | BT2: 0 | BU2: 0 | BV2: Payment | BW2: Principal | BX2: Interest | BY2: =l6b -> 0 | BZ2: 0 | CA2: 0 | CB2: 0 | CC2: Payment | CD2: Principal | CE2: Interest | CF2: =l7b -> 0 | CG2: 0 | CH2: 0 | CI2: 0 | CJ2: Payment | CK2: Principal | CL2: Interest | CM2: =l8b -> 0 | CN2: 0 | CO2: 0 | CP2: 0 | CQ2: Payment | CR2: Principal | CS2: Interest | CT2: =l9b -> 0 | CU2: 0 | CV2: 0 | CW2: 0 | CX2: Payment | CY2: Principal | CZ2: Interest | DA2: =l10b -> 0 | DB2: 0 | DC2: 0 | DD2: 0 | DE2: Payment | DF2: Principal | DG2: Interest | DH2: =l11b -> 0 | DI2: 0 | DJ2: 0 | DK2: 0 | DL2: Payment | DM2: Principal | DN2: Interest | DO2: =l12b -> 0 | DP2: 0 | DQ2: 0 | DR2: 0 | DS2: Payment | DT2: Principal | DU2: Interest | DV2: =l13b -> 0 | DW2: 0 | DX2: 0 | DY2: 0 | DZ2: Payment | EA2: Principal | EB2: Interest | EC2: =l14b -> 0 | ED2: 0 | EE2: 0 | EF2: 0 | EG2: Payment | EH2: Principal | EI2: Interest | EJ2: =l15b -> 0 | EK2: 0 | EL2: 0 | EM2: 0 | EN2: Payment | EO2: Principal | EP2: Interest | EQ2: =l16b -> 0 | ER2: 0 | ES2: 0 | ET2: 0 | EU2: Payment | EV2: Principal | EW2: Interest | EX2: =l17b -> 0 | EY2: 0 | EZ2: 0 | FA2: 0 | FB2: Payment | FC2: Principal | FD2: Interest | FE2: =l18b -> 0 | FF2: 0 | FG2: 0 | FH2: 0 | FI2: Payment | FJ2: Principal | FK2: Interest | FL2: =l19b -> 0 | FM2: 0 | FN2: 0 | FO2: 0 | FP2: Payment | FQ2: Principal | FR2: Interest | FS2: =l20b -> 0 | FT2: 0 | FU2: 0 | FV2: 0 | FW2: Payment | FX2: Principal | FY2: Interest | FZ2: =l21b -> 0 | GA2: 0 | GB2: 0 | GC2: 0 | GD2: Payment | GE2: Principal | GF2: Interest | GG2: =l22b -> 0 | GH2: 0 | GI2: 0 | GJ2: 0 | GK2: Payment | GL2: Principal | GM2: Interest | GN2: =l23b -> 0 | GO2: 0 | GP2: 0
A3: 1 | B3: =Indebt!E5 -> 0 | C3: =IF(LEFT($B$1,1)="M",Indebt!D5,Indebt!F5) -> 0 | D3: =Indebt!H5 -> 0 | E3: =myformula(G3) -> 0 Yrs -1 Mths | F3: =Indebt!B5 -> 0 | G3: =IF(ISERROR(NPER(D3/12,-C3,B3))=TRUE,"-1",ROUNDUP(NPER(D3/12,-C3,B3),0)) -> -1 | H3: =myformula(I3) -> 0 Yrs 0 Mths | I3: =COUNTIF(AM:AM,">0") -> 0 | J3: =IF(ISERROR(NPER(D3/12,-C3,B3))=TRUE,,NPER(D3/12,-C3,B3)*C3) -> 0
A4: 2 | B4: =Indebt!E6 -> 0 | C4: =IF(LEFT($B$1,1)="M",Indebt!D6,Indebt!F6) -> 0 | D4: =Indebt!H6 -> 0 | E4: 0 Yrs -1 Mths | F4: =Indebt!B6 -> 0 | G4: -1 | H4: 0 Yrs 0 Mths | I4: =COUNTIF(AT:AT,">0") -> 0 | J4: 0
A5: 3 | B5: =Indebt!E7 -> 0 | C5: =IF(LEFT($B$1,1)="M",Indebt!D7,Indebt!F7) -> 0 | D5: =Indebt!H7 -> 0 | E5: 0 Yrs -1 Mths | F5: =Indebt!B7 -> 0 | G5: -1 | H5: 0 Yrs 0 Mths | I5: =COUNTIF(BA:BA,">0") -> 0 | J5: 0
A6: 4 | B6: =Indebt!E8 -> 0 | C6: =IF(LEFT($B$1,1)="M",Indebt!D8,Indebt!F8) -> 0 | D6: =Indebt!H8 -> 0 | E6: 0 Yrs -1 Mths | F6: =Indebt!B8 -> 0 | G6: -1 | H6: 0 Yrs 0 Mths | I6: =COUNTIF(BH:BH,">0") -> 0 | J6: 0
A7: 5 | B7: =Indebt!E9 -> 0 | C7: =IF(LEFT($B$1,1)="M",Indebt!D9,Indebt!F9) -> 0 | D7: =Indebt!H9 -> 0 | E7: 0 Yrs -1 Mths | F7: =Indebt!B9 -> 0 | G7: -1 | H7: 0 Yrs 0 Mths | I7: =COUNTIF(BO:BO,">0") -> 0 | J7: 0
A8: 6 | B8: =Indebt!E10 -> 0 | C8: =IF(LEFT($B$1,1)="M",Indebt!D10,Indebt!F10) -> 0 | D8: =Indebt!H10 -> 0 | E8: 0 Yrs -1 Mths | F8: =Indebt!B10 -> 0 | G8: -1 | H8: 0 Yrs 0 Mths | I8: =COUNTIF(BV:BV,">0") -> 0 | J8: 0
A9: 7 | B9: =Indebt!E11 -> 0 | C9: =IF(LEFT($B$1,1)="M",Indebt!D11,Indebt!F11) -> 0 | D9: =Indebt!H11 -> 0 | E9: 0 Yrs -1 Mths | F9: =Indebt!B11 -> 0 | G9: -1 | H9: 0 Yrs 0 Mths | I9: =COUNTIF(CC:CC,">0") -> 0 | J9: 0
A10: 8 | B10: =Indebt!E12 -> 0 | C10: =IF(LEFT($B$1,1)="M",Indebt!D12,Indebt!F12) -> 0 | D10: =Indebt!H12 -> 0 | E10: 0 Yrs -1 Mths | F10: =Indebt!B12 -> 0 | G10: -1 | H10: 0 Yrs 0 Mths | I10: =COUNTIF(CJ:CJ,">0") -> 0 | J10: 0
A11: 9 | B11: =Indebt!E13 -> 0 | C11: =IF(LEFT($B$1,1)="M",Indebt!D13,Indebt!F13) -> 0 | D11: =Indebt!H13 -> 0 | E11: 0 Yrs -1 Mths | F11: =Indebt!B13 -> 0 | G11: -1 | H11: 0 Yrs 0 Mths | I11: =COUNTIF(CQ:CQ,">0") -> 0 | J11: 0
A12: 10 | B12: =Indebt!E14 -> 0 | C12: =IF(LEFT($B$1,1)="M",Indebt!D14,Indebt!F14) -> 0 | D12: =Indebt!H14 -> 0 | E12: 0 Yrs -1 Mths | F12: =Indebt!B14 -> 0 | G12: -1 | H12: 0 Yrs 0 Mths | I12: =COUNTIF(CX:CX,">0") -> 0 | J12: 0
A13: 11 | B13: =Indebt!E15 -> 0 | C13: =IF(LEFT($B$1,1)="M",Indebt!D15,Indebt!F15) -> 0 | D13: =Indebt!H15 -> 0 | E13: 0 Yrs -1 Mths | F13: =Indebt!B15 -> 0 | G13: -1 | H13: 0 Yrs 0 Mths | I13: =COUNTIF(DE:DE,">0") -> 0 | J13: 0
A14: 12 | B14: =Indebt!E16 -> 0 | C14: =IF(LEFT($B$1,1)="M",Indebt!D16,Indebt!F16) -> 0 | D14: =Indebt!H16 -> 0 | E14: 0 Yrs -1 Mths | F14: =Indebt!B16 -> 0 | G14: -1 | H14: 0 Yrs 0 Mths | I14: =COUNTIF(DL:DL,">0") -> 0 | J14: 0
A15: 13 | B15: =Indebt!E17 -> 0 | C15: =IF(LEFT($B$1,1)="M",Indebt!D17,Indebt!F17) -> 0 | D15: =Indebt!H17 -> 0 | E15: 0 Yrs -1 Mths | F15: =Indebt!B17 -> 0 | G15: -1 | H15: 0 Yrs 0 Mths | I15: =COUNTIF(DS:DS,">0") -> 0 | J15: 0
A16: 14 | B16: =Indebt!E18 -> 0 | C16: =IF(LEFT($B$1,1)="M",Indebt!D18,Indebt!F18) -> 0 | D16: =Indebt!H18 -> 0 | E16: 0 Yrs -1 Mths | F16: =Indebt!B18 -> 0 | G16: -1 | H16: 0 Yrs 0 Mths | I16: =COUNTIF(DZ:DZ,">0") -> 0 | J16: 0
A17: 15 | B17: =Indebt!E19 -> 0 | C17: =IF(LEFT($B$1,1)="M",Indebt!D19,Indebt!F19) -> 0 | D17: =Indebt!H19 -> 0 | E17: 0 Yrs -1 Mths | F17: =Indebt!B19 -> 0 | G17: -1 | H17: 0 Yrs 0 Mths | I17: =COUNTIF(EG:EG,">0") -> 0 | J17: 0
A18: 16 | B18: =Indebt!E20 -> 0 | C18: =IF(LEFT($B$1,1)="M",Indebt!D20,Indebt!F20) -> 0 | D18: =Indebt!H20 -> 0 | E18: 0 Yrs -1 Mths | F18: =Indebt!B20 -> 0 | G18: -1 | H18: 0 Yrs 0 Mths | I18: =COUNTIF(EN:EN,">0") -> 0 | J18: 0
A19: 17 | B19: =Indebt!E21 -> 0 | C19: =IF(LEFT($B$1,1)="M",Indebt!D21,Indebt!F21) -> 0 | D19: =Indebt!H21 -> 0 | E19: 0 Yrs -1 Mths | F19: =Indebt!B21 -> 0 | G19: -1 | H19: 0 Yrs 0 Mths | I19: =COUNTIF(EU:EU,">0") -> 0 | J19: 0
A20: 18 | B20: =Indebt!E22 -> 0 | C20: =IF(LEFT($B$1,1)="M",Indebt!D22,Indebt!F22) -> 0 | D20: =Indebt!H22 -> 0 | E20: 0 Yrs -1 Mths | F20: =Indebt!B22 -> 0 | G20: -1 | H20: 0 Yrs 0 Mths | I20: =COUNTIF(FB:FB,">0") -> 0 | J20: 0
A21: 19 | B21: =Indebt!E23 -> 0 | C21: =IF(LEFT($B$1,1)="M",Indebt!D23,Indebt!F23) -> 0 | D21: =Indebt!H23 -> 0 | E21: 0 Yrs -1 Mths | F21: =Indebt!B23 -> 0 | G21: -1 | H21: 0 Yrs 0 Mths | I21: =COUNTIF(FI:FI,">0") -> 0 | J21: 0
A22: 20 | B22: =Indebt!E24 -> 0 | C22: =IF(LEFT($B$1,1)="M",Indebt!D24,Indebt!F24) -> 0 | D22: =Indebt!H24 -> 0 | E22: 0 Yrs -1 Mths | F22: =Indebt!B24 -> 0 | G22: -1 | H22: 0 Yrs 0 Mths | I22: =COUNTIF(FP:FP,">0") -> 0 | J22: 0
A23: 21 | B23: =Indebt!E25 -> 0 | C23: =IF(LEFT($B$1,1)="M",Indebt!D25,Indebt!F25) -> 0 | D23: =Indebt!H25 -> 0 | E23: 0 Yrs -1 Mths | F23: =Indebt!B25 -> 0 | G23: -1 | H23: 0 Yrs 0 Mths | I23: =COUNTIF(FW:FW,">0") -> 0 | J23: 0
A24: 22 | B24: =Indebt!E26 -> 0 | C24: =IF(LEFT($B$1,1)="M",Indebt!D26,Indebt!F26) -> 0 | D24: =Indebt!H26 -> 0 | E24: 0 Yrs -1 Mths | F24: =Indebt!B26 -> 0 | G24: -1 | H24: 0 Yrs 0 Mths | I24: =COUNTIF(GD:GD,">0") -> 0 | J24: 0
A25: 23 | B25: =Indebt!E27 -> 0 | C25: =IF(LEFT($B$1,1)="M",Indebt!D27,Indebt!F27) -> 0 | D25: =Indebt!H27 -> 0 | E25: 0 Yrs -1 Mths | F25: =Indebt!B27 -> 0 | G25: -1 | H25: =myformula(I25) -> 0 Yrs 0 Mths | I25: =COUNTIF(GK:GK,">0") -> 0 | J25: 0
B26: Total Balance | C26: =SUM(B3:B25) -> 0
B27: Total Payments | C27: =IF(E27=E28,C28,G27) -> 0 | D27: W/O FullSteam | E27: =myformula(J31) -> 0 Yrs 0 Mths | G27: =SUM(J3:J25) -> 0
B28: FullSteamPayments | C28: =SUM(AM:AM,AT:AT,BA:BA,BH:BH,BO:BO,BV:BV,CC:CC,CJ:CJ,CQ:CQ,CX:CX,DE:DE,DL:DL,DS:DS,DZ:DZ,EG:EG,EN:EN,EU:EU,FB:FB,FI:FI,FP:FP,FW:FW,GD:GD,GK:GK) -> 0 | D28: FullSteam Time | E28: =myformula(J30) -> 0 Yrs 0 Mths | J28: =COUNTIF(C3:C25,">0") -> 0
B29: Total Savings | C29: =IF(E28=0,0,IF(E27=E28,0,C27-C28)) -> 0 | D29: Time Saved | E29: =IF(J30=0,myformula(0),myformula(J31-J30)) -> 0 Yrs 0 Mths | J29: =COUNTIF(B3:B25,">0") -> 0
J30: =MAX(I3:I25) -> 0
B31: Total Interest | C31: =IF(E27=E28,C32,G54) -> 0 | G31: =J3-B3 -> 0 | J31: =MAX(G3:G25) -> 0
B32: FullSteamInterest | C32: =SUM(AO:AO,AV:AV,BC:BC,BJ:BJ,BQ:BQ,BX:BX,CE:CE,CL:CL,CS:CS,CZ:CZ,DG:DG,DN:DN,DU:DU,EB:EB,EI:EI,EP:EP,EW:EW,FD:FD,FK:FK,FR:FR,FY:FY,GF:GF,GM:GM) -> 0 | G32: 0
B33: Interest Savings | C33: =IF(E28=0,0,IF(E27=E28,0,C31-C32)) -> 0 | G33: 0 | J33: 0
F34: REMARKS/EXPLANATION | G34: 0
B35: Extra Steam | C35: 0 | D35: =IF(OR(AND(B1="Minimum Payment",Indebt!C37<0),AND(B1="Projected Payment",Indebt!D37<0)),"No Surplus for Extra Steam ",IF(B1="Minimum Payment","$"&ROUND(Indebt!C37,2)&" in Surplus is available for Extra Steam","$"&ROUND(Indebt!D37,2)&" in Surplus is available for Extra Steam")) -> $369.39 in Surplus is available for Extra Steam | G35: 0
B36: 1st Blast of Steam | D36: in Month/Year | G36: 0
B37: 2nd Blast of Steam | D37: in Month/Year | G37: 0
B38: 3rd Blast of Steam | D38: in Month/Year | G38: 0
G39: 0
G40: 0
G41: 0
G42: 0
G43: 0
G44: 0
G45: 0
G46: 0
G47: 0
G48: 0
G49: 0
G50: 0
G51: 0
G52: 0
G53: 0
G54: =SUM(G31:G53) -> 0

Sheet TSP
A1: TSP Investments | F1: Page 10
A2: Use Actual | EF2: 123394.26
A3: BRS Matching
V4: =(C7*GFUND/12) -> 0
E5: =IF(LEFT(A2,5)="Use A","Current Roth TSP Contribution","Projected Roth TSP Contribution") -> Current Roth TSP Contribution | F5: =IF(RIGHT(A2,1)="L",Income!D27,Income!F27) -> 0 | V5: =(C8*FFUND/12) -> 0
A6: Average Since Inception | C6: Contribution Percentage | E6: =IF(LEFT(A2,5)="Use A","Current TSP Contribution","Projected TSP Contribution") -> Current TSP Contribution | F6: =IF(RIGHT(A2,1)="L",Income!D26,Income!F26)+F15 -> 0 | V6: =(C9*CFUND/12) -> 0
A7: ="Government Securities" -> Government Securities | B7: =GFUND -> 0.0509 | E7: Current Age | F7: =IF(RIGHT(A2,1)="l",NetWorth!B4,NetWorth!C4) -> 0 | V7: =(C10*SFUND/12) -> 0
A8: ="Fixed Income Index" -> Fixed Income Index | B8: =FFUND -> 0.0624 | E8: Years left to Contribute | V8: =(C11*IFUND/12) -> 0
A9: ="Common Stock Index" -> Common Stock Index | B9: =CFUND -> 0.1053 | E9: ="Investment Yrs until "&PayScale!I125 -> Investment Yrs until 62.5 | F9: =DEADDATE-F7-F8 -> 62.5 | V9: =(C12*LINCOME/12) -> 0
A10: ="Small Cap. Stock Index" -> Small Cap. Stock Index | B10: =SFUND -> 0.0936 | E10: Total Contributions | F10: =(F6+F5)*12*F8 -> 0 | V10: =(C13*FUND2020/12) -> 0
A11: ="International Stock Index" -> International Stock Index | B11: =IFUND -> 0.0525 | E11: Interest Earned on Investment | F11: =F12-F10 -> 75990.3 | V11: =(C14*FUND2030/12) -> 0
A12: ="L Income" -> L Income | B12: =LINCOME -> 0.0415 | E12: ="TSP Balance @ age "&DEADDATE -> TSP Balance @ age 62.5 | F12: 75990.3 | V12: =(C15*FUND2040/12) -> 0.005608333333
A13: ="L 2020" -> L 2020 | B13: =FUND2020 -> 0.0556 | F13: =IF(RIGHT(A2,1)="L",NetWorth!B19+NetWorth!B21,NetWorth!C19+NetWorth!C21) -> 0 | V13: =(C16*FUND2050/12) -> 0
A14: ="L 2030" -> L 2030 | B14: =FUND2030 -> 0.0631 | E14: Matching Percentage (if applicable) | F14: =IF(F13=0,0.01,IF(F13=0.01,0.02,IF(F13=0.02,0.03,IF(F13=0.03,0.04,IF(F13=0.04,0.035,IF(F13>=0.05,0.05)))))) -> 0.01 | V14: =(C17*FLAT/12) -> 0
A15: ="L 2040" -> L 2040 | B15: =FUND2040 -> 0.0673 | C15: 1 | E15: Matching Amount (if applicable) | F15: =IF(LEFT(A3,1)="N",0,IF(RIGHT(A2,1)="L",Income!D3*F14,Income!F3*F14)) -> 0 | V15: =SUM(V4:V14)+1 -> 1.005608333
A16: ="L 2050" -> L 2050 | B16: =FUND2050 -> 0.1053 | E16: Use Actual
A17: 10% Example | B17: =FLAT -> 0.1 | C17: 0 | E17: Use Projected
A18: Total Distribution | C18: =IF(SUM(C7:C17)>1,SUM(C7:C17),SUM(C7:C17)) -> 1 | E18: BRS Matching
E19: No Matching

Sheet TSP2
A1: TSP Investments | F1: Page 10A | R1: 2018-02-01 | S1: 0 | T1: 0
A2: Use Actual | R2: 2018-03-01 | S2: 0 | T2: 0 | EF2: 123394.26
A3: BRS Matching | R3: 2018-04-01 | S3: 0 | T3: 0
R4: 2018-05-01 | S4: 0 | T4: 0 | V4: =(C7*GFUND/12) -> 0
E5: =IF(LEFT(A2,5)="Use A","Current Roth TSP Contribution","Projected Roth TSP Contribution") -> Current Roth TSP Contribution | F5: =IF(RIGHT(A2,1)="L",'2nd Active'!D27,'2nd Active'!F27) -> 0 | R5: 2018-06-01 | S5: 0 | T5: 0 | V5: =(C8*FFUND/12) -> 0
A6: Average Since Inception | C6: Contribution Percentage | E6: =IF(LEFT(A2,5)="Use A","Current TSP Contribution","Projected TSP Contribution") -> Current TSP Contribution | F6: =IF(RIGHT(A2,1)="L",'2nd Active'!D26,'2nd Active'!F26)+F15 -> 0 | R6: 2018-07-01 | S6: 0 | T6: 0 | V6: =(C9*CFUND/12) -> 0
A7: ="Government Securities" -> Government Securities | B7: =GFUND -> 0.0509 | E7: Current Age | F7: =IF(RIGHT(A2,1)="l",NetWorth!B10,NetWorth!C10) -> 0 | R7: 2018-08-01 | S7: 0 | T7: 0 | V7: =(C10*SFUND/12) -> 0
A8: ="Fixed Income Index" -> Fixed Income Index | B8: =FFUND -> 0.0624 | E8: Years left to Contribute | R8: 2018-09-01 | S8: 0 | T8: 0 | V8: =(C11*IFUND/12) -> 0
A9: ="Common Stock Index" -> Common Stock Index | B9: =CFUND -> 0.1053 | E9: ="Investment Yrs until "&DEADDATE -> Investment Yrs until 62.5 | F9: =DEADDATE-F7-F8 -> 62.5 | R9: 2018-10-01 | S9: 0 | T9: 0 | V9: =(C12*LINCOME/12) -> 0
A10: ="Small Cap. Stock Index" -> Small Cap. Stock Index | B10: =SFUND -> 0.0936 | E10: Total Contributions | F10: =(F6+F5)*12*F8 -> 0 | R10: 2018-11-01 | S10: 0 | T10: 0 | V10: =(C13*FUND2020/12) -> 0
A11: ="International Stock Index" -> International Stock Index | B11: =IFUND -> 0.0525 | E11: Interest Earned on Investment | F11: =F12-F10 -> 465400.86 | R11: 2018-12-01 | S11: 0 | T11: 0 | V11: =(C14*FUND2030/12) -> 0
A12: ="L Income" -> L Income | B12: =LINCOME -> 0.0415 | E12: ="TSP Balance @ age "&DEADDATE -> TSP Balance @ age 62.5 | F12: 465400.86 | R12: 2019-01-01 | S12: 0 | T12: 0 | V12: =(C15*FUND2040/12) -> 0
A13: ="L 2020" -> L 2020 | B13: =FUND2020 -> 0.0556 | F13: =IF(RIGHT(A2,1)="L",'2nd Active'!E26+'2nd Active'!E27,'2nd Active'!G26+'2nd Active'!G27) -> 0 | R13: 2019-02-01 | T13: 0 | V13: =(C16*FUND2050/12) -> 0
A14: ="L 2030" -> L 2030 | B14: =FUND2030 -> 0.0631 | E14: Matching Percentage (if applicable) | F14: =IF(F13=0,0.01,IF(F13=0.01,0.02,IF(F13=0.02,0.03,IF(F13=0.03,0.04,IF(F13=0.04,0.035,IF(F13>=0.05,0.05)))))) -> 0.01 | R14: 2019-03-01 | T14: 0 | V14: =(C17*FLAT/12) -> 0.008333333333
A15: ="L 2040" -> L 2040 | B15: =FUND2040 -> 0.0673 | E15: Matching Amount (if applicable) | F15: =IF(LEFT(A3,1)="N",0,IF(RIGHT(A2,1)="L",'2nd Active'!D3*F14,'2nd Active'!F3*F14)) -> 0 | R15: 2019-04-01 | T15: 0 | V15: =SUM(V4:V14)+1 -> 1.008333333
A16: ="L 2050" -> L 2050 | B16: =FUND2050 -> 0.1053 | E16: Use Actual | R16: 2019-05-01 | T16: 0
A17: 10% Example | B17: =FLAT -> 0.1 | C17: 1 | E17: Use Projected | R17: 2019-06-01 | T17: 0
A18: Total Distribution | C18: =IF(SUM(C7:C17)>1,SUM(C7:C17),SUM(C7:C17)) -> 1 | E18: BRS Matching | R18: 2019-07-01 | T18: 0
E19: No Matching | R19: 2019-08-01 | T19: 0
R20: 2019-09-01 | T20: 0
R21: 2019-10-01 | T21: 0
R22: 2019-11-01 | T22: 0
R23: 2019-12-01 | T23: 0
R24: 2020-01-01 | T24: 0
R25: 2020-02-01 | T25: 0
R26: 2020-03-01 | T26: 0
R27: 2020-04-01 | T27: 0
R28: 2020-05-01 | T28: 0
R29: 2020-06-01 | T29: 0
R30: 2020-07-01 | T30: 0
R31: 2020-08-01 | T31: 0
R32: 2020-09-01 | T32: 0
R33: 2020-10-01 | T33: 0
R34: 2020-11-01 | T34: 0
R35: 2020-12-01 | T35: 0
R36: 2021-01-01 | T36: 0
R37: 2021-02-01 | T37: 0
R38: 2021-03-01 | T38: 0
R39: 2021-04-01 | T39: 0
R40: 2021-05-01 | T40: 0
R41: 2021-06-01 | T41: 0
R42: 2021-07-01 | T42: 0
R43: 2021-08-01 | T43: 0
R44: 2021-09-01 | T44: 0
R45: 2021-10-01 | T45: 0
R46: 2021-11-01 | T46: 0
R47: 2021-12-01 | T47: 0
R48: 2022-01-01 | T48: 0
R49: 2022-02-01 | T49: 0
R50: 2022-03-01 | T50: 0
R51: 2022-04-01 | T51: 0
R52: 2022-05-01 | T52: 0
R53: 2022-06-01 | T53: 0
R54: 2022-07-01 | T54: 0
R55: 2022-08-01 | T55: 0
R56: 2022-09-01 | T56: 0
R57: 2022-10-01 | T57: 0
R58: 2022-11-01 | T58: 0
R59: 2022-12-01 | T59: 0
R60: 2023-01-01 | T60: 0
R61: 2023-02-01 | T61: 0
R62: 2023-03-01 | T62: 0
R63: 2023-04-01 | T63: 0
R64: 2023-05-01 | T64: 0
R65: 2023-06-01 | T65: 0
R66: 2023-07-01 | T66: 0
R67: 2023-08-01 | T67: 0
R68: 2023-09-01 | T68: 0
R69: 2023-10-01 | T69: 0
R70: 2023-11-01 | T70: 0
R71: 2023-12-01 | T71: 0
R72: 2024-01-01 | T72: 0
R73: 2024-02-01 | T73: 0
R74: 2024-03-01 | T74: 0
R75: 2024-04-01 | T75: 0
R76: 2024-05-01 | T76: 0
R77: 2024-06-01 | T77: 0
R78: 2024-07-01 | T78: 0
R79: 2024-08-01 | T79: 0
R80: 2024-09-01 | T80: 0
R81: 2024-10-01 | T81: 0
R82: 2024-11-01 | T82: 0
R83: 2024-12-01 | T83: 0
R84: 2025-01-01 | T84: 0
R85: 2025-02-01 | T85: 0
R86: 2025-03-01 | T86: 0
R87: 2025-04-01 | T87: 0
R88: 2025-05-01 | T88: 0
R89: 2025-06-01 | T89: 0
R90: 2025-07-01 | T90: 0
R91: 2025-08-01 | T91: 0
R92: 2025-09-01 | T92: 0
R93: 2025-10-01 | T93: 0
R94: 2025-11-01 | T94: 0
R95: 2025-12-01 | T95: 0
R96: 2026-01-01 | T96: 0
R97: 2026-02-01 | T97: 0
R98: 2026-03-01 | T98: 0
R99: 2026-04-01 | T99: 0
R100: 2026-05-01 | T100: 0
R101: 2026-06-01 | T101: 0
R102: 2026-07-01 | T102: 0
R103: 2026-08-01 | T103: 0
R104: 2026-09-01 | T104: 0
R105: 2026-10-01 | T105: 0
R106: 2026-11-01 | T106: 0
R107: 2026-12-01 | T107: 0
R108: 2027-01-01 | T108: 0
R109: 2027-02-01 | T109: 0
R110: 2027-03-01 | T110: 0
R111: 2027-04-01 | T111: 0
R112: 2027-05-01 | T112: 0
R113: 2027-06-01 | T113: 0
R114: 2027-07-01 | T114: 0
R115: 2027-08-01 | T115: 0
R116: 2027-09-01 | T116: 0
R117: 2027-10-01 | T117: 0
R118: 2027-11-01 | T118: 0
R119: 2027-12-01 | T119: 0
R120: 2028-01-01 | T120: 0
R121: 2028-02-01 | T121: 0
R122: 2028-03-01 | T122: 0
R123: 2028-04-01 | T123: 0
R124: 2028-05-01 | T124: 0
R125: 2028-06-01 | T125: 0
R126: 2028-07-01 | T126: 0
R127: 2028-08-01 | T127: 0
R128: 2028-09-01 | T128: 0
R129: 2028-10-01 | T129: 0
R130: 2028-11-01 | T130: 0
R131: 2028-12-01 | T131: 0
R132: 2029-01-01 | T132: 0
R133: 2029-02-01 | T133: 0
R134: 2029-03-01 | T134: 0
R135: 2029-04-01 | T135: 0
R136: 2029-05-01 | T136: 0
R137: 2029-06-01 | T137: 0
R138: 2029-07-01 | T138: 0
R139: 2029-08-01 | T139: 0
R140: 2029-09-01 | T140: 0
R141: 2029-10-01 | T141: 0
R142: 2029-11-01 | T142: 0
R143: 2029-12-01 | T143: 0
R144: 2030-01-01 | T144: 0
R145: 2030-02-01 | T145: 0
R146: 2030-03-01 | T146: 0
R147: 2030-04-01 | T147: 0
R148: 2030-05-01 | T148: 0
R149: 2030-06-01 | T149: 0
R150: 2030-07-01 | T150: 0
R151: 2030-08-01 | T151: 0
R152: 2030-09-01 | T152: 0
R153: 2030-10-01 | T153: 0
R154: 2030-11-01 | T154: 0
R155: 2030-12-01 | T155: 0
R156: 2031-01-01 | T156: 0
R157: 2031-02-01 | T157: 0
R158: 2031-03-01 | T158: 0
R159: 2031-04-01 | T159: 0
R160: 2031-05-01 | T160: 0
R161: 2031-06-01 | T161: 0
R162: 2031-07-01 | T162: 0
R163: 2031-08-01 | T163: 0
R164: 2031-09-01 | T164: 0
R165: 2031-10-01 | T165: 0
R166: 2031-11-01 | T166: 0
R167: 2031-12-01 | T167: 0
R168: 2032-01-01 | T168: 0
R169: 2032-02-01 | T169: 0
R170: 2032-03-01 | T170: 0
R171: 2032-04-01 | T171: 0
R172: 2032-05-01 | T172: 0
R173: 2032-06-01 | T173: 0
R174: 2032-07-01 | T174: 0
R175: 2032-08-01 | T175: 0
R176: 2032-09-01 | T176: 0
R177: 2032-10-01 | T177: 0
R178: 2032-11-01 | T178: 0
R179: 2032-12-01 | T179: 0
R180: 2033-01-01 | T180: 0
R181: 2033-02-01 | T181: 0
R182: 2033-03-01 | T182: 0
R183: 2033-04-01 | T183: 0
R184: 2033-05-01 | T184: 0
R185: 2033-06-01 | T185: 0
R186: 2033-07-01 | T186: 0
R187: 2033-08-01 | T187: 0
R188: 2033-09-01 | T188: 0
R189: 2033-10-01 | T189: 0
R190: 2033-11-01 | T190: 0
R191: 2033-12-01 | T191: 0
R192: 2034-01-01 | T192: 0
R193: 2034-02-01 | T193: 0
R194: 2034-03-01 | T194: 0
R195: 2034-04-01 | T195: 0
R196: 2034-05-01 | T196: 0
R197: 2034-06-01 | T197: 0
R198: 2034-07-01 | T198: 0
R199: 2034-08-01 | T199: 0
R200: 2034-09-01 | T200: 0
... 550 more rows

Sheet PayScale
B1: PAY AND ALLOWANCES JAN 2018 SeaPay updated 15 May 2014 | DX1: 2018-01-02
B2: =YEAR(NOW()) -> 2019
B3: PayGrade | C3: 2 or less | D3: Over 2 | E3: Over 3 | F3: Over 4 | G3: 5 | H3: Over 6 | I3: 7 | J3: Over 8 | K3: 9 | L3: Over 10 | M3: 11 | N3: Over 12 | O3: 13 | P3: Over 14 | Q3: 15 | R3: Over 16 | S3: 17 | T3: Over 18 | U3: 19 | V3: Over 20 | W3: 21 | X3: Over 22 | Y3: 23 | Z3: Over 24 | AA3: 25 | AB3: Over 26 | AC3: 27 | AD3: Over 28 | AE3: 29 | AF3: Over 30 | AG3: 31 | AH3: Over 32 | AI3: 33 | AJ3: Over 34 | AK3: 35 | AL3: Over 36 | AM3: 37 | AN3: Over 38 | AO3: 39 | AP3: Over 40 | AT3: Sea Pay | AU3: 0 | AV3: 1 | AW3: 2 | AX3: 3 | AY3: 4 | AZ3: 5 | BA3: 6 | BB3: 7 | BC3: 8 | BD3: 9 | BE3: 10 | BF3: 11 | BG3: 12 | BH3: 13 | BI3: 14 | BJ3: 15 | BK3: 16 | BL3: 17 | BM3: 18 | BN3: 19 | BO3: 20 | BP3: 21 | BQ3: 22 | BR3: 23 | BS3: 24 | BT3: 25 | BU3: 26 | BV3: 27 | BW3: 28 | BX3: 29 | BY3: 30 | BZ3: 31 | CA3: 32 | CB3: 33 | CC3: 34 | CD3: 35 | CE3: 36 | CF3: 37 | CG3: 38 | CJ3: SUB PAY | CK3: <2 | CL3: 2 | CM3: 3 | CN3: 4 | CP3: 6 | CR3: 8 | CT3: 10 | CV3: 12 | CX3: 14 | CZ3: 16 | DB3: 18 | DD3: 20 | DF3: 22 | DH3: 24 | DJ3: 26 | DN3: 30 | DR3: 34 | DV3: 38 | DX3: BAH W | DY3: E1 | DZ3: E2 | EA3: E3 | EB3: E4 | EC3: E5 | ED3: E6 | EE3: E7 | EF3: E8 | EG3: E9 | EH3: CWO1 | EI3: CWO2 | EJ3: CWO3 | EK3: CWO4 | EL3: CWO5 | EM3: OE1 | EN3: OE2 | EO3: OE3 | EP3: O1 | EQ3: O2 | ER3: O3 | ES3: O4 | ET3: O5 | EU3: O6 | EV3: O7 | EW3: O8 | EX3: O9 | EY3: O10 | FA3: BAH WO | FB3: E1 | FC3: E2 | FD3: E3 | FE3: E4 | FF3: E5 | FG3: E6 | FH3: E7 | FI3: E8 | FJ3: E9 | FK3: CWO1 | FL3: CWO2 | FM3: CWO3 | FN3: CWO4 | FO3: CWO5 | FP3: OE1 | FQ3: OE2 | FR3: OE3 | FS3: O1 | FT3: O2 | FU3: O3 | FV3: O4 | FW3: O5 | FX3: O6 | FY3: O7 | FZ3: O8 | GA3: O9 | GB3: O10 | GD3: Zip | GE3: Code | GG3: Code | GH3: City, ST
B4: O10 | C4: 0 | D4: 0 | E4: 0 | F4: 0 | H4: 0 | J4: 0 | L4: 0 | N4: 0 | P4: 0 | R4: 0 | T4: 0 | V4: 15800.1 | X4: 15800.1 | Z4: 15800.1 | AB4: 15800.1 | AD4: 15800.1 | AF4: 15800.1 | AH4: 15800.1 | AJ4: 15800.1 | AL4: 15800.1 | AN4: 15800.1 | AP4: 15800.1 | AT4: O10 | AU4: =AU5 -> 100 | AV4: 100 | AW4: 100 | AX4: 394 | AY4: 400 | AZ4: 400 | BA4: 419 | BB4: 450 | BC4: 463 | BD4: 494 | BE4: 506 | BF4: 525 | BG4: 544 | BH4: 544 | BI4: 569 | BK4: =BK5 -> 594 | BM4: =BM5 -> 625 | BO4: =BO5 -> 669 | BQ4: =BQ5 -> 669 | BS4: =BS5 -> 669 | BU4: =BU5 -> 669 | BY4: =BY5 -> 669 | CC4: =CC5 -> 669 | CG4: =CG5 -> 669 | CJ4: O10 | CK4: 355 | CL4: 355 | CM4: 355 | CN4: 355 | CP4: 355 | CR4: 355 | CT4: 355 | CV4: 355 | CX4: 355 | CZ4: 355 | DB4: 355 | DD4: 355 | DF4: 355 | DH4: 355 | DJ4: 355 | DN4: 355 | DR4: 355 | DV4: 355 | DX4: AK400 | DY4: 1689 | DZ4: 1689 | EA4: 1689 | EB4: 1689 | EC4: 1968 | ED4: 1980 | EE4: 2085 | EF4: 2217 | EG4: 2358 | EH4: 1983 | EI4: 2142 | EJ4: 2307 | EK4: 2382 | EL4: 2472 | EM4: 2112 | EN4: 2280 | EO4: 2394 | EP4: 1974 | EQ4: 1977 | ER4: 2301 | ES4: 2502 | ET4: 2643 | EU4: 2664 | EV4: 2685 | EW4: 2685 | EX4: 2685 | EY4: 2685 | FA4: AK400 | FB4: 1266 | FC4: 1266 | FD4: 1266 | FE4: 1266 | FF4: 1476 | FG4: 1485 | FH4: 1575 | FI4: 1737 | FJ4: 1821 | FK4: 1545 | FL4: 1734 | FM4: 1833 | FN4: 1992 | FO4: 2115 | FP4: 1680 | FQ4: 1803 | FR4: 1956 | FS4: 1482 | FT4: 1647 | FU4: 1860 | FV4: 2091 | FW4: 2166 | FX4: 2289 | FY4: 2337 | FZ4: 2337 | GA4: 2337 | GB4: 2337 | GD4: 501 | GE4: NY218 | GG4: AK400 | GH4: KETCHIKAN, AK
B5: O9 | C5: 0 | D5: 0 | E5: 0 | F5: 0 | H5: 0 | J5: 0 | L5: 0 | N5: 0 | P5: 0 | R5: 0 | T5: 0 | V5: 15078.6 | X5: 15296.4 | Z5: 15610.2 | AB5: 15800.1 | AD5: 15800.1 | AF5: 15800.1 | AH5: 15800.1 | AJ5: 15800.1 | AL5: 15800.1 | AN5: 15800.1 | AP5: 15800.1 | AT5: O9 | AU5: 100 | AV5: 100 | AW5: 100 | AX5: 394 | AY5: 400 | AZ5: 400 | BA5: 419 | BB5: 450 | BC5: 463 | BD5: 494 | BE5: 506 | BF5: 525 | BG5: 544 | BH5: 544 | BI5: 569 | BK5: 594 | BM5: 625 | BO5: 669 | BQ5: 669 | BS5: 669 | BU5: 669 | BY5: 669 | CC5: 669 | CG5: =CG6 -> 669 | CJ5: O9 | CK5: 355 | CL5: 355 | CM5: 355 | CN5: 355 | CP5: 355 | CR5: 355 | CT5: 355 | CV5: 355 | CX5: 355 | CZ5: 355 | DB5: 355 | DD5: 355 | DF5: 355 | DH5: 355 | DJ5: 355 | DN5: 355 | DR5: 355 | DV5: 355 | DX5: AK401 | DY5: 1809 | DZ5: 1809 | EA5: 1809 | EB5: 1809 | EC5: 2229 | ED5: 2241 | EE5: 2337 | EF5: 2463 | EG5: 2622 | EH5: 2244 | EI5: 2391 | EJ5: 2550 | EK5: 2652 | EL5: 2778 | EM5: 2361 | EN5: 2523 | EO5: 2670 | EP5: 2235 | EQ5: 2238 | ER5: 2541 | ES5: 2820 | ET5: 3015 | EU5: 3042 | EV5: 3066 | EW5: 3066 | EX5: 3066 | EY5: 3066 | FA5: AK401 | FB5: 1356 | FC5: 1356 | FD5: 1356 | FE5: 1356 | FF5: 1671 | FG5: 1680 | FH5: 1752 | FI5: 1884 | FJ5: 2013 | FK5: 1683 | FL5: 1881 | FM5: 2028 | FN5: 2250 | FO5: 2367 | FP5: 1800 | FQ5: 1986 | FR5: 2217 | FS5: 1677 | FT5: 1767 | FU5: 2067 | FV5: 2343 | FW5: 2415 | FX5: 2532 | FY5: 2583 | FZ5: 2583 | GA5: 2583 | GB5: 2583 | GD5: 544 | GE5: NY218 | GG5: AK401 | GH5: SITKA, AK
B6: O8 | C6: 10668.9 | D6: 11018.7 | E6: 11250.6 | F6: 11315.4 | H6: 11604.9 | J6: 12088.2 | L6: 12200.7 | N6: 12659.7 | P6: 12791.7 | R6: 13187.1 | T6: 13759.5 | V6: 14287.2 | X6: 14639.4 | Z6: 14639.4 | AB6: 14639.4 | AD6: 14639.4 | AF6: 15006 | AH6: 15006 | AJ6: 15380.7 | AL6: 15380.7 | AN6: 15380.7 | AP6: 15380.7 | AT6: O8 | AU6: 100 | AV6: 100 | AW6: 100 | AX6: 394 | AY6: 400 | AZ6: 400 | BA6: 419 | BB6: 450 | BC6: 463 | BD6: 494 | BE6: 506 | BF6: 525 | BG6: 544 | BH6: 544 | BI6: 569 | BK6: 594 | BM6: 625 | BO6: 669 | BQ6: 669 | BS6: 669 | BU6: 669 | BY6: 669 | CC6: 669 | CG6: =CG7 -> 669 | CJ6: O8 | CK6: 355 | CL6: 355 | CM6: 355 | CN6: 355 | CP6: 355 | CR6: 355 | CT6: 355 | CV6: 355 | CX6: 355 | CZ6: 355 | DB6: 355 | DD6: 355 | DF6: 355 | DH6: 355 | DJ6: 355 | DN6: 355 | DR6: 355 | DV6: 355 | DX6: AK402 | DY6: 1944 | DZ6: 1944 | EA6: 1944 | EB6: 1944 | EC6: 2421 | ED6: 2433 | EE6: 2487 | EF6: 2568 | EG6: 2685 | EH6: 2436 | EI6: 2523 | EJ6: 2622 | EK6: 2709 | EL6: 2817 | EM6: 2502 | EN6: 2604 | EO6: 2724 | EP6: 2427 | EQ6: 2430 | ER6: 2619 | ES6: 2850 | ET6: 3018 | EU6: 3042 | EV6: 3069 | EW6: 3069 | EX6: 3069 | EY6: 3069 | FA6: AK402 | FB6: 1458 | FC6: 1458 | FD6: 1458 | FE6: 1458 | FF6: 1815 | FG6: 1824 | FH6: 1866 | FI6: 2031 | FJ6: 2178 | FK6: 1827 | FL6: 2028 | FM6: 2196 | FN6: 2433 | FO6: 2505 | FP6: 1935 | FQ6: 2148 | FR6: 2409 | FS6: 1821 | FT6: 1884 | FU6: 2241 | FV6: 2487 | FW6: 2532 | FX6: 2604 | FY6: 2658 | FZ6: 2658 | GA6: 2658 | GB6: 2658 | GD6: 601 | GE6: XX499 | GG6: AK402 | GH6: JUNEAU, AK
B7: O7 | C7: 8865.3 | D7: 9276.9 | E7: 9467.7 | F7: 9619.2 | H7: 9893.4 | J7: 10164.6 | L7: 10477.8 | N7: 10790.1 | P7: 11103.6 | R7: 12088.2 | T7: 12919.2 | V7: 12919.2 | X7: 12919.2 | Z7: 12919.2 | AB7: 12985.5 | AD7: 12985.5 | AF7: 13245.3 | AH7: 13245.3 | AJ7: 13245.3 | AL7: 13245.3 | AN7: 13245.3 | AP7: 13245.3 | AT7: O7 | AU7: 100 | AV7: 100 | AW7: 100 | AX7: 394 | AY7: 400 | AZ7: 400 | BA7: 419 | BB7: 450 | BC7: 463 | BD7: 494 | BE7: 506 | BF7: 525 | BG7: 544 | BH7: 544 | BI7: 569 | BK7: 594 | BM7: 625 | BO7: 669 | BQ7: 669 | BS7: 669 | BU7: 669 | BY7: 669 | CC7: 669 | CG7: =CG8 -> 669 | CJ7: O7 | CK7: 355 | CL7: 355 | CM7: 355 | CN7: 355 | CP7: 355 | CR7: 355 | CT7: 355 | CV7: 355 | CX7: 355 | CZ7: 355 | DB7: 355 | DD7: 355 | DF7: 355 | DH7: 355 | DJ7: 355 | DN7: 355 | DR7: 355 | DV7: 355 | DX7: AK403 | DY7: 1791 | DZ7: 1791 | EA7: 1791 | EB7: 1791 | EC7: 2184 | ED7: 2196 | EE7: 2292 | EF7: 2415 | EG7: 2565 | EH7: 2199 | EI7: 2346 | EJ7: 2499 | EK7: 2592 | EL7: 2709 | EM7: 2316 | EN7: 2472 | EO7: 2610 | EP7: 2190 | EQ7: 2193 | ER7: 2490 | ES7: 2748 | ET7: 2928 | EU7: 2955 | EV7: 2979 | EW7: 2979 | EX7: 2979 | EY7: 2979 | FA7: AK403 | FB7: 1344 | FC7: 1344 | FD7: 1344 | FE7: 1344 | FF7: 1638 | FG7: 1647 | FH7: 1719 | FI7: 1860 | FJ7: 1980 | FK7: 1674 | FL7: 1857 | FM7: 1995 | FN7: 2205 | FO7: 2319 | FP7: 1782 | FQ7: 1956 | FR7: 2172 | FS7: 1644 | FT7: 1755 | FU7: 2034 | FV7: 2295 | FW7: 2367 | FX7: 2481 | FY7: 2532 | FZ7: 2532 | GA7: 2532 | GB7: 2532 | GD7: 602 | GE7: XX499 | GG7: AK403 | GH7: KODIAK ISLAND, AK
B8: O7 1 Drill | C8: 295.51 | D8: 309.23 | E8: 315.59 | F8: 320.64 | H8: 329.78 | J8: 338.82 | L8: 349.26 | N8: 359.67 | P8: 370.12 | R8: 402.94 | T8: 430.64 | V8: 430.64 | X8: 430.64 | Z8: 430.64 | AB8: 432.85 | AD8: 432.85 | AF8: 441.51 | AH8: 441.51 | AJ8: 441.51 | AL8: 441.51 | AN8: 441.51 | AP8: 441.51 | AT8: O6 | AU8: 100 | AV8: 100 | AW8: 100 | AX8: 394 | AY8: 400 | AZ8: 400 | BA8: 419 | BB8: 450 | BC8: 463 | BD8: 494 | BE8: 506 | BF8: 525 | BG8: 544 | BH8: 544 | BI8: 569 | BK8: 594 | BM8: 625 | BO8: 669 | BQ8: 669 | BS8: 669 | BU8: 669 | BY8: 669 | CC8: 669 | CG8: 669 | CJ8: O6 | CK8: 595 | CL8: 595 | CM8: 595 | CN8: 595 | CP8: 595 | CR8: 595 | CT8: 595 | CV8: 595 | CX8: 835 | CZ8: 835 | DB8: 835 | DD8: 835 | DF8: 835 | DH8: 835 | DJ8: 835 | DN8: 835 | DR8: 835 | DV8: 835 | DX8: AK404 | DY8: 1626 | DZ8: 1626 | EA8: 1626 | EB8: 1626 | EC8: 2028 | ED8: 2040 | EE8: 2193 | EF8: 2382 | EG8: 2553 | EH8: 2043 | EI8: 2274 | EJ8: 2505 | EK8: 2571 | EL8: 2655 | EM8: 2229 | EN8: 2466 | EO8: 2583 | EP8: 2034 | EQ8: 2037 | ER8: 2493 | ES8: 2682 | ET8: 2811 | EU8: 2832 | EV8: 2856 | EW8: 2856 | EX8: 2856 | EY8: 2856 | FA8: AK404 | FB8: 1221 | FC8: 1221 | FD8: 1221 | FE8: 1221 | FF8: 1521 | FG8: 1530 | FH8: 1644 | FI8: 1788 | FJ8: 1914 | FK8: 1533 | FL8: 1707 | FM8: 1917 | FN8: 2064 | FO8: 2235 | FP8: 1671 | FQ8: 1851 | FR8: 2016 | FS8: 1527 | FT8: 1647 | FU8: 1920 | FV8: 2205 | FW8: 2313 | FX8: 2487 | FY8: 2538 | FZ8: 2538 | GA8: 2538 | GB8: 2538 | GD8: 603 | GE8: XX499 | GG8: AK404 | GH8: ANCHORAGE, AK
B9: O7 4 Drills | C9: 1182.04 | D9: 1236.92 | E9: 1262.36 | F9: 1282.56 | H9: 1319.12 | J9: 1355.28 | L9: 1397.04 | N9: 1438.68 | P9: 1480.48 | R9: 1611.76 | T9: 1722.56 | V9: 1722.56 | X9: 1722.56 | Z9: 1722.56 | AB9: 1731.4 | AD9: 1731.4 | AF9: 1766.04 | AH9: 1766.04 | AJ9: 1766.04 | AL9: 1766.04 | AN9: 1766.04 | AP9: 1766.04 | AT9: O5 | AU9: 100 | AV9: 100 | AW9: 100 | AX9: 394 | AY9: 394 | AZ9: 394 | BA9: 394 | BB9: 400 | BC9: 431 | BD9: 438 | BE9: 456 | BF9: 463 | BG9: 463 | BH9: 463 | BI9: 500 | BK9: 525 | BM9: 550 | BO9: 594 | BQ9: 594 | BS9: 594 | BU9: 594 | BY9: 594 | CC9: 594 | CG9: 594 | CJ9: O5 | CK9: 595 | CL9: 595 | CM9: 595 | CN9: 595 | CP9: 595 | CR9: 595 | CT9: 595 | CV9: 595 | CX9: 790 | CZ9: 835 | DB9: 835 | DD9: 835 | DF9: 835 | DH9: 835 | DJ9: 835 | DN9: 835 | DR9: 835 | DV9: 835 | DX9: AK405 | DY9: 1602 | DZ9: 1602 | EA9: 1602 | EB9: 1602 | EC9: 2067 | ED9: 2079 | EE9: 2199 | EF9: 2352 | EG9: 2505 | EH9: 2082 | EI9: 2265 | EJ9: 2454 | EK9: 2526 | EL9: 2616 | EM9: 2229 | EN9: 2421 | EO9: 2538 | EP9: 2073 | EQ9: 2076 | ER9: 2445 | ES9: 2643 | ET9: 2784 | EU9: 2808 | EV9: 2829 | EW9: 2829 | EX9: 2829 | EY9: 2829 | FA9: AK405 | FB9: 1203 | FC9: 1203 | FD9: 1203 | FE9: 1203 | FF9: 1551 | FG9: 1557 | FH9: 1650 | FI9: 1764 | FJ9: 1878 | FK9: 1563 | FL9: 1698 | FM9: 1881 | FN9: 2094 | FO9: 2235 | FP9: 1671 | FQ9: 1815 | FR9: 2055 | FS9: 1554 | FT9: 1653 | FU9: 1890 | FV9: 2208 | FW9: 2295 | FX9: 2436 | FY9: 2487 | FZ9: 2487 | GA9: 2487 | GB9: 2487 | GD9: 604 | GE9: XX499 | GG9: AK405 | GH9: FAIRBANKS, AK
B10: O6 | C10: 6722.7 | D10: 7385.7 | E10: 7870.5 | F10: 7870.5 | H10: 7900.5 | J10: 8239.2 | L10: 8283.9 | N10: 8283.9 | P10: 8754.3 | R10: 9586.8 | T10: 10075.2 | V10: 10563.3 | X10: 10841.4 | Z10: 11123.1 | AB10: 11668.2 | AD10: 11668.2 | AF10: 11901.3 | AH10: 11901.3 | AJ10: 11901.3 | AL10: 11901.3 | AN10: 11901.3 | AP10: 11901.3 | AT10: O4 | AU10: 100 | AV10: 100 | AW10: 100 | AX10: 325 | AY10: 331 | AZ10: 350 | BA10: 356 | BB10: 375 | BC10: 388 | BD10: 388 | BE10: 394 | BF10: 394 | BG10: 419 | BH10: 419 | BI10: 475 | BK10: 494 | BM10: 506 | BO10: 525 | BQ10: 525 | BS10: 525 | BU10: 525 | BY10: 525 | CC10: 525 | CG10: 525 | CJ10: O4 | CK10: 365 | CL10: 365 | CM10: 365 | CN10: 525 | CP10: 595 | CR10: 705 | CT10: 705 | CV10: 705 | CX10: 790 | CZ10: 790 | DB10: 790 | DD10: 790 | DF10: 790 | DH10: 790 | DJ10: 790 | DN10: 790 | DR10: 790 | DV10: 790 | DX10: AL001 | DY10: 816 | DZ10: 816 | EA10: 816 | EB10: 816 | EC10: 837 | ED10: 1110 | EE10: 1125 | EF10: 1134 | EG10: 1182 | EH10: 1122 | EI10: 1131 | EJ10: 1143 | EK10: 1206 | EL10: 1308 | EM10: 1128 | EN10: 1137 | EO10: 1218 | EP10: 873 | EQ10: 1107 | ER10: 1140 | ES10: 1338 | ET10: 1497 | EU10: 1506 | EV10: 1518 | EW10: 1518 | EX10: 1518 | EY10: 1518 | FA10: AL001 | FB10: 663 | FC10: 663 | FD10: 663 | FE10: 663 | FF10: 738 | FG10: 831 | FH10: 846 | FI10: 894 | FJ10: 975 | FK10: 843 | FL10: 891 | FM10: 984 | FN10: 1110 | FO10: 1116 | FP10: 852 | FQ10: 957 | FR10: 1104 | FS10: 789 | FT10: 849 | FU10: 1011 | FV10: 1113 | FW10: 1122 | FX10: 1131 | FY10: 1140 | FZ10: 1140 | GA10: 1140 | GB10: 1140 | GD10: 605 | GE10: XX499 | GG10: AL001 | GH10: ANNISTON/FORT MCCLELLAN, AL
B11: O6 1 Drill | C11: 224.09 | D11: 246.19 | E11: 262.35 | F11: 262.35 | H11: 263.35 | J11: 274.64 | L11: 276.13 | N11: 276.13 | P11: 291.81 | R11: 319.56 | T11: 335.84 | V11: 352.11 | X11: 361.38 | Z11: 370.77 | AB11: 388.94 | AD11: 388.94 | AF11: 396.71 | AH11: 396.71 | AJ11: 396.71 | AL11: 396.71 | AN11: 396.71 | AP11: 396.71 | AT11: O3 | AU11: 100 | AV11: 100 | AW11: 100 | AX11: 263 | AY11: 281 | AZ11: 325 | BA11: 331 | BB11: 344 | BC11: 356 | BD11: 375 | BE11: 394 | BF11: 394 | BG11: 419 | BH11: 419 | BI11: 456 | BK11: 475 | BM11: 494 | BO11: 506 | BQ11: 506 | BS11: 506 | BU11: 506 | BY11: 506 | CC11: 506 | CG11: 506 | CJ11: O3 | CK11: 355 | CL11: 355 | CM11: 355 | CN11: 510 | CP11: 595 | CR11: 705 | CT11: 705 | CV11: 705 | CX11: 705 | CZ11: 705 | DB11: 705 | DD11: 705 | DF11: 705 | DH11: 705 | DJ11: 705 | DN11: 705 | DR11: 705 | DV11: 705 | DX11: AL002 | DY11: 1014 | DZ11: 1014 | EA11: 1014 | EB11: 1014 | EC11: 1059 | ED11: 1161 | EE11: 1317 | EF11: 1491 | EG11: 1641 | EH11: 1173 | EI11: 1392 | EJ11: 1605 | EK11: 1656 | EL11: 1719 | EM11: 1350 | EN11: 1569 | EO11: 1662 | EP11: 1074 | EQ11: 1158 | ER11: 1596 | ES11: 1737 | ET11: 1833 | EU11: 1848 | EV11: 1860 | EW11: 1860 | EX11: 1860 | EY11: 1860 | FA11: AL002 | FB11: 843 | FC11: 843 | FD11: 843 | FE11: 843 | FF11: 915 | FG11: 969 | FH11: 1011 | FI11: 1119 | FJ11: 1230 | FK11: 1008 | FL11: 1080 | FM11: 1233 | FN11: 1251 | FO11: 1356 | FP11: 1059 | FQ11: 1176 | FR11: 1248 | FS11: 966 | FT11: 1047 | FU11: 1236 | FV11: 1326 | FW11: 1425 | FX11: 1587 | FY11: 1620 | FZ11: 1620 | GA11: 1620 | GB11: 1620 | GD11: 606 | GE11: XX499 | GG11: AL002 | GH11: FORT RUCKER, AL
B12: O6 4 Drills | C12: 896.36 | D12: 984.76 | E12: 1049.4 | F12: 1049.4 | H12: 1053.4 | J12: 1098.56 | L12: 1104.52 | N12: 1104.52 | P12: 1167.24 | R12: 1278.24 | T12: 1343.36 | V12: 1408.44 | X12: 1445.52 | Z12: 1483.08 | AB12: 1555.76 | AD12: 1555.76 | AF12: 1586.84 | AH12: 1586.84 | AJ12: 1586.84 | AL12: 1586.84 | AN12: 1586.84 | AP12: 1586.84 | AT12: O3E | AU12: =AU11 -> 100 | AV12: =AV11 -> 100 | AW12: 100 | AX12: 263 | AY12: 281 | AZ12: 325 | BA12: 331 | BB12: 344 | BC12: 356 | BD12: 375 | BE12: 394 | BF12: 394 | BG12: 419 | BH12: 419 | BI12: 456 | BK12: 475 | BM12: 494 | BO12: 506 | BQ12: 506 | BS12: 506 | BU12: 506 | BY12: 506 | CC12: 506 | CG12: 506 | CJ12: O3E | CK12: 355 | CL12: 355 | CM12: 355 | CN12: 510 | CP12: 595 | CR12: 705 | CT12: 705 | CV12: 705 | CX12: 705 | CZ12: 705 | DB12: 705 | DD12: 705 | DF12: 705 | DH12: 705 | DJ12: 705 | DN12: 705 | DR12: 705 | DV12: 705 | DX12: AL003 | DY12: 1167 | DZ12: 1167 | EA12: 1167 | EB12: 1167 | EC12: 1233 | ED12: 1407 | EE12: 1419 | EF12: 1434 | EG12: 1497 | EH12: 1416 | EI12: 1428 | EJ12: 1452 | EK12: 1518 | EL12: 1605 | EM12: 1422 | EN12: 1443 | EO12: 1530 | EP12: 1257 | EQ12: 1404 | ER12: 1449 | ES12: 1632 | ET12: 1764 | EU12: 1779 | EV12: 1791 | EW12: 1791 | EX12: 1791 | EY12: 1791 | FA12: AL003 | FB12: 954 | FC12: 954 | FD12: 954 | FE12: 954 | FF12: 1041 | FG12: 1101 | FH12: 1167 | FI12: 1269 | FJ12: 1317 | FK12: 1152 | FL12: 1266 | FM12: 1326 | FN12: 1404 | FO12: 1419 | FP12: 1233 | FQ12: 1308 | FR12: 1398 | FS12: 1098 | FT12: 1215 | FU12: 1341 | FV12: 1410 | FW12: 1422 | FX12: 1431 | FY12: 1461 | FZ12: 1461 | GA12: 1461 | GB12: 1461 | GD12: 610 | GE12: XX499 | GG12: AL003 | GH12: HUNTSVILLE, AL
B13: O5 | C13: 5604.3 | D13: 6313.5 | E13: 6750 | F13: 6832.5 | H13: 7105.5 | J13: 7268.4 | L13: 7627.2 | N13: 7890.9 | P13: 8230.8 | R13: 8751.3 | T13: 8998.5 | V13: 9243.6 | X13: 9521.4 | Z13: 9521.4 | AB13: 9521.4 | AD13: 9521.4 | AF13: 9521.4 | AH13: 9521.4 | AJ13: 9521.4 | AL13: 9521.4 | AN13: 9521.4 | AP13: 9521.4 | AT13: O2 | AU13: 100 | AV13: 100 | AW13: 100 | AX13: 263 | AY13: 281 | AZ13: 325 | BA13: 331 | BB13: 344 | BC13: 356 | BD13: 375 | BE13: 394 | BF13: 394 | BG13: 419 | BH13: 419 | BI13: 438 | BK13: 456 | BM13: 475 | BO13: 494 | BQ13: 494 | BS13: 494 | BU13: 494 | BY13: 494 | CC13: 494 | CG13: 494 | CJ13: O2 | CK13: 305 | CL13: 305 | CM13: 305 | CN13: 305 | CP13: 305 | CR13: 305 | CT13: 425 | CV13: 425 | CX13: 425 | CZ13: 425 | DB13: 425 | DD13: 425 | DF13: 425 | DH13: 425 | DJ13: 425 | DN13: 425 | DR13: 425 | DV13: 425 | DX13: AL004 | DY13: 1188 | DZ13: 1188 | EA13: 1188 | EB13: 1188 | EC13: 1191 | ED13: 1299 | EE13: 1338 | EF13: 1386 | EG13: 1479 | EH13: 1308 | EI13: 1362 | EJ13: 1422 | EK13: 1500 | EL13: 1599 | EM13: 1347 | EN13: 1407 | EO13: 1515 | EP13: 1200 | EQ13: 1296 | ER13: 1419 | ES13: 1629 | ET13: 1782 | EU13: 1794 | EV13: 1809 | EW13: 1809 | EX13: 1809 | EY13: 1809 | FA13: AL004 | FB13: 1008 | FC13: 1008 | FD13: 1008 | FE13: 1008 | FF13: 1119 | FG13: 1188 | FH13: 1203 | FI13: 1215 | FJ13: 1239 | FK13: 1200 | FL13: 1212 | FM13: 1245 | FN13: 1305 | FO13: 1350 | FP13: 1209 | FQ13: 1233 | FR13: 1290 | FS13: 1185 | FT13: 1206 | FU13: 1254 | FV13: 1335 | FW13: 1362 | FX13: 1404 | FY13: 1434 | FZ13: 1434 | GA13: 1434 | GB13: 1434 | GD13: 611 | GE13: XX499 | GG13: AL004 | GH13: MOBILE, AL
B14: O5 1 Drill | C14: 186.81 | D14: 210.45 | E14: 225 | F14: 227.75 | H14: 236.85 | J14: 242.28 | L14: 254.24 | N14: 263.03 | P14: 274.36 | R14: 291.71 | T14: 299.95 | V14: 308.12 | X14: 317.38 | Z14: 317.38 | AB14: 317.38 | AD14: 317.38 | AF14: 317.38 | AH14: 317.38 | AJ14: 317.38 | AL14: 317.38 | AN14: 317.38 | AP14: 317.38 | AT14: O2E | AU14: =AU13 -> 100 | AV14: =AV13 -> 100 | AW14: 100 | AX14: 263 | AY14: 281 | AZ14: 325 | BA14: 331 | BB14: 344 | BC14: 356 | BD14: 375 | BE14: 394 | BF14: 394 | BG14: 419 | BH14: 419 | BI14: 438 | BK14: 456 | BM14: 475 | BO14: 494 | BQ14: 494 | BS14: 494 | BU14: 494 | BY14: 494 | CC14: 494 | CG14: 494 | CJ14: O2E | CK14: 305 | CL14: 305 | CM14: 305 | CN14: 305 | CP14: 305 | CR14: 305 | CT14: 425 | CV14: 425 | CX14: 425 | CZ14: 425 | DB14: 425 | DD14: 425 | DF14: 425 | DH14: 425 | DJ14: 425 | DN14: 425 | DR14: 425 | DV14: 425 | DX14: AL005 | DY14: 1104 | DZ14: 1104 | EA14: 1104 | EB14: 1104 | EC14: 1128 | ED14: 1149 | EE14: 1224 | EF14: 1311 | EG14: 1449 | EH14: 1158 | EI14: 1263 | EJ14: 1371 | EK14: 1479 | EL14: 1608 | EM14: 1239 | EN14: 1353 | EO14: 1497 | EP14: 1134 | EQ14: 1146 | ER14: 1368 | ES14: 1650 | ET14: 1854 | EU14: 1869 | EV14: 1881 | EW14: 1881 | EX14: 1881 | EY14: 1881 | FA14: AL005 | FB14: 960 | FC14: 960 | FD14: 960 | FE14: 960 | FF14: 1029 | FG14: 1080 | FH14: 1110 | FI14: 1134 | FJ14: 1140 | FK14: 1107 | FL14: 1131 | FM14: 1143 | FN14: 1161 | FO14: 1242 | FP14: 1128 | FQ14: 1137 | FR14: 1149 | FS14: 1077 | FT14: 1122 | FU14: 1146 | FV14: 1239 | FW14: 1392 | FX14: 1401 | FY14: 1410 | FZ14: 1410 | GA14: 1410 | GB14: 1410 | GD14: 612 | GE14: XX499 | GG14: AL005 | GH14: MONTGOMERY, AL
B15: O5 4 Drills | C15: 747.24 | D15: 841.8 | E15: 900 | F15: 911 | H15: 947.4 | J15: 969.12 | L15: 1016.96 | N15: 1052.12 | P15: 1097.44 | R15: 1166.84 | T15: 1199.8 | V15: 1232.48 | X15: 1269.52 | Z15: 1269.52 | AB15: 1269.52 | AD15: 1269.52 | AF15: 1269.52 | AH15: 1269.52 | AJ15: 1269.52 | AL15: 1269.52 | AN15: 1269.52 | AP15: 1269.52 | AT15: O1 | AU15: 100 | AV15: 100 | AW15: 100 | AX15: 263 | AY15: 281 | AZ15: 325 | BA15: 331 | BB15: 344 | BC15: 356 | BD15: 375 | BE15: 394 | BF15: 394 | BG15: 419 | BH15: 419 | BI15: 438 | BK15: 456 | BM15: 475 | BO15: 494 | BQ15: 494 | BS15: 494 | BU15: 494 | BY15: 494 | CC15: 494 | CG15: 494 | CJ15: O1 | CK15: 230 | CL15: 230 | CM15: 230 | CN15: 230 | CP15: 230 | CR15: 230 | CT15: 425 | CV15: 425 | CX15: 425 | CZ15: 425 | DB15: 425 | DD15: 425 | DF15: 425 | DH15: 425 | DJ15: 425 | DN15: 425 | DR15: 425 | DV15: 425 | DX15: AL006 | DY15: 999 | DZ15: 999 | EA15: 999 | EB15: 999 | EC15: 1074 | ED15: 1281 | EE15: 1422 | EF15: 1575 | EG15: 1743 | EH15: 1293 | EI15: 1488 | EJ15: 1680 | EK15: 1770 | EL15: 1884 | EM15: 1452 | EN15: 1647 | EO15: 1785 | EP15: 1098 | EQ15: 1278 | ER15: 1671 | ES15: 1920 | ET15: 2094 | EU15: 2109 | EV15: 2127 | EW15: 2127 | EX15: 2127 | EY15: 2127 | FA15: AL006 | FB15: 810 | FC15: 810 | FD15: 810 | FE15: 810 | FF15: 876 | FG15: 957 | FH15: 1068 | FI15: 1182 | FJ15: 1308 | FK15: 981 | FL15: 1116 | FM15: 1311 | FN15: 1341 | FO15: 1455 | FP15: 1089 | FQ15: 1236 | FR15: 1338 | FS15: 921 | FT15: 1071 | FU15: 1314 | FV15: 1440 | FW15: 1572 | FX15: 1662 | FY15: 1698 | FZ15: 1698 | GA15: 1698 | GB15: 1698 | GD15: 613 | GE15: XX499 | GG15: AL006 | GH15: AUBURN, AL
B16: O4 | C16: 4835.4 | D16: 5597.4 | E16: 5971.2 | F16: 6054 | H16: 6400.8 | J16: 6772.8 | L16: 7236 | N16: 7596.3 | P16: 7846.5 | R16: 7990.5 | T16: 8073.9 | V16: 8073.9 | X16: 8073.9 | Z16: 8073.9 | AB16: 8073.9 | AD16: 8073.9 | AF16: 8073.9 | AH16: 8073.9 | AJ16: 8073.9 | AL16: 8073.9 | AN16: 8073.9 | AP16: 8073.9 | AT16: O1E | AU16: =AU15 -> 100 | AV16: =AV15 -> 100 | AW16: 100 | AX16: 263 | AY16: 281 | AZ16: 325 | BA16: 331 | BB16: 344 | BC16: 356 | BD16: 375 | BE16: 394 | BF16: 394 | BG16: 419 | BH16: 419 | BI16: 438 | BK16: 456 | BM16: 475 | BO16: 494 | BQ16: 494 | BS16: 494 | BU16: 494 | BY16: 494 | CC16: 494 | CG16: 494 | CJ16: O1E | CK16: 230 | CL16: 230 | CM16: 230 | CN16: 230 | CP16: 230 | CR16: 230 | CT16: 425 | CV16: 425 | CX16: 425 | CZ16: 425 | DB16: 425 | DD16: 425 | DF16: 425 | DH16: 425 | DJ16: 425 | DN16: 425 | DR16: 425 | DV16: 425 | DX16: AL007 | DY16: 1323 | DZ16: 1323 | EA16: 1323 | EB16: 1323 | EC16: 1452 | ED16: 1614 | EE16: 1635 | EF16: 1659 | EG16: 1752 | EH16: 1623 | EI16: 1647 | EJ16: 1680 | EK16: 1782 | EL16: 1908 | EM16: 1638 | EN16: 1671 | EO16: 1800 | EP16: 1473 | EQ16: 1611 | ER16: 1677 | ES16: 1950 | ET16: 2145 | EU16: 2163 | EV16: 2178 | EW16: 2178 | EX16: 2178 | EY16: 2178 | FA16: AL007 | FB16: 1032 | FC16: 1032 | FD16: 1032 | FE16: 1032 | FF16: 1128 | FG16: 1206 | FH16: 1323 | FI16: 1485 | FJ16: 1530 | FK16: 1284 | FL16: 1482 | FM16: 1539 | FN16: 1614 | FO16: 1638 | FP16: 1452 | FQ16: 1521 | FR16: 1605 | FS16: 1188 | FT16: 1410 | FU16: 1551 | FV16: 1629 | FW16: 1641 | FX16: 1662 | FY16: 1698 | FZ16: 1698 | GA16: 1698 | GB16: 1698 | GD16: 614 | GE16: XX499 | GG16: AL007 | GH16: BIRMINGHAM, AL
B17: O4 1 Drill | C17: 161.18 | D17: 186.58 | E17: 199.04 | F17: 201.8 | H17: 213.36 | J17: 225.76 | L17: 241.2 | N17: 253.21 | P17: 261.55 | R17: 266.35 | T17: 269.13 | V17: 269.13 | X17: 269.13 | Z17: 269.13 | AB17: 269.13 | AD17: 269.13 | AF17: 269.13 | AH17: 269.13 | AJ17: 269.13 | AL17: 269.13 | AN17: 269.13 | AP17: 269.13 | AT17: W5 | AU17: 210 | AV17: 210 | AW17: 210 | AX17: 263 | AY17: 300 | AZ17: 506 | BA17: 544 | BB17: 544 | BC17: 544 | BD17: 544 | BE17: 613 | BF17: 656 | BG17: 700 | BH17: 700 | BI17: 750 | BK17: 750 | BM17: 750 | BO17: 750 | BQ17: 750 | BS17: 750 | BU17: 750 | BY17: 750 | CC17: 750 | CG17: 750 | CJ17: W5 | CK17: 285 | CL17: 375 | CM17: 375 | CN17: 425 | CP17: 425 | CR17: 425 | CT17: 425 | CV17: 425 | CX17: 425 | CZ17: 425 | DB17: 425 | DD17: 425 | DF17: 425 | DH17: 425 | DJ17: 425 | DN17: 425 | DR17: 425 | DV17: 425 | DX17: AR010 | DY17: 1197 | DZ17: 1197 | EA17: 1197 | EB17: 1197 | EC17: 1200 | ED17: 1281 | EE17: 1299 | EF17: 1323 | EG17: 1395 | EH17: 1290 | EI17: 1311 | EJ17: 1344 | EK17: 1416 | EL17: 1506 | EM17: 1302 | EN17: 1335 | EO17: 1428 | EP17: 1206 | EQ17: 1278 | ER17: 1341 | ES17: 1533 | ET17: 1674 | EU17: 1686 | EV17: 1698 | EW17: 1698 | EX17: 1698 | EY17: 1698 | FA17: AR010 | FB17: 984 | FC17: 984 | FD17: 984 | FE17: 984 | FF17: 1116 | FG17: 1197 | FH17: 1212 | FI17: 1224 | FJ17: 1233 | FK17: 1209 | FL17: 1221 | FM17: 1239 | FN17: 1281 | FO17: 1302 | FP17: 1218 | FQ17: 1230 | FR17: 1272 | FS17: 1194 | FT17: 1215 | FU17: 1245 | FV17: 1293 | FW17: 1305 | FX17: 1323 | FY17: 1353 | FZ17: 1353 | GA17: 1353 | GB17: 1353 | GD17: 616 | GE17: XX499 | GG17: AR010 | GH17: LITTLE ROCK, AR
B18: O4 4 Drills | C18: 644.72 | D18: 746.32 | E18: 796.16 | F18: 807.2 | H18: 853.44 | J18: 903.04 | L18: 964.8 | N18: 1012.84 | P18: 1046.2 | R18: 1065.4 | T18: 1076.52 | V18: 1076.52 | X18: 1076.52 | Z18: 1076.52 | AB18: 1076.52 | AD18: 1076.52 | AF18: 1076.52 | AH18: 1076.52 | AJ18: 1076.52 | AL18: 1076.52 | AN18: 1076.52 | AP18: 1076.52 | AT18: W4 | AU18: 210 | AV18: 210 | AW18: 210 | AX18: 263 | AY18: 300 | AZ18: 506 | BA18: 544 | BB18: 544 | BC18: 544 | BD18: 544 | BE18: 613 | BF18: 656 | BG18: 700 | BH18: 700 | BI18: 750 | BK18: 750 | BM18: 750 | BO18: 750 | BQ18: 750 | BS18: 750 | BU18: 750 | BY18: 750 | CC18: 750 | CG18: 750 | CJ18: W4 | CK18: 285 | CL18: 375 | CM18: 375 | CN18: 425 | CP18: 425 | CR18: 425 | CT18: 425 | CV18: 425 | CX18: 425 | CZ18: 425 | DB18: 425 | DD18: 425 | DF18: 425 | DH18: 425 | DJ18: 425 | DN18: 425 | DR18: 425 | DV18: 425 | DX18: AR012 | DY18: 759 | DZ18: 759 | EA18: 759 | EB18: 759 | EC18: 813 | ED18: 1116 | EE18: 1161 | EF18: 1209 | EG18: 1308 | EH18: 1128 | EI18: 1182 | EJ18: 1242 | EK18: 1335 | EL18: 1446 | EM18: 1167 | EN18: 1230 | EO18: 1350 | EP18: 852 | EQ18: 1113 | ER18: 1239 | ES18: 1482 | ET18: 1656 | EU18: 1668 | EV18: 1680 | EW18: 1680 | EX18: 1680 | EY18: 1680 | FA18: AR012 | FB18: 570 | FC18: 570 | FD18: 570 | FE18: 570 | FF18: 633 | FG18: 834 | FH18: 870 | FI18: 906 | FJ18: 981 | FK18: 846 | FL18: 888 | FM18: 984 | FN18: 1125 | FO18: 1170 | FP18: 876 | FQ18: 948 | FR18: 1110 | FS18: 699 | FT18: 873 | FU18: 1005 | FV18: 1158 | FW18: 1242 | FX18: 1251 | FY18: 1260 | FZ18: 1260 | GA18: 1260 | GB18: 1260 | GD18: 617 | GE18: XX499 | GG18: AR012 | GH18: FORT CHAFFEE/FORT SMITH, AR
B19: O3 | C19: 4251.6 | D19: 4819.2 | E19: 5201.4 | F19: 5671.5 | H19: 5943.6 | J19: 6241.5 | L19: 6434.4 | N19: 6751.2 | P19: 6916.8 | R19: 6916.8 | T19: 6916.8 | V19: 6916.8 | X19: 6916.8 | Z19: 6916.8 | AB19: 6916.8 | AD19: 6916.8 | AF19: 6916.8 | AH19: 6916.8 | AJ19: 6916.8 | AL19: 6916.8 | AN19: 6916.8 | AP19: 6916.8 | AT19: W3 | AU19: 210 | AV19: 210 | AW19: 210 | AX19: 263 | AY19: 300 | AZ19: 475 | BA19: 494 | BB19: 500 | BC19: 506 | BD19: 544 | BE19: 613 | BF19: 656 | BG19: 700 | BH19: 700 | BI19: 744 | BK19: 744 | BM19: 750 | BO19: 750 | BQ19: 750 | BS19: 750 | BU19: 750 | BY19: 750 | CC19: 750 | CG19: 750 | CJ19: W3 | CK19: 285 | CL19: 375 | CM19: 375 | CN19: 425 | CP19: 425 | CR19: 425 | CT19: 425 | CV19: 425 | CX19: 425 | CZ19: 425 | DB19: 425 | DD19: 425 | DF19: 425 | DH19: 425 | DJ19: 425 | DN19: 425 | DR19: 425 | DV19: 425 | DX19: AR411 | DY19: 1017 | DZ19: 1017 | EA19: 1017 | EB19: 1017 | EC19: 1143 | ED19: 1176 | EE19: 1323 | EF19: 1488 | EG19: 1641 | EH19: 1185 | EI19: 1392 | EJ19: 1596 | EK19: 1662 | EL19: 1740 | EM19: 1356 | EN19: 1563 | EO19: 1671 | EP19: 1149 | EQ19: 1173 | ER19: 1587 | ES19: 1761 | ET19: 1884 | EU19: 1896 | EV19: 1911 | EW19: 1911 | EX19: 1911 | EY19: 1911 | FA19: AR411 | FB19: 840 | FC19: 840 | FD19: 840 | FE19: 840 | FF19: 864 | FG19: 900 | FH19: 1020 | FI19: 1152 | FJ19: 1230 | FK19: 981 | FL19: 1149 | FM19: 1233 | FN19: 1257 | FO19: 1359 | FP19: 1143 | FQ19: 1173 | FR19: 1254 | FS19: 891 | FT19: 1104 | FU19: 1236 | FV19: 1332 | FW19: 1425 | FX19: 1578 | FY19: 1614 | FZ19: 1614 | GA19: 1614 | GB19: 1614 | GD19: 622 | GE19: XX499 | GG19: AR411 | GH19: FAYETTEVILLE, AR
B20: O3 1 Drill | C20: 141.72 | D20: 160.64 | E20: 173.38 | F20: 189.05 | H20: 198.12 | J20: 208.05 | L20: 214.48 | N20: 225.04 | P20: 230.56 | R20: 230.56 | T20: 230.56 | V20: 230.56 | X20: 230.56 | Z20: 230.56 | AB20: 230.56 | AD20: 230.56 | AF20: 230.56 | AH20: 230.56 | AJ20: 230.56 | AL20: 230.56 | AN20: 230.56 | AP20: 230.56 | AT20: W2 | AU20: 210 | AV20: 210 | AW20: 210 | AX20: 263 | AY20: 300 | AZ20: 456 | BA20: 463 | BB20: 463 | BC20: 475 | BD20: 544 | BE20: 594 | BF20: 594 | BG20: 656 | BH20: 656 | BI20: 700 | BK20: 700 | BM20: 700 | BO20: 700 | BQ20: 700 | BS20: 700 | BU20: 700 | BY20: 700 | CC20: 700 | CG20: 700 | CJ20: W2 | CK20: 285 | CL20: 375 | CM20: 375 | CN20: 425 | CP20: 425 | CR20: 425 | CT20: 425 | CV20: 425 | CX20: 425 | CZ20: 425 | DB20: 425 | DD20: 425 | DF20: 425 | DH20: 425 | DJ20: 425 | DN20: 425 | DR20: 425 | DV20: 425 | DX20: AZ013 | DY20: 1581 | DZ20: 1581 | EA20: 1581 | EB20: 1581 | EC20: 1680 | ED20: 1806 | EE20: 1863 | EF20: 1932 | EG20: 2016 | EH20: 1815 | EI20: 1893 | EJ20: 1977 | EK20: 2031 | EL20: 2100 | EM20: 1875 | EN20: 1962 | EO20: 2040 | EP20: 1698 | EQ20: 1803 | ER20: 1974 | ES20: 2118 | ET20: 2220 | EU20: 2238 | EV20: 2253 | EW20: 2253 | EX20: 2253 | EY20: 2253 | FA20: AZ013 | FB20: 1215 | FC20: 1215 | FD20: 1215 | FE20: 1215 | FF20: 1383 | FG20: 1485 | FH20: 1581 | FI20: 1707 | FJ20: 1740 | FK20: 1557 | FL20: 1704 | FM20: 1746 | FN20: 1818 | FO20: 1878 | FP20: 1680 | FQ20: 1734 | FR20: 1797 | FS20: 1479 | FT20: 1650 | FU20: 1758 | FV20: 1863 | FW20: 1899 | FX20: 1959 | FY20: 2001 | FZ20: 2001 | GA20: 2001 | GB20: 2001 | GD20: 623 | GE20: XX499 | GG20: AZ013 | GH20: PHOENIX, AZ
B21: O3 4 Drills | C21: 566.88 | D21: 642.56 | E21: 693.52 | F21: 756.2 | H21: 792.48 | J21: 832.2 | L21: 857.92 | N21: 900.16 | P21: 922.24 | R21: 922.24 | T21: 922.24 | V21: 922.24 | X21: 922.24 | Z21: 922.24 | AB21: 922.24 | AD21: 922.24 | AF21: 922.24 | AH21: 922.24 | AJ21: 922.24 | AL21: 922.24 | AN21: 922.24 | AP21: 922.24 | AT21: W1 | AU21: 180 | AV21: 190 | AW21: 195 | AX21: 263 | AY21: 300 | AZ21: 306 | BA21: 350 | BB21: 438 | BC21: 475 | BD21: 525 | BE21: 569 | BF21: 569 | BG21: 594 | BH21: 594 | BI21: 631 | BK21: 656 | BM21: 656 | BO21: 656 | BQ21: 656 | BS21: 656 | BU21: 656 | BY21: 656 | CC21: 656 | CG21: 656 | CJ21: W1 | CK21: 285 | CL21: 375 | CM21: 375 | CN21: 425 | CP21: 425 | CR21: 425 | CT21: 425 | CV21: 425 | CX21: 425 | CZ21: 425 | DB21: 425 | DD21: 425 | DF21: 425 | DH21: 425 | DJ21: 425 | DN21: 425 | DR21: 425 | DV21: 425 | DX21: AZ014 | DY21: 894 | DZ21: 894 | EA21: 894 | EB21: 894 | EC21: 948 | ED21: 1113 | EE21: 1185 | EF21: 1266 | EG21: 1359 | EH21: 1122 | EI21: 1221 | EJ21: 1323 | EK21: 1377 | EL21: 1443 | EM21: 1200 | EN21: 1305 | EO21: 1383 | EP21: 969 | EQ21: 1110 | ER21: 1320 | ES21: 1461 | ET21: 1560 | EU21: 1572 | EV21: 1584 | EW21: 1584 | EX21: 1584 | EY21: 1584 | FA21: AZ014 | FB21: 711 | FC21: 711 | FD21: 711 | FE21: 711 | FF21: 786 | FG21: 837 | FH21: 891 | FI21: 984 | FJ21: 1029 | FK21: 882 | FL21: 981 | FM21: 1035 | FN21: 1128 | FO21: 1203 | FP21: 948 | FQ21: 1020 | FR21: 1104 | FS21: 834 | FT21: 933 | FU21: 1050 | FV21: 1185 | FW21: 1230 | FX21: 1305 | FY21: 1335 | FZ21: 1335 | GA21: 1335 | GB21: 1335 | GD21: 624 | GE21: XX499 | GG21: AZ014 | GH21: FORT HUACHUCA, AZ
B22: O2 | C22: 3673.5 | D22: 4183.8 | E22: 4818.3 | F22: 4981.2 | H22: 5083.8 | J22: 5083.8 | L22: 5083.8 | N22: 5083.8 | P22: 5083.8 | R22: 5083.8 | T22: 5083.8 | V22: 5083.8 | X22: 5083.8 | Z22: 5083.8 | AB22: 5083.8 | AD22: 5083.8 | AF22: 5083.8 | AH22: 5083.8 | AJ22: 5083.8 | AL22: 5083.8 | AN22: 5083.8 | AP22: 5083.8 | AT22: E9 | AU22: 135 | AV22: 135 | AW22: 160 | AX22: 381 | AY22: 400 | AZ22: 438 | BA22: 438 | BB22: 469 | BC22: 688 | BD22: 700 | BE22: 700 | BF22: 713 | BG22: 725 | BH22: 750 | BI22: 750 | BK22: 750 | BM22: 750 | BO22: 750 | BQ22: 750 | BS22: 750 | BU22: 750 | BY22: 750 | CC22: 750 | CG22: 750 | CJ22: E9 | CK22: 425 | CL22: 425 | CM22: 425 | CN22: 425 | CP22: 425 | CR22: 425 | CT22: 425 | CV22: 425 | CX22: 425 | CZ22: 425 | DB22: 600 | DD22: 600 | DF22: 600 | DH22: 600 | DJ22: 600 | DN22: 600 | DR22: 600 | DV22: 600 | DX22: AZ015 | DY22: 1227 | DZ22: 1227 | EA22: 1227 | EB22: 1227 | EC22: 1314 | ED22: 1539 | EE22: 1566 | EF22: 1593 | EG22: 1635 | EH22: 1551 | EI22: 1578 | EJ22: 1617 | EK22: 1647 | EL22: 1686 | EM22: 1569 | EN22: 1608 | EO22: 1650 | EP22: 1341 | EQ22: 1536 | ER22: 1614 | ES22: 1695 | ET22: 1752 | EU22: 1764 | EV22: 1776 | EW22: 1776 | EX22: 1776 | EY22: 1776 | FA22: AZ015 | FB22: 921 | FC22: 921 | FD22: 921 | FE22: 921 | FF22: 1053 | FG22: 1152 | FH22: 1227 | FI22: 1359 | FJ22: 1425 | FK22: 1206 | FL22: 1356 | FM22: 1434 | FN22: 1545 | FO22: 1569 | FP22: 1314 | FQ22: 1413 | FR22: 1533 | FS22: 1137 | FT22: 1287 | FU22: 1455 | FV22: 1560 | FW22: 1575 | FX22: 1599 | FY22: 1632 | FZ22: 1632 | GA22: 1632 | GB22: 1632 | GD22: 627 | GE22: XX499 | GG22: AZ015 | GH22: DAVIS-MONTHAN AFB, AZ
B23: O2 1 Drill | C23: 122.45 | D23: 139.46 | E23: 160.61 | F23: 166.04 | H23: 169.46 | J23: 169.46 | L23: 169.46 | N23: 169.46 | P23: 169.46 | R23: 169.46 | T23: 169.46 | V23: 169.46 | X23: 169.46 | Z23: 169.46 | AB23: 169.46 | AD23: 169.46 | AF23: 169.46 | AH23: 169.46 | AJ23: 169.46 | AL23: 169.46 | AN23: 169.46 | AP23: 169.46 | AT23: E8 | AU23: 135 | AV23: 135 | AW23: 160 | AX23: 381 | AY23: 400 | AZ23: 438 | BA23: 438 | BB23: 469 | BC23: 688 | BD23: 700 | BE23: 700 | BF23: 713 | BG23: 725 | BH23: 750 | BI23: 750 | BK23: 750 | BM23: 750 | BO23: 750 | BQ23: 750 | BS23: 750 | BU23: 750 | BY23: 750 | CC23: 750 | CG23: 750 | CJ23: E8 | CK23: 415 | CL23: 415 | CM23: 415 | CN23: 415 | CP23: 415 | CR23: 415 | CT23: 415 | CV23: 415 | CX23: 415 | CZ23: 415 | DB23: 550 | DD23: 550 | DF23: 550 | DH23: 550 | DJ23: 550 | DN23: 550 | DR23: 550 | DV23: 550 | DX23: AZ016 | DY23: 963 | DZ23: 963 | EA23: 963 | EB23: 963 | EC23: 1071 | ED23: 1218 | EE23: 1266 | EF23: 1323 | EG23: 1398 | EH23: 1227 | EI23: 1290 | EJ23: 1362 | EK23: 1413 | EL23: 1479 | EM23: 1275 | EN23: 1347 | EO23: 1419 | EP23: 1089 | EQ23: 1215 | ER23: 1359 | ES23: 1497 | ET23: 1593 | EU23: 1605 | EV23: 1617 | EW23: 1617 | EX23: 1617 | EY23: 1617 | FA23: AZ016 | FB23: 723 | FC23: 723 | FD23: 723 | FE23: 723 | FF23: 804 | FG23: 909 | FH23: 963 | FI23: 1101 | FJ23: 1140 | FK23: 936 | FL23: 1098 | FM23: 1149 | FN23: 1227 | FO23: 1278 | FP23: 1071 | FQ23: 1134 | FR23: 1209 | FS23: 855 | FT23: 1038 | FU23: 1161 | FV23: 1263 | FW23: 1293 | FX23: 1344 | FY23: 1371 | FZ23: 1371 | GA23: 1371 | GB23: 1371 | GD23: 631 | GE23: XX499 | GG23: AZ016 | GH23: YUMA, AZ
B24: O2 4 Drills | C24: 489.8 | D24: 557.84 | E24: 642.44 | F24: 664.16 | H24: 677.84 | J24: 677.84 | L24: 677.84 | N24: 677.84 | P24: 677.84 | R24: 677.84 | T24: 677.84 | V24: 677.84 | X24: 677.84 | Z24: 677.84 | AB24: 677.84 | AD24: 677.84 | AF24: 677.84 | AH24: 677.84 | AJ24: 677.84 | AL24: 677.84 | AN24: 677.84 | AP24: 677.84 | AT24: E7 | AU24: 135 | AV24: 135 | AW24: 160 | AX24: 381 | AY24: 400 | AZ24: 438 | BA24: 438 | BB24: 469 | BC24: 688 | BD24: 700 | BE24: 700 | BF24: 713 | BG24: 725 | BH24: 750 | BI24: 750 | BK24: 750 | BM24: 750 | BO24: 750 | BQ24: 750 | BS24: 750 | BU24: 750 | BY24: 750 | CC24: 750 | CG24: 750 | CJ24: E7 | CK24: 405 | CL24: 405 | CM24: 405 | CN24: 405 | CP24: 405 | CR24: 405 | CT24: 405 | CV24: 405 | CX24: 405 | CZ24: 405 | DB24: 405 | DD24: 405 | DF24: 405 | DH24: 405 | DJ24: 405 | DN24: 405 | DR24: 405 | DV24: 405 | DX24: CA018 | DY24: 3384 | DZ24: 3384 | EA24: 3384 | EB24: 3384 | EC24: 3534 | ED24: 3669 | EE24: 3789 | EF24: 3924 | EG24: 4113 | EH24: 3678 | EI24: 3846 | EJ24: 4011 | EK24: 4155 | EL24: 4326 | EM24: 3816 | EN24: 3984 | EO24: 4179 | EP24: 3552 | EQ24: 3666 | ER24: 4005 | ES24: 4383 | ET24: 4653 | EU24: 4695 | EV24: 4737 | EW24: 4737 | EX24: 4737 | EY24: 4737 | FA24: CA018 | FB24: 2634 | FC24: 2634 | FD24: 2634 | FE24: 2634 | FF24: 3024 | FG24: 3243 | FH24: 3387 | FI24: 3561 | FJ24: 3597 | FK24: 3339 | FL24: 3558 | FM24: 3606 | FN24: 3696 | FO24: 3819 | FP24: 3534 | FQ24: 3591 | FR24: 3660 | FS24: 3231 | FT24: 3486 | FU24: 3615 | FV24: 3795 | FW24: 3870 | FX24: 3993 | FY24: 4077 | FZ24: 4077 | GA24: 4077 | GB24: 4077 | GD24: 636 | GE24: XX499 | GG24: CA018 | GH24: OAKLAND, CA
B25: O1 | C25: 3188.4 | D25: 3318.9 | E25: 4011.9 | F25: 4011.9 | H25: 4011.9 | J25: 4011.9 | L25: 4011.9 | N25: 4011.9 | P25: 4011.9 | R25: 4011.9 | T25: 4011.9 | V25: 4011.9 | X25: 4011.9 | Z25: 4011.9 | AB25: 4011.9 | AD25: 4011.9 | AF25: 4011.9 | AH25: 4011.9 | AJ25: 4011.9 | AL25: 4011.9 | AN25: 4011.9 | AP25: 4011.9 | AT25: E6 | AU25: 135 | AV25: 135 | AW25: 160 | AX25: 350 | AY25: 375 | AZ25: 394 | BA25: 406 | BB25: 438 | BC25: 638 | BD25: 656 | BE25: 656 | BF25: 656 | BG25: 675 | BH25: 694 | BI25: 713 | BK25: 731 | BM25: 750 | BO25: 750 | BQ25: 750 | BS25: 750 | BU25: 750 | BY25: 750 | CC25: 750 | CG25: 750 | CJ25: E6 | CK25: 155 | CL25: 170 | CM25: 175 | CN25: 300 | CP25: 325 | CR25: 375 | CT25: 375 | CV25: 375 | CX25: 375 | CZ25: 375 | DB25: 375 | DD25: 375 | DF25: 375 | DH25: 375 | DJ25: 375 | DN25: 375 | DR25: 375 | DV25: 375 | DX25: CA019 | DY25: 4311 | DZ25: 4311 | EA25: 4311 | EB25: 4311 | EC25: 4368 | ED25: 5052 | EE25: 5100 | EF25: 5151 | EG25: 5229 | EH25: 5067 | EI25: 5124 | EJ25: 5187 | EK25: 5247 | EL25: 5322 | EM25: 5109 | EN25: 5172 | EO25: 5256 | EP25: 4446 | EQ25: 5046 | ER25: 5184 | ES25: 5343 | ET25: 5457 | EU25: 5508 | EV25: 5559 | EW25: 5559 | EX25: 5559 | EY25: 5559 | FA25: CA019 | FB25: 3312 | FC25: 3312 | FD25: 3312 | FE25: 3312 | FF25: 3933 | FG25: 4254 | FH25: 4308 | FI25: 4503 | FJ25: 4716 | FK25: 4302 | FL25: 4500 | FM25: 4740 | FN25: 5067 | FO25: 5112 | FP25: 4368 | FQ25: 4671 | FR25: 5049 | FS25: 4251 | FT25: 4350 | FU25: 4806 | FV25: 5097 | FW25: 5124 | FX25: 5169 | FY25: 5274 | FZ25: 5274 | GA25: 5274 | GB25: 5274 | GD25: 637 | GE25: XX499 | GG25: CA019 | GH25: SAN FRANCISCO, CA
B26: O1 1 Drill | C26: 106.28 | D26: 110.63 | E26: 133.73 | F26: 133.73 | H26: 133.73 | J26: 133.73 | L26: 133.73 | N26: 133.73 | P26: 133.73 | R26: 133.73 | T26: 133.73 | V26: 133.73 | X26: 133.73 | Z26: 133.73 | AB26: 133.73 | AD26: 133.73 | AF26: 133.73 | AH26: 133.73 | AJ26: 133.73 | AL26: 133.73 | AN26: 133.73 | AP26: 133.73 | AT26: E5 | AU26: 70 | AV26: 80 | AW26: 160 | AX26: 350 | AY26: 375 | AZ26: 394 | BA26: 406 | BB26: 438 | BC26: 638 | BD26: 638 | BE26: 638 | BF26: 638 | BG26: 638 | BH26: 638 | BI26: 638 | BK26: 638 | BM26: 638 | BO26: 638 | BQ26: 638 | BS26: 638 | BU26: 638 | BY26: 638 | CC26: 638 | CG26: 638 | CJ26: E5 | CK26: 140 | CL26: 155 | CM26: 155 | CN26: 250 | CP26: 275 | CR26: 275 | CT26: 275 | CV26: 275 | CX26: 275 | CZ26: 275 | DB26: 275 | DD26: 275 | DF26: 275 | DH26: 275 | DJ26: 275 | DN26: 275 | DR26: 275 | DV26: 275 | DX26: CA021 | DY26: 927 | DZ26: 927 | EA26: 927 | EB26: 927 | EC26: 1014 | ED26: 1107 | EE26: 1254 | EF26: 1419 | EG26: 1599 | EH26: 1116 | EI26: 1323 | EJ26: 1530 | EK26: 1629 | EL26: 1752 | EM26: 1287 | EN26: 1494 | EO26: 1644 | EP26: 1029 | EQ26: 1104 | ER26: 1521 | ES26: 1791 | ET26: 1980 | EU26: 1995 | EV26: 2010 | EW26: 2010 | EX26: 2010 | EY26: 2010 | FA26: CA021 | FB26: 696 | FC26: 696 | FD26: 696 | FE26: 696 | FF26: 765 | FG26: 843 | FH26: 942 | FI26: 1065 | FJ26: 1200 | FK26: 906 | FL26: 1032 | FM26: 1203 | FN26: 1236 | FO26: 1347 | FP26: 1014 | FQ26: 1122 | FR26: 1233 | FS26: 837 | FT26: 987 | FU26: 1206 | FV26: 1344 | FW26: 1485 | FX26: 1512 | FY26: 1545 | FZ26: 1545 | GA26: 1545 | GB26: 1545 | GD26: 638 | GE26: XX499 | GG26: CA021 | GH26: CHINA LAKE, CA
B27: O1 4 Drills | C27: 425.12 | D27: 442.52 | E27: 534.92 | F27: 534.92 | H27: 534.92 | J27: 534.92 | L27: 534.92 | N27: 534.92 | P27: 534.92 | R27: 534.92 | T27: 534.92 | V27: 534.92 | X27: 534.92 | Z27: 534.92 | AB27: 534.92 | AD27: 534.92 | AF27: 534.92 | AH27: 534.92 | AJ27: 534.92 | AL27: 534.92 | AN27: 534.92 | AP27: 534.92 | AT27: E4 | AU27: 70 | AV27: 80 | AW27: 160 | AX27: 350 | AY27: 363 | AZ27: 363 | BA27: 363 | BB27: 363 | BC27: 488 | BD27: 488 | BE27: 488 | BF27: 488 | BG27: 488 | BH27: 488 | BI27: 488 | BK27: 488 | BM27: 488 | BO27: 488 | BQ27: 488 | BS27: 488 | BU27: 488 | BY27: 488 | CC27: 488 | CG27: 488 | CJ27: E4 | CK27: 80 | CL27: 95 | CM27: 100 | CN27: 245 | CP27: 245 | CR27: 245 | CT27: 245 | CV27: 245 | CX27: 245 | CZ27: 245 | DB27: 245 | DD27: 245 | DF27: 245 | DH27: 245 | DJ27: 245 | DN27: 245 | DR27: 245 | DV27: 245 | DX27: CA022 | DY27: 1458 | DZ27: 1458 | EA27: 1458 | EB27: 1458 | EC27: 1527 | ED27: 1707 | EE27: 1722 | EF27: 1731 | EG27: 1800 | EH27: 1719 | EI27: 1728 | EJ27: 1740 | EK27: 1833 | EL27: 1971 | EM27: 1725 | EN27: 1734 | EO27: 1851 | EP27: 1548 | EQ27: 1704 | ER27: 1737 | ES27: 2016 | ET27: 2232 | EU27: 2250 | EV27: 2268 | EW27: 2268 | EX27: 2268 | EY27: 2268 | FA27: CA022 | FB27: 1212 | FC27: 1212 | FD27: 1212 | FE27: 1212 | FF27: 1320 | FG27: 1389 | FH27: 1455 | FI27: 1563 | FJ27: 1614 | FK27: 1443 | FL27: 1560 | FM27: 1623 | FN27: 1707 | FO27: 1713 | FP27: 1527 | FQ27: 1605 | FR27: 1701 | FS27: 1386 | FT27: 1506 | FU27: 1638 | FV27: 1710 | FW27: 1716 | FX27: 1719 | FY27: 1737 | FZ27: 1737 | GA27: 1737 | GB27: 1737 | GD27: 641 | GE27: XX499 | GG27: CA022 | GH27: FRESNO, CA
B28: O3E | F28: 5671.5 | H28: 5943.6 | J28: 6241.5 | L28: 6434.4 | N28: 6751.2 | P28: 7018.8 | R28: 7172.7 | T28: 7381.8 | V28: 7381.8 | X28: 7381.8 | Z28: 7381.8 | AB28: 7381.8 | AD28: 7381.8 | AF28: 7381.8 | AH28: 7381.8 | AJ28: 7381.8 | AL28: 7381.8 | AN28: 7381.8 | AP28: 7381.8 | AT28: E3 | AU28: 50 | AV28: 60 | AW28: 100 | AX28: 125 | AY28: 125 | AZ28: 125 | BA28: 125 | BB28: 125 | BC28: 125 | BD28: 125 | BE28: 125 | BF28: 125 | BG28: 125 | BH28: 125 | BI28: 125 | BK28: 125 | BM28: 125 | BO28: 125 | BQ28: 125 | BS28: 125 | BU28: 125 | BY28: 125 | CC28: 125 | CG28: 125 | CJ28: E3 | CK28: 80 | CL28: 90 | CM28: 95 | CN28: 95 | CP28: 90 | CR28: 90 | CT28: 90 | CV28: 90 | CX28: 90 | CZ28: 90 | DB28: 90 | DD28: 90 | DF28: 90 | DH28: 90 | DJ28: 90 | DN28: 90 | DR28: 90 | DV28: 90 | DX28: CA023 | DY28: 1218 | DZ28: 1218 | EA28: 1218 | EB28: 1218 | EC28: 1350 | ED28: 1521 | EE28: 1551 | EF28: 1587 | EG28: 1671 | EH28: 1533 | EI28: 1569 | EJ28: 1614 | EK28: 1695 | EL28: 1797 | EM28: 1557 | EN28: 1605 | EO28: 1710 | EP28: 1371 | EQ28: 1518 | ER28: 1611 | ES28: 1827 | ET28: 1983 | EU28: 1998 | EV28: 2013 | EW28: 2013 | EX28: 2013 | EY28: 2013 | FA28: CA023 | FB28: 945 | FC28: 945 | FD28: 945 | FE28: 945 | FF28: 1029 | FG28: 1140 | FH28: 1221 | FI28: 1386 | FJ28: 1434 | FK28: 1179 | FL28: 1383 | FM28: 1443 | FN28: 1527 | FO28: 1560 | FP28: 1350 | FQ28: 1425 | FR28: 1515 | FS28: 1083 | FT28: 1308 | FU28: 1458 | FV28: 1548 | FW28: 1566 | FX28: 1596 | FY28: 1629 | FZ28: 1629 | GA28: 1629 | GB28: 1629 | GD28: 646 | GE28: XX499 | GG28: CA023 | GH28: LEMOORE NAS, CA
B29: O3E 1 Drill | F29: 189.05 | H29: 198.12 | J29: 208.05 | L29: 214.48 | N29: 225.04 | P29: 233.96 | R29: 239.09 | T29: 246.06 | V29: 246.06 | X29: 246.06 | Z29: 246.06 | AB29: 246.06 | AD29: 246.06 | AF29: 246.06 | AH29: 246.06 | AJ29: 246.06 | AL29: 246.06 | AN29: 246.06 | AP29: 246.06 | AT29: E2 | AU29: 50 | AV29: 60 | AW29: 75 | AX29: 94 | AY29: 94 | AZ29: 94 | BA29: 94 | BB29: 94 | BC29: 94 | BD29: 94 | BE29: 94 | BF29: 94 | BG29: 94 | BH29: 94 | BI29: 94 | BK29: 94 | BM29: 94 | BO29: 94 | BQ29: 94 | BS29: 94 | BU29: 94 | BY29: 94 | CC29: 94 | CG29: 94 | CJ29: E2 | CK29: 75 | CL29: 90 | CM29: 90 | CN29: 90 | CP29: 90 | CR29: 90 | CT29: 90 | CV29: 90 | CX29: 90 | CZ29: 90 | DB29: 90 | DD29: 90 | DF29: 90 | DH29: 90 | DJ29: 90 | DN29: 90 | DR29: 90 | DV29: 90 | DX29: CA024 | DY29: 2469 | DZ29: 2469 | EA29: 2469 | EB29: 2469 | EC29: 2592 | ED29: 3033 | EE29: 3114 | EF29: 3198 | EG29: 3288 | EH29: 3048 | EI29: 3153 | EJ29: 3258 | EK29: 3303 | EL29: 3360 | EM29: 3129 | EN29: 3237 | EO29: 3309 | EP29: 2646 | EQ29: 3030 | ER29: 3252 | ES29: 3372 | ET29: 3459 | EU29: 3489 | EV29: 3519 | EW29: 3519 | EX29: 3519 | EY29: 3519 | FA29: CA024 | FB29: 1857 | FC29: 1857 | FD29: 1857 | FE29: 1857 | FF29: 2172 | FG29: 2349 | FH29: 2469 | FI29: 2682 | FJ29: 2817 | FK29: 2430 | FL29: 2679 | FM29: 2832 | FN29: 3054 | FO29: 3132 | FP29: 2592 | FQ29: 2787 | FR29: 3030 | FS29: 2340 | FT29: 2553 | FU29: 2874 | FV29: 3114 | FW29: 3162 | FX29: 3240 | FY29: 3306 | FZ29: 3306 | GA29: 3306 | GB29: 3306 | GD29: 647 | GE29: XX499 | GG29: CA024 | GH29: CAMP PENDLETON, CA
B30: O3E 4 Drills | F30: 756.2 | H30: 792.48 | J30: 832.2 | L30: 857.92 | N30: 900.16 | P30: 935.84 | R30: 956.36 | T30: 984.24 | V30: 984.24 | X30: 984.24 | Z30: 984.24 | AB30: 984.24 | AD30: 984.24 | AF30: 984.24 | AH30: 984.24 | AJ30: 984.24 | AL30: 984.24 | AN30: 984.24 | AP30: 984.24 | AT30: E1 | AU30: 50 | AV30: 50 | AW30: 50 | AX30: 63 | AY30: 63 | AZ30: 63 | BA30: 63 | BB30: 63 | BC30: 63 | BD30: 63 | BE30: 63 | BF30: 63 | BG30: 63 | BH30: 63 | BI30: 63 | BK30: 63 | BM30: 63 | BO30: 63 | BQ30: 63 | BS30: 63 | BU30: 63 | BY30: 63 | CC30: 63 | CG30: 63 | CJ30: E1 | CK30: 75 | CL30: 75 | CM30: 75 | CN30: 75 | CP30: 75 | CR30: 75 | CT30: 75 | CV30: 75 | CX30: 75 | CZ30: 75 | DB30: 75 | DD30: 75 | DF30: 75 | DH30: 75 | DJ30: 75 | DN30: 75 | DR30: 75 | DV30: 75 | DX30: CA025 | DY30: 2562 | DZ30: 2562 | EA30: 2562 | EB30: 2562 | EC30: 2610 | ED30: 2685 | EE30: 2850 | EF30: 3036 | EG30: 3201 | EH30: 2694 | EI30: 2928 | EJ30: 3159 | EK30: 3222 | EL30: 3300 | EM30: 2886 | EN30: 3120 | EO30: 3231 | EP30: 2622 | EQ30: 2682 | ER30: 3147 | ES30: 3321 | ET30: 3441 | EU30: 3471 | EV30: 3501 | EW30: 3501 | EX30: 3501 | EY30: 3501 | FA30: CA025 | FB30: 2085 | FC30: 2085 | FD30: 2085 | FE30: 2085 | FF30: 2361 | FG30: 2514 | FH30: 2559 | FI30: 2628 | FJ30: 2643 | FK30: 2556 | FL30: 2625 | FM30: 2649 | FN30: 2721 | FO30: 2892 | FP30: 2610 | FQ30: 2640 | FR30: 2673 | FS30: 2511 | FT30: 2598 | FU30: 2652 | FV30: 2859 | FW30: 2967 | FX30: 3141 | FY30: 3204 | FZ30: 3204 | GA30: 3204 | GB30: 3204 | GD30: 650 | GE30: XX499 | GG30: CA025 | GH30: VENTURA, CA
B31: O2E | F31: 4981.2 | H31: 5083.8 | J31: 5245.5 | L31: 5518.8 | N31: 5730 | P31: 5887.2 | R31: 5887.2 | T31: 5887.2 | V31: 5887.2 | X31: 5887.2 | Z31: 5887.2 | AB31: 5887.2 | AD31: 5887.2 | AF31: 5887.2 | AH31: 5887.2 | AJ31: 5887.2 | AL31: 5887.2 | AN31: 5887.2 | AP31: 5887.2 | DX31: CA026 | DY31: 1836 | DZ31: 1836 | EA31: 1836 | EB31: 1836 | EC31: 1899 | ED31: 1989 | EE31: 2070 | EF31: 2163 | EG31: 2265 | EH31: 1998 | EI31: 2112 | EJ31: 2226 | EK31: 2283 | EL31: 2355 | EM31: 2088 | EN31: 2205 | EO31: 2292 | EP31: 1911 | EQ31: 1986 | ER31: 2220 | ES31: 2373 | ET31: 2484 | EU31: 2502 | EV31: 2523 | EW31: 2523 | EX31: 2523 | EY31: 2523 | FA31: CA026 | FB31: 1524 | FC31: 1524 | FD31: 1524 | FE31: 1524 | FF31: 1683 | FG31: 1776 | FH31: 1836 | FI31: 1920 | FJ31: 1941 | FK31: 1824 | FL31: 1917 | FM31: 1947 | FN31: 2007 | FO31: 2091 | FP31: 1899 | FQ31: 1938 | FR31: 1980 | FS31: 1773 | FT31: 1881 | FU31: 1953 | FV31: 2070 | FW31: 2124 | FX31: 2208 | FY31: 2253 | FZ31: 2253 | GA31: 2253 | GB31: 2253 | GD31: 652 | GE31: XX499 | GG31: CA026 | GH31: VANDENBERG AFB, CA
B32: O2E 1 Drill | F32: 166.04 | H32: 169.46 | J32: 174.85 | L32: 183.96 | N32: 191 | P32: 196.24 | R32: 196.24 | T32: 196.24 | V32: 196.24 | X32: 196.24 | Z32: 196.24 | AB32: 196.24 | AD32: 196.24 | AF32: 196.24 | AH32: 196.24 | AJ32: 196.24 | AL32: 196.24 | AN32: 196.24 | AP32: 196.24 | DX32: CA027 | DY32: 2931 | DZ32: 2931 | EA32: 2931 | EB32: 2931 | EC32: 3045 | ED32: 3267 | EE32: 3330 | EF32: 3402 | EG32: 3597 | EH32: 3279 | EI32: 3363 | EJ32: 3450 | EK32: 3654 | EL32: 3897 | EM32: 3342 | EN32: 3432 | EO32: 3690 | EP32: 3072 | EQ32: 3264 | ER32: 3447 | ES32: 3984 | ET32: 4374 | EU32: 4413 | EV32: 4452 | EW32: 4452 | EX32: 4452 | EY32: 4452 | FA32: CA027 | FB32: 2475 | FC32: 2475 | FD32: 2475 | FE32: 2475 | FF32: 2691 | FG32: 2820 | FH32: 2931 | FI32: 3090 | FJ32: 3156 | FK32: 2898 | FL32: 3087 | FM32: 3165 | FN32: 3282 | FO32: 3345 | FP32: 3045 | FQ32: 3141 | FR32: 3261 | FS32: 2811 | FT32: 3009 | FU32: 3183 | FV32: 3330 | FW32: 3369 | FX32: 3432 | FY32: 3504 | FZ32: 3504 | GA32: 3504 | GB32: 3504 | GD32: 653 | GE32: XX499 | GG32: CA027 | GH32: MARIN/SONOMA, CA
B33: O2E 4 Drills | F33: 664.16 | H33: 677.84 | J33: 699.4 | L33: 735.84 | N33: 764 | P33: 784.96 | R33: 784.96 | T33: 784.96 | V33: 784.96 | X33: 784.96 | Z33: 784.96 | AB33: 784.96 | AD33: 784.96 | AF33: 784.96 | AH33: 784.96 | AJ33: 784.96 | AL33: 784.96 | AN33: 784.96 | AP33: 784.96 | DX33: CA028 | DY33: 1077 | DZ33: 1077 | EA33: 1077 | EB33: 1077 | EC33: 1242 | ED33: 1587 | EE33: 1629 | EF33: 1674 | EG33: 1740 | EH33: 1599 | EI33: 1650 | EJ33: 1707 | EK33: 1755 | EL33: 1815 | EM33: 1638 | EN33: 1695 | EO33: 1761 | EP33: 1284 | EQ33: 1584 | ER33: 1704 | ES33: 1830 | ET33: 1920 | EU33: 1935 | EV33: 1950 | EW33: 1950 | EX33: 1950 | EY33: 1950 | FA33: CA028 | FB33: 849 | FC33: 849 | FD33: 849 | FE33: 849 | FF33: 933 | FG33: 1188 | FH33: 1221 | FI33: 1314 | FJ33: 1416 | FK33: 1200 | FL33: 1311 | FM33: 1431 | FN33: 1596 | FO33: 1638 | FP33: 1242 | FQ33: 1395 | FR33: 1581 | FS33: 963 | FT33: 1224 | FU33: 1461 | FV33: 1626 | FW33: 1650 | FX33: 1689 | FY33: 1725 | FZ33: 1725 | GA33: 1725 | GB33: 1725 | GD33: 656 | GE33: XX499 | GG33: CA028 | GH33: BARSTOW/FORT IRWIN, CA
B34: O1E | F34: 4011.9 | H34: 4284 | J34: 4442.4 | L34: 4604.4 | N34: 4763.4 | P34: 4981.2 | R34: 4981.2 | T34: 4981.2 | V34: 4981.2 | X34: 4981.2 | Z34: 4981.2 | AB34: 4981.2 | AD34: 4981.2 | AF34: 4981.2 | AH34: 4981.2 | AJ34: 4981.2 | AL34: 4981.2 | AN34: 4981.2 | AP34: 4981.2 | DX34: CA031 | DY34: 1953 | DZ34: 1953 | EA34: 1953 | EB34: 1953 | EC34: 2124 | ED34: 2214 | EE34: 2226 | EF34: 2235 | EG34: 2247 | EH34: 2223 | EI34: 2232 | EJ34: 2244 | EK34: 2256 | EL34: 2298 | EM34: 2229 | EN34: 2238 | EO34: 2262 | EP34: 2136 | EQ34: 2211 | ER34: 2241 | ES34: 2307 | ET34: 2367 | EU34: 2385 | EV34: 2406 | EW34: 2406 | EX34: 2406 | EY34: 2406 | FA34: CA031 | FB34: 1620 | FC34: 1620 | FD34: 1620 | FE34: 1620 | FF34: 1716 | FG34: 1794 | FH34: 1956 | FI34: 2145 | FJ34: 2166 | FK34: 1899 | FL34: 2142 | FM34: 2172 | FN34: 2211 | FO34: 2217 | FP34: 2124 | FQ34: 2160 | FR34: 2205 | FS34: 1779 | FT34: 2067 | FU34: 2178 | FV34: 2214 | FW34: 2220 | FX34: 2223 | FY34: 2253 | FZ34: 2253 | GA34: 2253 | GB34: 2253 | GD34: 659 | GE34: XX499 | GG34: CA031 | GH34: SAN BERNARDINO, CA
B35: O1E 1 Drill | F35: 133.73 | H35: 142.8 | J35: 148.08 | L35: 153.48 | N35: 158.78 | P35: 166.04 | R35: 166.04 | T35: 166.04 | V35: 166.04 | X35: 166.04 | Z35: 166.04 | AB35: 166.04 | AD35: 166.04 | AF35: 166.04 | AH35: 166.04 | AJ35: 166.04 | AL35: 166.04 | AN35: 166.04 | AP35: 166.04 | DX35: CA032 | DY35: 888 | DZ35: 888 | EA35: 888 | EB35: 888 | EC35: 942 | ED35: 1167 | EE35: 1251 | EF35: 1344 | EG35: 1443 | EH35: 1176 | EI35: 1293 | EJ35: 1407 | EK35: 1458 | EL35: 1521 | EM35: 1269 | EN35: 1386 | EO35: 1467 | EP35: 972 | EQ35: 1164 | ER35: 1404 | ES35: 1539 | ET35: 1635 | EU35: 1647 | EV35: 1656 | EW35: 1656 | EX35: 1656 | EY35: 1656 | FA35: CA032 | FB35: 723 | FC35: 723 | FD35: 723 | FE35: 723 | FF35: 783 | FG35: 870 | FH35: 939 | FI35: 1008 | FJ35: 1083 | FK35: 882 | FL35: 987 | FM35: 1086 | FN35: 1185 | FO35: 1272 | FP35: 951 | FQ35: 1041 | FR35: 1158 | FS35: 828 | FT35: 942 | FU35: 1089 | FV35: 1251 | FW35: 1305 | FX35: 1389 | FY35: 1419 | FZ35: 1419 | GA35: 1419 | GB35: 1419 | GD35: 660 | GE35: XX499 | GG35: CA032 | GH35: TWENTY NINE PALMS MCB, CA
B36: O1E 4 Drills | F36: 534.92 | H36: 571.2 | J36: 592.32 | L36: 613.92 | N36: 635.12 | P36: 664.16 | R36: 664.16 | T36: 664.16 | V36: 664.16 | X36: 664.16 | Z36: 664.16 | AB36: 664.16 | AD36: 664.16 | AF36: 664.16 | AH36: 664.16 | AJ36: 664.16 | AL36: 664.16 | AN36: 664.16 | AP36: 664.16 | DX36: CA033 | DY36: 1911 | DZ36: 1911 | EA36: 1911 | EB36: 1911 | EC36: 2034 | ED36: 2202 | EE36: 2301 | EF36: 2412 | EG36: 2526 | EH36: 2211 | EI36: 2349 | EJ36: 2484 | EK36: 2544 | EL36: 2619 | EM36: 2322 | EN36: 2460 | EO36: 2553 | EP36: 2055 | EQ36: 2199 | ER36: 2478 | ES36: 2640 | ET36: 2751 | EU36: 2775 | EV36: 2796 | EW36: 2796 | EX36: 2796 | EY36: 2796 | FA36: CA033 | FB36: 1548 | FC36: 1548 | FD36: 1548 | FE36: 1548 | FF36: 1698 | FG36: 1797 | FH36: 1914 | FI36: 2070 | FJ36: 2115 | FK36: 1878 | FL36: 2067 | FM36: 2124 | FN36: 2223 | FO36: 2325 | FP36: 2034 | FQ36: 2106 | FR36: 2193 | FS36: 1788 | FT36: 1995 | FU36: 2139 | FV36: 2304 | FW36: 2367 | FX36: 2466 | FY36: 2520 | FZ36: 2520 | GA36: 2520 | GB36: 2520 | GD36: 662 | GE36: XX499 | GG36: CA033 | GH36: BEALE AFB, CA
B37: W5 | V37: 7812.6 | X37: 8208.6 | Z37: 8503.8 | AB37: 8830.5 | AD37: 8830.5 | AF37: 9272.7 | AH37: 9272.7 | AJ37: 9735.6 | AL37: 9735.6 | AN37: 10223.4 | AP37: 10223.4 | DX37: CA034 | DY37: 1956 | DZ37: 1956 | EA37: 1956 | EB37: 1956 | EC37: 2100 | ED37: 2367 | EE37: 2382 | EF37: 2400 | EG37: 2478 | EH37: 2379 | EI37: 2391 | EJ37: 2415 | EK37: 2505 | EL37: 2619 | EM37: 2385 | EN37: 2406 | EO37: 2520 | EP37: 2133 | EQ37: 2364 | ER37: 2412 | ES37: 2655 | ET37: 2829 | EU37: 2853 | EV37: 2877 | EW37: 2877 | EX37: 2877 | EY37: 2877 | FA37: CA034 | FB37: 1578 | FC37: 1578 | FD37: 1578 | FE37: 1578 | FF37: 1725 | FG37: 1824 | FH37: 1959 | FI37: 2154 | FJ37: 2232 | FK37: 1914 | FL37: 2151 | FM37: 2244 | FN37: 2370 | FO37: 2385 | FP37: 2100 | FQ37: 2217 | FR37: 2361 | FS37: 1812 | FT37: 2052 | FU37: 2268 | FV37: 2376 | FW37: 2388 | FX37: 2397 | FY37: 2445 | FZ37: 2445 | GA37: 2445 | GB37: 2445 | GD37: 664 | GE37: XX499 | GG37: CA034 | GH37: SACRAMENTO, CA
B38: W5 1 Drill | V38: 260.42 | X38: 273.62 | Z38: 283.46 | AB38: 294.35 | AD38: 294.35 | AF38: 309.09 | AH38: 309.09 | AJ38: 324.52 | AL38: 324.52 | AN38: 340.78 | AP38: 340.78 | DX38: CA035 | DY38: 1800 | DZ38: 1800 | EA38: 1800 | EB38: 1800 | EC38: 1920 | ED38: 1947 | EE38: 1971 | EF38: 2007 | EG38: 2124 | EH38: 1956 | EI38: 1989 | EJ38: 2034 | EK38: 2160 | EL38: 2316 | EM38: 1977 | EN38: 2022 | EO38: 2181 | EP38: 1926 | EQ38: 1944 | ER38: 2031 | ES38: 2367 | ET38: 2610 | EU38: 2631 | EV38: 2652 | EW38: 2652 | EX38: 2652 | EY38: 2652 | FA38: CA035 | FB38: 1359 | FC38: 1359 | FD38: 1359 | FE38: 1359 | FF38: 1563 | FG38: 1686 | FH38: 1803 | FI38: 1929 | FJ38: 1935 | FK38: 1767 | FL38: 1926 | FM38: 1938 | FN38: 1947 | FO38: 1977 | FP38: 1920 | FQ38: 1932 | FR38: 1944 | FS38: 1677 | FT38: 1884 | FU38: 1941 | FV38: 1968 | FW38: 1986 | FX38: 2016 | FY38: 2058 | FZ38: 2058 | GA38: 2058 | GB38: 2058 | GD38: 667 | GE38: XX499 | GG38: CA035 | GH38: STOCKTON, CA
B39: W5 4 Drills | V39: 1041.68 | X39: 1094.48 | Z39: 1133.84 | AB39: 1177.4 | AD39: 1177.4 | AF39: 1236.36 | AH39: 1236.36 | AJ39: 1298.08 | AL39: 1298.08 | AN39: 1363.12 | AP39: 1363.12 | DX39: CA036 | DY39: 2451 | DZ39: 2451 | EA39: 2451 | EB39: 2451 | EC39: 2580 | ED39: 2601 | EE39: 2646 | EF39: 2703 | EG39: 2766 | EH39: 2610 | EI39: 2673 | EJ39: 2742 | EK39: 2775 | EL39: 2817 | EM39: 2655 | EN39: 2730 | EO39: 2781 | EP39: 2586 | EQ39: 2598 | ER39: 2739 | ES39: 2826 | ET39: 2889 | EU39: 2913 | EV39: 2937 | EW39: 2937 | EX39: 2937 | EY39: 2937 | FA39: CA036 | FB39: 1941 | FC39: 1941 | FD39: 1941 | FE39: 1941 | FF39: 2187 | FG39: 2331 | FH39: 2454 | FI39: 2586 | FJ39: 2592 | FK39: 2415 | FL39: 2583 | FM39: 2595 | FN39: 2604 | FO39: 2658 | FP39: 2580 | FQ39: 2589 | FR39: 2601 | FS39: 2319 | FT39: 2538 | FU39: 2598 | FV39: 2643 | FW39: 2673 | FX39: 2724 | FY39: 2781 | FZ39: 2781 | GA39: 2781 | GB39: 2781 | GD39: 669 | GE39: XX499 | GG39: CA036 | GH39: VALLEJO/TRAVIS AFB, CA
B40: W4 | C40: 4393.8 | D40: 4726.2 | E40: 4861.8 | F40: 4995.3 | H40: 5225.1 | J40: 5452.8 | L40: 5683.2 | N40: 6029.1 | P40: 6333 | R40: 6621.9 | T40: 6858.6 | V40: 7089.3 | X40: 7428 | Z40: 7706.4 | AB40: 8024.1 | AD40: 8024.1 | AF40: 8184 | AH40: 8184 | AJ40: 8184 | AL40: 8184 | AN40: 8184 | AP40: 8184 | DX40: CA037 | DY40: 2757 | DZ40: 2757 | EA40: 2757 | EB40: 2757 | EC40: 2916 | ED40: 3252 | EE40: 3285 | EF40: 3321 | EG40: 3372 | EH40: 3267 | EI40: 3303 | EJ40: 3348 | EK40: 3384 | EL40: 3432 | EM40: 3291 | EN40: 3336 | EO40: 3387 | EP40: 2958 | EQ40: 3249 | ER40: 3345 | ES40: 3441 | ET40: 3513 | EU40: 3543 | EV40: 3573 | EW40: 3573 | EX40: 3573 | EY40: 3573 | FA40: CA037 | FB40: 2166 | FC40: 2166 | FD40: 2166 | FE40: 2166 | FF40: 2445 | FG40: 2610 | FH40: 2763 | FI40: 2985 | FJ40: 3084 | FK40: 2709 | FL40: 2982 | FM40: 3099 | FN40: 3261 | FO40: 3291 | FP40: 2916 | FQ40: 3063 | FR40: 3249 | FS40: 2595 | FT40: 2865 | FU40: 3129 | FV40: 3282 | FW40: 3300 | FX40: 3327 | FY40: 3396 | FZ40: 3396 | GA40: 3396 | GB40: 3396 | GD40: 670 | GE40: XX499 | GG40: CA037 | GH40: LOS ANGELES, CA
B41: W4 1 Drill | C41: 146.46 | D41: 157.54 | E41: 162.06 | F41: 166.51 | H41: 174.17 | J41: 181.76 | L41: 189.44 | N41: 200.97 | P41: 211.1 | R41: 220.73 | T41: 228.62 | V41: 236.31 | X41: 247.6 | Z41: 256.88 | AB41: 267.47 | AD41: 267.47 | AF41: 272.8 | AH41: 272.8 | AJ41: 272.8 | AL41: 272.8 | AN41: 272.8 | AP41: 272.8 | DX41: CA038 | DY41: 2535 | DZ41: 2535 | EA41: 2535 | EB41: 2535 | EC41: 2643 | ED41: 3012 | EE41: 3054 | EF41: 3099 | EG41: 3234 | EH41: 3027 | EI41: 3075 | EJ41: 3132 | EK41: 3276 | EL41: 3453 | EM41: 3063 | EN41: 3120 | EO41: 3300 | EP41: 2688 | EQ41: 3009 | ER41: 3129 | ES41: 3513 | ET41: 3789 | EU41: 3822 | EV41: 3855 | EW41: 3855 | EX41: 3855 | EY41: 3855 | FA41: CA038 | FB41: 1995 | FC41: 1995 | FD41: 1995 | FE41: 1995 | FF41: 2271 | FG41: 2430 | FH41: 2535 | FI41: 2718 | FJ41: 2829 | FK41: 2505 | FL41: 2715 | FM41: 2844 | FN41: 3024 | FO41: 3063 | FP41: 2643 | FQ41: 2808 | FR41: 3009 | FS41: 2421 | FT41: 2610 | FU41: 2880 | FV41: 3051 | FW41: 3075 | FX41: 3114 | FY41: 3177 | FZ41: 3177 | GA41: 3177 | GB41: 3177 | GD41: 674 | GE41: XX499 | GG41: CA038 | GH41: SAN DIEGO, CA
B42: W4 4 Drills | C42: 585.84 | D42: 630.16 | E42: 648.24 | F42: 666.04 | H42: 696.68 | J42: 727.04 | L42: 757.76 | N42: 803.88 | P42: 844.4 | R42: 882.92 | T42: 914.48 | V42: 945.24 | X42: 990.4 | Z42: 1027.52 | AB42: 1069.88 | AD42: 1069.88 | AF42: 1091.2 | AH42: 1091.2 | AJ42: 1091.2 | AL42: 1091.2 | AN42: 1091.2 | AP42: 1091.2 | DX42: CA039 | DY42: 2421 | DZ42: 2421 | EA42: 2421 | EB42: 2421 | EC42: 2643 | ED42: 3279 | EE42: 3339 | EF42: 3399 | EG42: 3591 | EH42: 3294 | EI42: 3366 | EJ42: 3444 | EK42: 3648 | EL42: 3894 | EM42: 3348 | EN42: 3429 | EO42: 3684 | EP42: 2718 | EQ42: 3270 | ER42: 3441 | ES42: 3978 | ET42: 4368 | EU42: 4407 | EV42: 4446 | EW42: 4446 | EX42: 4446 | EY42: 4446 | FA42: CA039 | FB42: 1815 | FC42: 1815 | FD42: 1815 | FE42: 1815 | FF42: 2049 | FG42: 2460 | FH42: 2505 | FI42: 2769 | FJ42: 2964 | FK42: 2472 | FL42: 2766 | FM42: 2988 | FN42: 3294 | FO42: 3351 | FP42: 2643 | FQ42: 2922 | FR42: 3276 | FS42: 2193 | FT42: 2571 | FU42: 3048 | FV42: 3336 | FW42: 3369 | FX42: 3426 | FY42: 3498 | FZ42: 3498 | GA42: 3498 | GB42: 3498 | GD42: 676 | GE42: XX499 | GG42: CA039 | GH42: MONTEREY, CA
B43: W3 | C43: 4012.5 | D43: 4179.6 | E43: 4351.2 | F43: 4407.6 | H43: 4586.7 | J43: 4940.4 | L43: 5308.5 | N43: 5482.2 | P43: 5682.9 | R43: 5889 | T43: 6261 | V43: 6511.8 | X43: 6661.8 | Z43: 6821.1 | AB43: 7038.6 | AD43: 7038.6 | AF43: 7038.6 | AH43: 7038.6 | AJ43: 7038.6 | AL43: 7038.6 | AN43: 7038.6 | AP43: 7038.6 | DX43: CA041 | DY43: 1983 | DZ43: 1983 | EA43: 1983 | EB43: 1983 | EC43: 2100 | ED43: 2172 | EE43: 2247 | EF43: 2331 | EG43: 2412 | EH43: 2181 | EI43: 2283 | EJ43: 2391 | EK43: 2421 | EL43: 2463 | EM43: 2262 | EN43: 2370 | EO43: 2424 | EP43: 2112 | EQ43: 2169 | ER43: 2385 | ES43: 2472 | ET43: 2529 | EU43: 2550 | EV43: 2571 | EW43: 2571 | EX43: 2571 | EY43: 2571 | FA43: CA041 | FB43: 1602 | FC43: 1602 | FD43: 1602 | FE43: 1602 | FF43: 1770 | FG43: 1875 | FH43: 1986 | FI43: 2118 | FJ43: 2133 | FK43: 1953 | FL43: 2115 | FM43: 2139 | FN43: 2187 | FO43: 2265 | FP43: 2100 | FQ43: 2130 | FR43: 2163 | FS43: 1866 | FT43: 2064 | FU43: 2142 | FV43: 2247 | FW43: 2295 | FX43: 2373 | FY43: 2421 | FZ43: 2421 | GA43: 2421 | GB43: 2421 | GD43: 677 | GE43: XX499 | GG43: CA041 | GH43: RIVERSIDE, CA
B44: W3 1 Drill | C44: 133.75 | D44: 139.32 | E44: 145.04 | F44: 146.92 | H44: 152.89 | J44: 164.68 | L44: 176.95 | N44: 182.74 | P44: 189.43 | R44: 196.3 | T44: 208.7 | V44: 217.06 | X44: 222.06 | Z44: 227.37 | AB44: 234.62 | AD44: 234.62 | AF44: 234.62 | AH44: 234.62 | AJ44: 234.62 | AL44: 234.62 | AN44: 234.62 | AP44: 234.62 | DX44: CA042 | DY44: 1182 | DZ44: 1182 | EA44: 1182 | EB44: 1182 | EC44: 1248 | ED44: 1728 | EE44: 1758 | EF44: 1785 | EG44: 1857 | EH44: 1743 | EI44: 1770 | EJ44: 1809 | EK44: 1878 | EL44: 1965 | EM44: 1761 | EN44: 1797 | EO44: 1887 | EP44: 1305 | EQ44: 1725 | ER44: 1806 | ES44: 1989 | ET44: 2124 | EU44: 2139 | EV44: 2157 | EW44: 2157 | EX44: 2157 | EY44: 2157 | FA44: CA042 | FB44: 951 | FC44: 951 | FD44: 951 | FE44: 951 | FF44: 1050 | FG44: 1296 | FH44: 1320 | FI44: 1344 | FJ44: 1491 | FK44: 1308 | FL44: 1341 | FM44: 1509 | FN44: 1737 | FO44: 1761 | FP44: 1326 | FQ44: 1461 | FR44: 1725 | FS44: 1113 | FT44: 1323 | FU44: 1557 | FV44: 1752 | FW44: 1767 | FX44: 1788 | FY44: 1827 | FZ44: 1827 | GA44: 1827 | GB44: 1827 | GD44: 678 | GE44: XX499 | GG44: CA042 | GH44: HUMBOLDT COUNTY, CA
B45: W3 4 Drills | C45: 535 | D45: 557.28 | E45: 580.16 | F45: 587.68 | H45: 611.56 | J45: 658.72 | L45: 707.8 | N45: 730.96 | P45: 757.72 | R45: 785.2 | T45: 834.8 | V45: 868.24 | X45: 888.24 | Z45: 909.48 | AB45: 938.48 | AD45: 938.48 | AF45: 938.48 | AH45: 938.48 | AJ45: 938.48 | AL45: 938.48 | AN45: 938.48 | AP45: 938.48 | DX45: CA044 | DY45: 3966 | DZ45: 3966 | EA45: 3966 | EB45: 3966 | EC45: 4200 | ED45: 4494 | EE45: 4509 | EF45: 4524 | EG45: 4737 | EH45: 4506 | EI45: 4518 | EJ45: 4542 | EK45: 4812 | EL45: 5139 | EM45: 4512 | EN45: 4533 | EO45: 4860 | EP45: 4236 | EQ45: 4491 | ER45: 4539 | ES45: 5256 | ET45: 5778 | EU45: 5829 | EV45: 5883 | EW45: 5883 | EX45: 5883 | EY45: 5883 | FA45: CA044 | FB45: 2979 | FC45: 2979 | FD45: 2979 | FE45: 2979 | FF45: 3474 | FG45: 3756 | FH45: 3975 | FI45: 4260 | FJ45: 4347 | FK45: 3891 | FL45: 4257 | FM45: 4359 | FN45: 4497 | FO45: 4512 | FP45: 4200 | FQ45: 4329 | FR45: 4488 | FS45: 3732 | FT45: 4122 | FU45: 4386 | FV45: 4503 | FW45: 4515 | FX45: 4521 | FY45: 4614 | FZ45: 4614 | GA45: 4614 | GB45: 4614 | GD45: 680 | GE45: XX499 | GG45: CA044 | GH45: SANTA CLARA COUNTY, CA
B46: W2 | C46: 3550.5 | D46: 3886.2 | E46: 3989.7 | F46: 4060.5 | H46: 4290.9 | J46: 4648.8 | L46: 4826.1 | N46: 5000.4 | P46: 5214 | R46: 5381.1 | T46: 5532 | V46: 5713.2 | X46: 5832 | Z46: 5926.2 | AB46: 5926.2 | AD46: 5926.2 | AF46: 5926.2 | AH46: 5926.2 | AJ46: 5926.2 | AL46: 5926.2 | AN46: 5926.2 | AP46: 5926.2 | DX46: CA392 | DY46: 1980 | DZ46: 1980 | EA46: 1980 | EB46: 1980 | EC46: 2088 | ED46: 2283 | EE46: 2424 | EF46: 2583 | EG46: 2805 | EH46: 2292 | EI46: 2493 | EJ46: 2688 | EK46: 2853 | EL46: 3051 | EM46: 2454 | EN46: 2655 | EO46: 2880 | EP46: 2115 | EQ46: 2280 | ER46: 2679 | ES46: 3120 | ET46: 3438 | EU46: 3468 | EV46: 3498 | EW46: 3498 | EX46: 3498 | EY46: 3498 | FA46: CA392 | FB46: 1485 | FC46: 1485 | FD46: 1485 | FE46: 1485 | FF46: 1719 | FG46: 1875 | FH46: 1980 | FI46: 2130 | FJ46: 2184 | FK46: 1950 | FL46: 2127 | FM46: 2193 | FN46: 2316 | FO46: 2460 | FP46: 2088 | FQ46: 2172 | FR46: 2274 | FS46: 1866 | FT46: 2055 | FU46: 2208 | FV46: 2433 | FW46: 2580 | FX46: 2670 | FY46: 2724 | FZ46: 2724 | GA46: 2724 | GB46: 2724 | GD46: 681 | GE46: XX499 | GG46: CA392 | GH46: SAN LUIS OBISPO, CA
B47: W2 1 Drill | C47: 118.35 | D47: 129.54 | E47: 132.99 | F47: 135.35 | H47: 143.03 | J47: 154.96 | L47: 160.87 | N47: 166.68 | P47: 173.8 | R47: 179.37 | T47: 184.4 | V47: 190.44 | X47: 194.4 | Z47: 197.54 | AB47: 197.54 | AD47: 197.54 | AF47: 197.54 | AH47: 197.54 | AJ47: 197.54 | AL47: 197.54 | AN47: 197.54 | AP47: 197.54 | DX47: CA393 | DY47: 1089 | DZ47: 1089 | EA47: 1089 | EB47: 1089 | EC47: 1140 | ED47: 1470 | EE47: 1617 | EF47: 1776 | EG47: 1911 | EH47: 1482 | EI47: 1686 | EJ47: 1884 | EK47: 1923 | EL47: 1974 | EM47: 1647 | EN47: 1851 | EO47: 1929 | EP47: 1179 | EQ47: 1467 | ER47: 1875 | ES47: 1986 | ET47: 2061 | EU47: 2076 | EV47: 2091 | EW47: 2091 | EX47: 2091 | EY47: 2091 | FA47: CA393 | FB47: 888 | FC47: 888 | FD47: 888 | FE47: 888 | FF47: 978 | FG47: 1101 | FH47: 1212 | FI47: 1332 | FJ47: 1434 | FK47: 1113 | FL47: 1266 | FM47: 1437 | FN47: 1506 | FO47: 1653 | FP47: 1236 | FQ47: 1389 | FR47: 1464 | FS47: 1035 | FT47: 1215 | FU47: 1440 | FV47: 1626 | FW47: 1716 | FX47: 1866 | FY47: 1905 | FZ47: 1905 | GA47: 1905 | GB47: 1905 | GD47: 682 | GE47: XX499 | GG47: CA393 | GH47: BRIDGEPORT, CA
B48: W2 4 Drills | C48: 473.4 | D48: 518.16 | E48: 531.96 | F48: 541.4 | H48: 572.12 | J48: 619.84 | L48: 643.48 | N48: 666.72 | P48: 695.2 | R48: 717.48 | T48: 737.6 | V48: 761.76 | X48: 777.6 | Z48: 790.16 | AB48: 790.16 | AD48: 790.16 | AF48: 790.16 | AH48: 790.16 | AJ48: 790.16 | AL48: 790.16 | AN48: 790.16 | AP48: 790.16 | DX48: CA420 | DY48: 1203 | DZ48: 1203 | EA48: 1203 | EB48: 1203 | EC48: 1206 | ED48: 1227 | EE48: 1332 | EF48: 1461 | EG48: 1563 | EH48: 1230 | EI48: 1386 | EJ48: 1545 | EK48: 1572 | EL48: 1608 | EM48: 1356 | EN48: 1518 | EO48: 1575 | EP48: 1209 | EQ48: 1224 | ER48: 1539 | ES48: 1614 | ET48: 1665 | EU48: 1677 | EV48: 1689 | EW48: 1689 | EX48: 1689 | EY48: 1689 | FA48: CA420 | FB48: 903 | FC48: 903 | FD48: 903 | FE48: 903 | FF48: 1056 | FG48: 1203 | FH48: 1218 | FI48: 1230 | FJ48: 1236 | FK48: 1215 | FL48: 1227 | FM48: 1239 | FN48: 1248 | FO48: 1359 | FP48: 1224 | FQ48: 1233 | FR48: 1245 | FS48: 1200 | FT48: 1221 | FU48: 1242 | FV48: 1338 | FW48: 1410 | FX48: 1527 | FY48: 1560 | FZ48: 1560 | GA48: 1560 | GB48: 1560 | GD48: 683 | GE48: XX499 | GG48: CA420 | GH48: EL CENTRO, CA
B49: W1 | C49: 3116.4 | D49: 3452.1 | E49: 3542.1 | F49: 3732.6 | H49: 3957.9 | J49: 4290.3 | L49: 4445.1 | N49: 4662 | P49: 4875.3 | R49: 5043.3 | T49: 5197.5 | V49: 5385.3 | X49: 5385.3 | Z49: 5385.3 | AB49: 5385.3 | AD49: 5385.3 | AF49: 5385.3 | AH49: 5385.3 | AJ49: 5385.3 | AL49: 5385.3 | AN49: 5385.3 | AP49: 5385.3 | DX49: CA457 | DY49: 1761 | DZ49: 1761 | EA49: 1761 | EB49: 1761 | EC49: 1764 | ED49: 1830 | EE49: 1947 | EF49: 2079 | EG49: 2235 | EH49: 1839 | EI49: 2004 | EJ49: 2169 | EK49: 2262 | EL49: 2376 | EM49: 1971 | EN49: 2142 | EO49: 2277 | EP49: 1770 | EQ49: 1827 | ER49: 2163 | ES49: 2409 | ET49: 2586 | EU49: 2607 | EV49: 2628 | EW49: 2628 | EX49: 2628 | EY49: 2628 | FA49: CA457 | FB49: 1371 | FC49: 1371 | FD49: 1371 | FE49: 1371 | FF49: 1623 | FG49: 1761 | FH49: 1776 | FI49: 1788 | FJ49: 1794 | FK49: 1773 | FL49: 1785 | FM49: 1797 | FN49: 1854 | FO49: 1977 | FP49: 1782 | FQ49: 1791 | FR49: 1818 | FS49: 1758 | FT49: 1779 | FU49: 1800 | FV49: 1953 | FW49: 2028 | FX49: 2151 | FY49: 2196 | FZ49: 2196 | GA49: 2196 | GB49: 2196 | GD49: 685 | GE49: XX499 | GG49: CA457 | GH49: EDWARDS AFB/PALMDALE, CA
B50: W1 1 Drill | C50: 103.88 | D50: 115.07 | E50: 118.07 | F50: 124.42 | H50: 131.93 | J50: 143.01 | L50: 148.17 | N50: 155.4 | P50: 162.51 | R50: 168.11 | T50: 173.25 | V50: 179.51 | X50: 179.51 | Z50: 179.51 | AB50: 179.51 | AD50: 179.51 | AF50: 179.51 | AH50: 179.51 | AJ50: 179.51 | AL50: 179.51 | AN50: 179.51 | AP50: 179.51 | DX50: CO045 | DY50: 1959 | DZ50: 1959 | EA50: 1959 | EB50: 1959 | EC50: 2136 | ED50: 2400 | EE50: 2415 | EF50: 2424 | EG50: 2466 | EH50: 2412 | EI50: 2421 | EJ50: 2433 | EK50: 2487 | EL50: 2580 | EM50: 2418 | EN50: 2427 | EO50: 2499 | EP50: 2169 | EQ50: 2397 | ER50: 2430 | ES50: 2607 | ET50: 2748 | EU50: 2772 | EV50: 2793 | EW50: 2793 | EX50: 2793 | EY50: 2793 | FA50: CO045 | FB50: 1488 | FC50: 1488 | FD50: 1488 | FE50: 1488 | FF50: 1674 | FG50: 1797 | FH50: 1962 | FI50: 2190 | FJ50: 2268 | FK50: 1902 | FL50: 2187 | FM50: 2277 | FN50: 2400 | FO50: 2406 | FP50: 2136 | FQ50: 2250 | FR50: 2394 | FS50: 1776 | FT50: 2079 | FU50: 2301 | FV50: 2403 | FW50: 2409 | FX50: 2412 | FY50: 2445 | FZ50: 2445 | GA50: 2445 | GB50: 2445 | GD50: 687 | GE50: XX499 | GG50: CO045 | GH50: DENVER, CO
B51: W1 4 Drills | C51: 415.52 | D51: 460.28 | E51: 472.28 | F51: 497.68 | H51: 527.72 | J51: 572.04 | L51: 592.68 | N51: 621.6 | P51: 650.04 | R51: 672.44 | T51: 693 | V51: 718.04 | X51: 718.04 | Z51: 718.04 | AB51: 718.04 | AD51: 718.04 | AF51: 718.04 | AH51: 718.04 | AJ51: 718.04 | AL51: 718.04 | AN51: 718.04 | AP51: 718.04 | DX51: CO046 | DY51: 1545 | DZ51: 1545 | EA51: 1545 | EB51: 1545 | EC51: 1605 | ED51: 1638 | EE51: 1698 | EF51: 1770 | EG51: 1857 | EH51: 1647 | EI51: 1731 | EJ51: 1818 | EK51: 1872 | EL51: 1941 | EM51: 1710 | EN51: 1803 | EO51: 1881 | EP51: 1611 | EQ51: 1635 | ER51: 1815 | ES51: 1959 | ET51: 2061 | EU51: 2076 | EV51: 2094 | EW51: 2094 | EX51: 2094 | EY51: 2094 | FA51: CO046 | FB51: 1272 | FC51: 1272 | FD51: 1272 | FE51: 1272 | FF51: 1404 | FG51: 1485 | FH51: 1542 | FI51: 1614 | FJ51: 1620 | FK51: 1533 | FL51: 1611 | FM51: 1623 | FN51: 1647 | FO51: 1713 | FP51: 1605 | FQ51: 1617 | FR51: 1629 | FS51: 1482 | FT51: 1587 | FU51: 1626 | FV51: 1698 | FW51: 1737 | FX51: 1800 | FY51: 1839 | FZ51: 1839 | GA51: 1839 | GB51: 1839 | GD51: 688 | GE51: XX499 | GG51: CO046 | GH51: COLORADO SPRINGS, CO
B52: E9 | L52: 5308.2 | N52: 5428.5 | P52: 5580.3 | R52: 5758.2 | T52: 5938.8 | V52: 6226.5 | X52: 6470.7 | Z52: 6726.6 | AB52: 7119.3 | AD52: 7119.3 | AF52: 7474.8 | AH52: 7474.8 | AJ52: 7848.9 | AL52: 7848.9 | AN52: 8241.9 | AP52: 8241.9 | DX52: CO047 | DY52: 1689 | DZ52: 1689 | EA52: 1689 | EB52: 1689 | EC52: 1722 | ED52: 1866 | EE52: 1890 | EF52: 1920 | EG52: 2022 | EH52: 1875 | EI52: 1905 | EJ52: 1944 | EK52: 2055 | EL52: 2187 | EM52: 1896 | EN52: 1935 | EO52: 2073 | EP52: 1743 | EQ52: 1863 | ER52: 1941 | ES52: 2232 | ET52: 2442 | EU52: 2463 | EV52: 2481 | EW52: 2481 | EX52: 2481 | EY52: 2481 | FA52: CO047 | FB52: 1470 | FC52: 1470 | FD52: 1470 | FE52: 1470 | FF52: 1581 | FG52: 1653 | FH52: 1689 | FI52: 1755 | FJ52: 1791 | FK52: 1686 | FL52: 1752 | FM52: 1800 | FN52: 1869 | FO52: 1896 | FP52: 1722 | FQ52: 1785 | FR52: 1857 | FS52: 1650 | FT52: 1713 | FU52: 1809 | FV52: 1884 | FW52: 1902 | FX52: 1926 | FY52: 1968 | FZ52: 1968 | GA52: 1968 | GB52: 1968 | GD52: 690 | GE52: XX499 | GG52: CO047 | GH52: FORT COLLINS, CO
B53: E9 1 Drill | L53: 176.94 | N53: 180.95 | P53: 186.01 | R53: 191.94 | T53: 197.96 | V53: 207.55 | X53: 215.69 | Z53: 224.22 | AB53: 237.31 | AD53: 237.31 | AF53: 249.16 | AH53: 249.16 | AJ53: 261.63 | AL53: 261.63 | AN53: 274.73 | AP53: 274.73 | DX53: CO422 | DY53: 1908 | DZ53: 1908 | EA53: 1908 | EB53: 1908 | EC53: 2082 | ED53: 2523 | EE53: 2541 | EF53: 2550 | EG53: 2595 | EH53: 2538 | EI53: 2547 | EJ53: 2559 | EK53: 2622 | EL53: 2727 | EM53: 2544 | EN53: 2553 | EO53: 2634 | EP53: 2136 | EQ53: 2520 | ER53: 2556 | ES53: 2760 | ET53: 2925 | EU53: 2952 | EV53: 2976 | EW53: 2976 | EX53: 2976 | EY53: 2976 | FA53: CO422 | FB53: 1449 | FC53: 1449 | FD53: 1449 | FE53: 1449 | FF53: 1629 | FG53: 1893 | FH53: 1911 | FI53: 2172 | FJ53: 2307 | FK53: 1905 | FL53: 2169 | FM53: 2322 | FN53: 2526 | FO53: 2532 | FP53: 2082 | FQ53: 2277 | FR53: 2520 | FS53: 1728 | FT53: 2025 | FU53: 2364 | FV53: 2529 | FW53: 2535 | FX53: 2538 | FY53: 2571 | FZ53: 2571 | GA53: 2571 | GB53: 2571 | GD53: 692 | GE53: XX499 | GG53: CO422 | GH53: BOULDER, CO
B54: E9 4 Drills | L54: 707.76 | N54: 723.8 | P54: 744.04 | R54: 767.76 | T54: 791.84 | V54: 830.2 | X54: 862.76 | Z54: 896.88 | AB54: 949.24 | AD54: 949.24 | AF54: 996.64 | AH54: 996.64 | AJ54: 1046.52 | AL54: 1046.52 | AN54: 1098.92 | AP54: 1098.92 | DX54: CT049 | DY54: 1461 | DZ54: 1461 | EA54: 1461 | EB54: 1461 | EC54: 1545 | ED54: 1857 | EE54: 1965 | EF54: 2079 | EG54: 2199 | EH54: 1869 | EI54: 2013 | EJ54: 2157 | EK54: 2214 | EL54: 2289 | EM54: 1986 | EN54: 2133 | EO54: 2223 | EP54: 1584 | EQ54: 1854 | ER54: 2151 | ES54: 2310 | ET54: 2421 | EU54: 2439 | EV54: 2460 | EW54: 2460 | EX54: 2460 | EY54: 2460 | FA54: CT049 | FB54: 1098 | FC54: 1098 | FD54: 1098 | FE54: 1098 | FF54: 1275 | FG54: 1392 | FH54: 1473 | FI54: 1608 | FJ54: 1701 | FK54: 1443 | FL54: 1605 | FM54: 1716 | FN54: 1884 | FO54: 1989 | FP54: 1545 | FQ54: 1683 | FR54: 1851 | FS54: 1374 | FT54: 1521 | FU54: 1743 | FV54: 1968 | FW54: 2034 | FX54: 2139 | FY54: 2184 | FZ54: 2184 | GA54: 2184 | GB54: 2184 | GD54: 693 | GE54: XX499 | GG54: CT049 | GH54: NEW LONDON, CT
B55: E8 | J55: 4345.5 | L55: 4537.5 | N55: 4656.6 | P55: 4798.8 | R55: 4953.6 | T55: 5232.3 | V55: 5373.6 | X55: 5613.9 | Z55: 5747.4 | AB55: 6075.6 | AD55: 6075.6 | AF55: 6197.7 | AH55: 6197.7 | AJ55: 6197.7 | AL55: 6197.7 | AN55: 6197.7 | AP55: 6197.7 | DX55: CT050 | DY55: 1782 | DZ55: 1782 | EA55: 1782 | EB55: 1782 | EC55: 1785 | ED55: 2061 | EE55: 2151 | EF55: 2250 | EG55: 2376 | EH55: 2073 | EI55: 2193 | EJ55: 2316 | EK55: 2400 | EL55: 2505 | EM55: 2169 | EN55: 2295 | EO55: 2415 | EP55: 1818 | EQ55: 2058 | ER55: 2310 | ES55: 2538 | ET55: 2700 | EU55: 2724 | EV55: 2745 | EW55: 2745 | EX55: 2745 | EY55: 2745 | FA55: CT050 | FB55: 1365 | FC55: 1365 | FD55: 1365 | FE55: 1365 | FF55: 1632 | FG55: 1779 | FH55: 1794 | FI55: 1842 | FJ55: 1923 | FK55: 1791 | FL55: 1839 | FM55: 1935 | FN55: 2082 | FO55: 2172 | FP55: 1800 | FQ55: 1905 | FR55: 2055 | FS55: 1776 | FT55: 1797 | FU55: 1959 | FV55: 2154 | FW55: 2208 | FX55: 2298 | FY55: 2346 | FZ55: 2346 | GA55: 2346 | GB55: 2346 | GD55: 694 | GE55: XX499 | GG55: CT050 | GH55: HARTFORD, CT
B56: E8 1 Drill | J56: 144.85 | L56: 151.25 | N56: 155.22 | P56: 159.96 | R56: 165.12 | T56: 174.41 | V56: 179.12 | X56: 187.13 | Z56: 191.58 | AB56: 202.52 | AD56: 202.52 | AF56: 206.59 | AH56: 206.59 | AJ56: 206.59 | AL56: 206.59 | AN56: 206.59 | AP56: 206.59 | DX56: CT051 | DY56: 2925 | DZ56: 2925 | EA56: 2925 | EB56: 2925 | EC56: 2928 | ED56: 3012 | EE56: 3024 | EF56: 3033 | EG56: 3135 | EH56: 3021 | EI56: 3030 | EJ56: 3042 | EK56: 3177 | EL56: 3369 | EM56: 3027 | EN56: 3036 | EO56: 3204 | EP56: 2934 | EQ56: 3009 | ER56: 3039 | ES56: 3435 | ET56: 3735 | EU56: 3768 | EV56: 3798 | EW56: 3798 | EX56: 3798 | EY56: 3798 | FA56: CT051 | FB56: 2268 | FC56: 2268 | FD56: 2268 | FE56: 2268 | FF56: 2697 | FG56: 2925 | FH56: 2940 | FI56: 2952 | FJ56: 2964 | FK56: 2937 | FL56: 2949 | FM56: 2970 | FN56: 3009 | FO56: 3015 | FP56: 2946 | FQ56: 2961 | FR56: 3003 | FS56: 2922 | FT56: 2943 | FU56: 2976 | FV56: 3012 | FW56: 3018 | FX56: 3021 | FY56: 3066 | FZ56: 3066 | GA56: 3066 | GB56: 3066 | GD56: 698 | GE56: XX499 | GG56: CT051 | GH56: NEW HAVEN/FAIRFIELD, CT
B57: E8 4 Drills | J57: 579.4 | L57: 605 | N57: 620.88 | P57: 639.84 | R57: 660.48 | T57: 697.64 | V57: 716.48 | X57: 748.52 | Z57: 766.32 | AB57: 810.08 | AD57: 810.08 | AF57: 826.36 | AH57: 826.36 | AJ57: 826.36 | AL57: 826.36 | AN57: 826.36 | AP57: 826.36 | DX57: DC053 | DY57: 2355 | DZ57: 2355 | EA57: 2355 | EB57: 2355 | EC57: 2535 | ED57: 2595 | EE57: 2646 | EF57: 2706 | EG57: 2823 | EH57: 2604 | EI57: 2673 | EJ57: 2748 | EK57: 2853 | EL57: 2979 | EM57: 2655 | EN57: 2733 | EO57: 2868 | EP57: 2544 | EQ57: 2592 | ER57: 2745 | ES57: 3018 | ET57: 3216 | EU57: 3243 | EV57: 3270 | EW57: 3270 | EX57: 3270 | EY57: 3270 | FA57: DC053 | FB57: 1845 | FC57: 1845 | FD57: 1845 | FE57: 1845 | FF57: 2055 | FG57: 2190 | FH57: 2361 | FI57: 2550 | FJ57: 2562 | FK57: 2301 | FL57: 2547 | FM57: 2568 | FN57: 2604 | FO57: 2658 | FP57: 2535 | FQ57: 2559 | FR57: 2586 | FS57: 2175 | FT57: 2478 | FU57: 2571 | FV57: 2643 | FW57: 2676 | FX57: 2730 | FY57: 2787 | FZ57: 2787 | GA57: 2787 | GB57: 2787 | GD57: 703 | GE57: XX499 | GG57: DC053 | GH57: WASHINGTON, DC METRO AREA
B58: E7 | C58: 3020.7 | D58: 3296.7 | E58: 3423.3 | F58: 3590.1 | H58: 3720.9 | J58: 3945 | L58: 4071.6 | N58: 4295.7 | P58: 4482.6 | R58: 4609.8 | T58: 4745.4 | V58: 4797.6 | X58: 4974.3 | Z58: 5068.8 | AB58: 5429.1 | AD58: 5429.1 | AF58: 5429.1 | AH58: 5429.1 | AJ58: 5429.1 | AL58: 5429.1 | AN58: 5429.1 | AP58: 5429.1 | DX58: DE054 | DY58: 1542 | DZ58: 1542 | EA58: 1542 | EB58: 1542 | EC58: 1575 | ED58: 1713 | EE58: 1797 | EF58: 1890 | EG58: 1998 | EH58: 1722 | EI58: 1839 | EJ58: 1953 | EK58: 2019 | EL58: 2097 | EM58: 1815 | EN58: 1932 | EO58: 2028 | EP58: 1593 | EQ58: 1710 | ER58: 1950 | ES58: 2121 | ET58: 2241 | EU58: 2259 | EV58: 2277 | EW58: 2277 | EX58: 2277 | EY58: 2277 | FA58: DE054 | FB58: 1221 | FC58: 1221 | FD58: 1221 | FE58: 1221 | FF58: 1401 | FG58: 1506 | FH58: 1542 | FI58: 1605 | FJ58: 1641 | FK58: 1539 | FL58: 1602 | FM58: 1650 | FN58: 1731 | FO58: 1818 | FP58: 1575 | FQ58: 1635 | FR58: 1704 | FS58: 1503 | FT58: 1566 | FU58: 1659 | FV58: 1797 | FW58: 1851 | FX58: 1935 | FY58: 1977 | FZ58: 1977 | GA58: 1977 | GB58: 1977 | GD58: 704 | GE58: XX499 | GG58: DE054 | GH58: DOVER AFB/REHOBOTH, DE
B59: E7 1 Drill | C59: 100.69 | D59: 109.89 | E59: 114.11 | F59: 119.67 | H59: 124.03 | J59: 131.5 | L59: 135.72 | N59: 143.19 | P59: 149.42 | R59: 153.66 | T59: 158.18 | V59: 159.92 | X59: 165.81 | Z59: 168.96 | AB59: 180.97 | AD59: 180.97 | AF59: 180.97 | AH59: 180.97 | AJ59: 180.97 | AL59: 180.97 | AN59: 180.97 | AP59: 180.97 | DX59: FL056 | DY59: 1449 | DZ59: 1449 | EA59: 1449 | EB59: 1449 | EC59: 1452 | ED59: 1476 | EE59: 1614 | EF59: 1779 | EG59: 1911 | EH59: 1479 | EI59: 1686 | EJ59: 1887 | EK59: 1923 | EL59: 1971 | EM59: 1647 | EN59: 1854 | EO59: 1929 | EP59: 1455 | EQ59: 1473 | ER59: 1878 | ES59: 1980 | ET59: 2049 | EU59: 2064 | EV59: 2079 | EW59: 2079 | EX59: 2079 | EY59: 2079 | FA59: FL056 | FB59: 1236 | FC59: 1236 | FD59: 1236 | FE59: 1236 | FF59: 1368 | FG59: 1452 | FH59: 1467 | FI59: 1479 | FJ59: 1485 | FK59: 1464 | FL59: 1476 | FM59: 1488 | FN59: 1500 | FO59: 1650 | FP59: 1473 | FQ59: 1482 | FR59: 1494 | FS59: 1449 | FT59: 1470 | FU59: 1491 | FV59: 1623 | FW59: 1716 | FX59: 1869 | FY59: 1908 | FZ59: 1908 | GA59: 1908 | GB59: 1908 | GD59: 705 | GE59: XX499 | GG59: FL056 | GH59: EGLIN AFB, FL
B60: E7 4 Drills | C60: 402.76 | D60: 439.56 | E60: 456.44 | F60: 478.68 | H60: 496.12 | J60: 526 | L60: 542.88 | N60: 572.76 | P60: 597.68 | R60: 614.64 | T60: 632.72 | V60: 639.68 | X60: 663.24 | Z60: 675.84 | AB60: 723.88 | AD60: 723.88 | AF60: 723.88 | AH60: 723.88 | AJ60: 723.88 | AL60: 723.88 | AN60: 723.88 | AP60: 723.88 | DX60: FL057 | DY60: 1353 | DZ60: 1353 | EA60: 1353 | EB60: 1353 | EC60: 1386 | ED60: 1566 | EE60: 1587 | EF60: 1614 | EG60: 1752 | EH60: 1575 | EI60: 1599 | EJ60: 1635 | EK60: 1800 | EL60: 2004 | EM60: 1590 | EN60: 1623 | EO60: 1830 | EP60: 1410 | EQ60: 1563 | ER60: 1632 | ES60: 2073 | ET60: 2391 | EU60: 2412 | EV60: 2430 | EW60: 2430 | EX60: 2430 | EY60: 2430 | FA60: FL057 | FB60: 1134 | FC60: 1134 | FD60: 1134 | FE60: 1134 | FF60: 1248 | FG60: 1320 | FH60: 1356 | FI60: 1425 | FJ60: 1473 | FK60: 1353 | FL60: 1422 | FM60: 1482 | FN60: 1566 | FO60: 1590 | FP60: 1386 | FQ60: 1464 | FR60: 1557 | FS60: 1317 | FT60: 1377 | FU60: 1497 | FV60: 1581 | FW60: 1794 | FX60: 1809 | FY60: 1824 | FZ60: 1824 | GA60: 1824 | GB60: 1824 | GD60: 707 | GE60: XX499 | GG60: FL057 | GH60: GAINESVILLE, FL
B61: E6 | C61: 2612.7 | D61: 2875.2 | E61: 3002.1 | F61: 3125.4 | H61: 3254.1 | J61: 3543.3 | L61: 3656.4 | N61: 3874.8 | P61: 3941.4 | R61: 3990 | T61: 4046.7 | V61: 4046.7 | X61: 4046.7 | Z61: 4046.7 | AB61: 4046.7 | AD61: 4046.7 | AF61: 4046.7 | AH61: 4046.7 | AJ61: 4046.7 | AL61: 4046.7 | AN61: 4046.7 | AP61: 4046.7 | DX61: FL058 | DY61: 1599 | DZ61: 1599 | EA61: 1599 | EB61: 1599 | EC61: 1686 | ED61: 1743 | EE61: 1782 | EF61: 1833 | EG61: 1914 | EH61: 1752 | EI61: 1806 | EJ61: 1869 | EK61: 1935 | EL61: 2016 | EM61: 1791 | EN61: 1857 | EO61: 1944 | EP61: 1695 | EQ61: 1740 | ER61: 1866 | ES61: 2040 | ET61: 2166 | EU61: 2181 | EV61: 2199 | EW61: 2199 | EX61: 2199 | EY61: 2199 | FA61: FL058 | FB61: 1278 | FC61: 1278 | FD61: 1278 | FE61: 1278 | FF61: 1422 | FG61: 1512 | FH61: 1599 | FI61: 1701 | FJ61: 1713 | FK61: 1575 | FL61: 1698 | FM61: 1716 | FN61: 1749 | FO61: 1794 | FP61: 1686 | FQ61: 1710 | FR61: 1731 | FS61: 1506 | FT61: 1659 | FU61: 1719 | FV61: 1779 | FW61: 1806 | FX61: 1851 | FY61: 1890 | FZ61: 1890 | GA61: 1890 | GB61: 1890 | GD61: 714 | GE61: XX499 | GG61: FL058 | GH61: JACKSONVILLE, FL
B62: E6 1 Drill | C62: 87.09 | D62: 95.84 | E62: 100.07 | F62: 104.18 | H62: 108.47 | J62: 118.11 | L62: 121.88 | N62: 129.16 | P62: 131.38 | R62: 133 | T62: 134.89 | V62: 134.89 | X62: 134.89 | Z62: 134.89 | AB62: 134.89 | AD62: 134.89 | AF62: 134.89 | AH62: 134.89 | AJ62: 134.89 | AL62: 134.89 | AN62: 134.89 | AP62: 134.89 | DX62: FL059 | DY62: 1644 | DZ62: 1644 | EA62: 1644 | EB62: 1644 | EC62: 1767 | ED62: 1851 | EE62: 1935 | EF62: 2031 | EG62: 2163 | EH62: 1860 | EI62: 1977 | EJ62: 2097 | EK62: 2190 | EL62: 2304 | EM62: 1953 | EN62: 2076 | EO62: 2205 | EP62: 1779 | EQ62: 1848 | ER62: 2091 | ES62: 2340 | ET62: 2517 | EU62: 2538 | EV62: 2556 | EW62: 2556 | EX62: 2556 | EY62: 2556 | FA62: FL059 | FB62: 1236 | FC62: 1236 | FD62: 1236 | FE62: 1236 | FF62: 1413 | FG62: 1527 | FH62: 1644 | FI62: 1785 | FJ62: 1806 | FK62: 1608 | FL62: 1782 | FM62: 1812 | FN62: 1869 | FO62: 1956 | FP62: 1767 | FQ62: 1803 | FR62: 1842 | FS62: 1515 | FT62: 1728 | FU62: 1815 | FV62: 1938 | FW62: 1992 | FX62: 2079 | FY62: 2121 | FZ62: 2121 | GA62: 2121 | GB62: 2121 | GD62: 715 | GE62: XX499 | GG62: FL059 | GH62: PATRICK AFB, FL
B63: E6 4 Drills | C63: 348.36 | D63: 383.36 | E63: 400.28 | F63: 416.72 | H63: 433.88 | J63: 472.44 | L63: 487.52 | N63: 516.64 | P63: 525.52 | R63: 532 | T63: 539.56 | V63: 539.56 | X63: 539.56 | Z63: 539.56 | AB63: 539.56 | AD63: 539.56 | AF63: 539.56 | AH63: 539.56 | AJ63: 539.56 | AL63: 539.56 | AN63: 539.56 | AP63: 539.56 | DX63: FL061 | DY63: 2298 | DZ63: 2298 | EA63: 2298 | EB63: 2298 | EC63: 2346 | ED63: 2463 | EE63: 2556 | EF63: 2658 | EG63: 2853 | EH63: 2472 | EI63: 2601 | EJ63: 2730 | EK63: 2901 | EL63: 3105 | EM63: 2574 | EN63: 2706 | EO63: 2928 | EP63: 2364 | EQ63: 2460 | ER63: 2724 | ES63: 3174 | ET63: 3498 | EU63: 3528 | EV63: 3558 | EW63: 3558 | EX63: 3558 | EY63: 3558 | FA63: FL061 | FB63: 1761 | FC63: 1761 | FD63: 1761 | FE63: 1761 | FF63: 2076 | FG63: 2247 | FH63: 2295 | FI63: 2373 | FJ63: 2400 | FK63: 2289 | FL63: 2370 | FM63: 2409 | FN63: 2481 | FO63: 2577 | FP63: 2346 | FQ63: 2397 | FR63: 2454 | FS63: 2244 | FT63: 2334 | FU63: 2418 | FV63: 2556 | FW63: 2625 | FX63: 2712 | FY63: 2769 | FZ63: 2769 | GA63: 2769 | GB63: 2769 | GD63: 716 | GE63: XX499 | GG63: FL061 | GH63: MIAMI/FORT LAUDERDALE, FL
B64: E5 | C64: 2393.4 | D64: 2554.8 | E64: 2678.1 | F64: 2804.4 | H64: 3001.5 | J64: 3207 | L64: 3376.2 | N64: 3396.6 | P64: 3396.6 | R64: 3396.6 | T64: 3396.6 | V64: 3396.6 | X64: 3396.6 | Z64: 3396.6 | AB64: 3396.6 | AD64: 3396.6 | AF64: 3396.6 | AH64: 3396.6 | AJ64: 3396.6 | AL64: 3396.6 | AN64: 3396.6 | AP64: 3396.6 | DX64: FL062 | DY64: 1650 | DZ64: 1650 | EA64: 1650 | EB64: 1650 | EC64: 1659 | ED64: 1881 | EE64: 1893 | EF64: 1911 | EG64: 2019 | EH64: 1890 | EI64: 1902 | EJ64: 1926 | EK64: 2055 | EL64: 2211 | EM64: 1896 | EN64: 1917 | EO64: 2076 | EP64: 1689 | EQ64: 1878 | ER64: 1923 | ES64: 2265 | ET64: 2511 | EU64: 2532 | EV64: 2553 | EW64: 2553 | EX64: 2553 | EY64: 2553 | FA64: FL062 | FB64: 1356 | FC64: 1356 | FD64: 1356 | FE64: 1356 | FF64: 1536 | FG64: 1641 | FH64: 1662 | FI64: 1707 | FJ64: 1770 | FK64: 1659 | FL64: 1704 | FM64: 1779 | FN64: 1881 | FO64: 1896 | FP64: 1668 | FQ64: 1755 | FR64: 1872 | FS64: 1638 | FT64: 1665 | FU64: 1797 | FV64: 1887 | FW64: 1899 | FX64: 1908 | FY64: 1947 | FZ64: 1947 | GA64: 1947 | GB64: 1947 | GD64: 717 | GE64: XX499 | GG64: FL062 | GH64: ORLANDO, FL
B65: E5 1 Drill | C65: 79.78 | D65: 85.16 | E65: 89.27 | F65: 93.48 | H65: 100.05 | J65: 106.9 | L65: 112.54 | N65: 113.22 | P65: 113.22 | R65: 113.22 | T65: 113.22 | V65: 113.22 | X65: 113.22 | Z65: 113.22 | AB65: 113.22 | AD65: 113.22 | AF65: 113.22 | AH65: 113.22 | AJ65: 113.22 | AL65: 113.22 | AN65: 113.22 | AP65: 113.22 | DX65: FL063 | DY65: 1533 | DZ65: 1533 | EA65: 1533 | EB65: 1533 | EC65: 1590 | ED65: 1611 | EE65: 1752 | EF65: 1911 | EG65: 2097 | EH65: 1620 | EI65: 1818 | EJ65: 2016 | EK65: 2133 | EL65: 2271 | EM65: 1782 | EN65: 1983 | EO65: 2151 | EP65: 1596 | EQ65: 1608 | ER65: 2007 | ES65: 2319 | ET65: 2538 | EU65: 2559 | EV65: 2580 | EW65: 2580 | EX65: 2580 | EY65: 2580 | FA65: FL063 | FB65: 1263 | FC65: 1263 | FD65: 1263 | FE65: 1263 | FF65: 1395 | FG65: 1476 | FH65: 1533 | FI65: 1599 | FJ65: 1605 | FK65: 1524 | FL65: 1596 | FM65: 1608 | FN65: 1641 | FO65: 1788 | FP65: 1590 | FQ65: 1602 | FR65: 1614 | FS65: 1473 | FT65: 1575 | FU65: 1611 | FV65: 1761 | FW65: 1905 | FX65: 1998 | FY65: 2040 | FZ65: 2040 | GA65: 2040 | GB65: 2040 | GD65: 718 | GE65: XX499 | GG65: FL063 | GH65: PANAMA CITY, FL
B66: E5 4 Drills | C66: 319.12 | D66: 340.64 | E66: 357.08 | F66: 373.92 | H66: 400.2 | J66: 427.6 | L66: 450.16 | N66: 452.88 | P66: 452.88 | R66: 452.88 | T66: 452.88 | V66: 452.88 | X66: 452.88 | Z66: 452.88 | AB66: 452.88 | AD66: 452.88 | AF66: 452.88 | AH66: 452.88 | AJ66: 452.88 | AL66: 452.88 | AN66: 452.88 | AP66: 452.88 | DX66: FL064 | DY66: 1308 | DZ66: 1308 | EA66: 1308 | EB66: 1308 | EC66: 1371 | ED66: 1434 | EE66: 1470 | EF66: 1515 | EG66: 1614 | EH66: 1443 | EI66: 1491 | EJ66: 1548 | EK66: 1641 | EL66: 1755 | EM66: 1479 | EN66: 1536 | EO66: 1656 | EP66: 1380 | EQ66: 1431 | ER66: 1545 | ES66: 1791 | ET66: 1968 | EU66: 1983 | EV66: 1998 | EW66: 1998 | EX66: 1998 | EY66: 1998 | FA66: FL064 | FB66: 1113 | FC66: 1113 | FD66: 1113 | FE66: 1113 | FF66: 1191 | FG66: 1245 | FH66: 1305 | FI66: 1386 | FJ66: 1398 | FK66: 1296 | FL66: 1383 | FM66: 1404 | FN66: 1440 | FO66: 1479 | FP66: 1371 | FQ66: 1395 | FR66: 1425 | FS66: 1242 | FT66: 1353 | FU66: 1407 | FV66: 1467 | FW66: 1491 | FX66: 1530 | FY66: 1563 | FZ66: 1563 | GA66: 1563 | GB66: 1563 | GD66: 719 | GE66: XX499 | GG66: FL064 | GH66: PENSACOLA, FL
B67: E4 | C67: 2194.5 | D67: 2307 | E67: 2431.8 | F67: 2555.4 | H67: 2664 | J67: 2664 | L67: 2664 | N67: 2664 | P67: 2664 | R67: 2664 | T67: 2664 | V67: 2664 | X67: 2664 | Z67: 2664 | AB67: 2664 | AD67: 2664 | AF67: 2664 | AH67: 2664 | AJ67: 2664 | AL67: 2664 | AN67: 2664 | AP67: 2664 | DX67: FL065 | DY67: 1353 | DZ67: 1353 | EA67: 1353 | EB67: 1353 | EC67: 1380 | ED67: 1440 | EE67: 1569 | EF67: 1719 | EG67: 1875 | EH67: 1449 | EI67: 1632 | EJ67: 1815 | EK67: 1899 | EL67: 1998 | EM67: 1599 | EN67: 1785 | EO67: 1911 | EP67: 1392 | EQ67: 1437 | ER67: 1809 | ES67: 2031 | ET67: 2187 | EU67: 2202 | EV67: 2220 | EW67: 2220 | EX67: 2220 | EY67: 2220 | FA67: FL065 | FB67: 1149 | FC67: 1149 | FD67: 1149 | FE67: 1149 | FF67: 1257 | FG67: 1326 | FH67: 1359 | FI67: 1395 | FJ67: 1407 | FK67: 1356 | FL67: 1392 | FM67: 1413 | FN67: 1467 | FO67: 1602 | FP67: 1380 | FQ67: 1404 | FR67: 1434 | FS67: 1323 | FT67: 1374 | FU67: 1416 | FV67: 1578 | FW67: 1662 | FX67: 1797 | FY67: 1836 | FZ67: 1836 | GA67: 1836 | GB67: 1836 | GD67: 720 | GE67: XX499 | GG67: FL065 | GH67: TALLAHASSEE, FL
B68: E4 1 Drill | C68: 73.15 | D68: 76.9 | E68: 81.06 | F68: 85.18 | H68: 88.8 | J68: 88.8 | L68: 88.8 | N68: 88.8 | P68: 88.8 | R68: 88.8 | T68: 88.8 | V68: 88.8 | X68: 88.8 | Z68: 88.8 | AB68: 88.8 | AD68: 88.8 | AF68: 88.8 | AH68: 88.8 | AJ68: 88.8 | AL68: 88.8 | AN68: 88.8 | AP68: 88.8 | DX68: FL066 | DY68: 1800 | DZ68: 1800 | EA68: 1800 | EB68: 1800 | EC68: 1920 | ED68: 2163 | EE68: 2262 | EF68: 2373 | EG68: 2496 | EH68: 2175 | EI68: 2310 | EJ68: 2445 | EK68: 2517 | EL68: 2607 | EM68: 2283 | EN68: 2421 | EO68: 2529 | EP68: 1950 | EQ68: 2160 | ER68: 2439 | ES68: 2631 | ET68: 2769 | EU68: 2790 | EV68: 2814 | EW68: 2814 | EX68: 2814 | EY68: 2814 | FA68: FL066 | FB68: 1425 | FC68: 1425 | FD68: 1425 | FE68: 1425 | FF68: 1587 | FG68: 1689 | FH68: 1803 | FI68: 1968 | FJ68: 2040 | FK68: 1767 | FL68: 1965 | FM68: 2049 | FN68: 2187 | FO68: 2286 | FP68: 1920 | FQ68: 2025 | FR68: 2157 | FS68: 1680 | FT68: 1881 | FU68: 2073 | FV68: 2265 | FW68: 2328 | FX68: 2427 | FY68: 2478 | FZ68: 2478 | GA68: 2478 | GB68: 2478 | GD68: 721 | GE68: XX499 | GG68: FL066 | GH68: TAMPA, FL
B69: E4 4 Drills | C69: 292.6 | D69: 307.6 | E69: 324.24 | F69: 340.72 | H69: 355.2 | J69: 355.2 | L69: 355.2 | N69: 355.2 | P69: 355.2 | R69: 355.2 | T69: 355.2 | V69: 355.2 | X69: 355.2 | Z69: 355.2 | AB69: 355.2 | AD69: 355.2 | AF69: 355.2 | AH69: 355.2 | AJ69: 355.2 | AL69: 355.2 | AN69: 355.2 | AP69: 355.2 | DX69: FL067 | DY69: 1965 | DZ69: 1965 | EA69: 1965 | EB69: 1965 | EC69: 2124 | ED69: 2436 | EE69: 2499 | EF69: 2568 | EG69: 2670 | EH69: 2448 | EI69: 2529 | EJ69: 2619 | EK69: 2691 | EL69: 2781 | EM69: 2511 | EN69: 2601 | EO69: 2703 | EP69: 2163 | EQ69: 2433 | ER69: 2613 | ES69: 2808 | ET69: 2946 | EU69: 2970 | EV69: 2994 | EW69: 2994 | EX69: 2994 | EY69: 2994 | FA69: FL067 | FB69: 1548 | FC69: 1548 | FD69: 1548 | FE69: 1548 | FF69: 1710 | FG69: 1824 | FH69: 1971 | FI69: 2187 | FJ69: 2280 | FK69: 1917 | FL69: 2184 | FM69: 2292 | FN69: 2451 | FO69: 2514 | FP69: 2124 | FQ69: 2259 | FR69: 2430 | FS69: 1803 | FT69: 2073 | FU69: 2322 | FV69: 2499 | FW69: 2538 | FX69: 2601 | FY69: 2655 | FZ69: 2655 | GA69: 2655 | GB69: 2655 | GD69: 723 | GE69: XX499 | GG69: FL067 | GH69: WEST PALM BEACH, FL
B70: E3 | C70: 1981.2 | D70: 2105.7 | E70: 2233.5 | F70: 2233.5 | H70: 2233.5 | J70: 2233.5 | L70: 2233.5 | N70: 2233.5 | P70: 2233.5 | R70: 2233.5 | T70: 2233.5 | V70: 2233.5 | X70: 2233.5 | Z70: 2233.5 | AB70: 2233.5 | AD70: 2233.5 | AF70: 2233.5 | AH70: 2233.5 | AJ70: 2233.5 | AL70: 2233.5 | AN70: 2233.5 | AP70: 2233.5 | DX70: FL068 | DY70: 1515 | DZ70: 1515 | EA70: 1515 | EB70: 1515 | EC70: 1602 | ED70: 1623 | EE70: 1674 | EF70: 1737 | EG70: 1827 | EH70: 1632 | EI70: 1701 | EJ70: 1782 | EK70: 1848 | EL70: 1929 | EM70: 1686 | EN70: 1767 | EO70: 1857 | EP70: 1608 | EQ70: 1620 | ER70: 1776 | ES70: 1953 | ET70: 2079 | EU70: 2097 | EV70: 2112 | EW70: 2112 | EX70: 2112 | EY70: 2112 | FA70: FL068 | FB70: 1194 | FC70: 1194 | FD70: 1194 | FE70: 1194 | FF70: 1338 | FG70: 1428 | FH70: 1515 | FI70: 1608 | FJ70: 1614 | FK70: 1494 | FL70: 1605 | FM70: 1617 | FN70: 1629 | FO70: 1686 | FP70: 1602 | FQ70: 1611 | FR70: 1623 | FS70: 1425 | FT70: 1575 | FU70: 1620 | FV70: 1671 | FW70: 1707 | FX70: 1764 | FY70: 1800 | FZ70: 1800 | GA70: 1800 | GB70: 1800 | GD70: 725 | GE70: XX499 | GG70: FL068 | GH70: OCALA, FL
B71: E3 1 Drill | C71: 66.04 | D71: 70.19 | E71: 74.45 | F71: 74.45 | H71: 74.45 | J71: 74.45 | L71: 74.45 | N71: 74.45 | P71: 74.45 | R71: 74.45 | T71: 74.45 | V71: 74.45 | X71: 74.45 | Z71: 74.45 | AB71: 74.45 | AD71: 74.45 | AF71: 74.45 | AH71: 74.45 | AJ71: 74.45 | AL71: 74.45 | AN71: 74.45 | AP71: 74.45 | DX71: FL069 | DY71: 2760 | DZ71: 2760 | EA71: 2760 | EB71: 2760 | EC71: 2928 | ED71: 3075 | EE71: 3138 | EF71: 3213 | EG71: 3423 | EH71: 3084 | EI71: 3171 | EJ71: 3264 | EK71: 3483 | EL71: 3747 | EM71: 3153 | EN71: 3246 | EO71: 3522 | EP71: 2946 | EQ71: 3072 | ER71: 3261 | ES71: 3843 | ET71: 4263 | EU71: 4299 | EV71: 4338 | EW71: 4338 | EX71: 4338 | EY71: 4338 | FA71: FL069 | FB71: 2112 | FC71: 2112 | FD71: 2112 | FE71: 2112 | FF71: 2424 | FG71: 2607 | FH71: 2766 | FI71: 2958 | FJ71: 2997 | FK71: 2709 | FL71: 2955 | FM71: 3006 | FN71: 3087 | FO71: 3153 | FP71: 2928 | FQ71: 2991 | FR71: 3066 | FS71: 2592 | FT71: 2874 | FU71: 3018 | FV71: 3138 | FW71: 3198 | FX71: 3246 | FY71: 3312 | FZ71: 3312 | GA71: 3312 | GB71: 3312 | GD71: 726 | GE71: XX499 | GG71: FL069 | GH71: FLORIDA KEYS, FL
B72: E3 4 Drills | C72: 264.16 | D72: 280.76 | E72: 297.8 | F72: 297.8 | H72: 297.8 | J72: 297.8 | L72: 297.8 | N72: 297.8 | P72: 297.8 | R72: 297.8 | T72: 297.8 | V72: 297.8 | X72: 297.8 | Z72: 297.8 | AB72: 297.8 | AD72: 297.8 | AF72: 297.8 | AH72: 297.8 | AJ72: 297.8 | AL72: 297.8 | AN72: 297.8 | AP72: 297.8 | DX72: FL070 | DY72: 1509 | DZ72: 1509 | EA72: 1509 | EB72: 1509 | EC72: 1584 | ED72: 1656 | EE72: 1671 | EF72: 1692 | EG72: 1761 | EH72: 1665 | EI72: 1680 | EJ72: 1710 | EK72: 1782 | EL72: 1872 | EM72: 1674 | EN72: 1701 | EO72: 1794 | EP72: 1596 | EQ72: 1653 | ER72: 1707 | ES72: 1899 | ET72: 2040 | EU72: 2055 | EV72: 2073 | EW72: 2073 | EX72: 2073 | EY72: 2073 | FA72: FL070 | FB72: 1221 | FC72: 1221 | FD72: 1221 | FE72: 1221 | FF72: 1350 | FG72: 1431 | FH72: 1506 | FI72: 1602 | FJ72: 1617 | FK72: 1491 | FL72: 1599 | FM72: 1620 | FN72: 1653 | FO72: 1674 | FP72: 1584 | FQ72: 1614 | FR72: 1644 | FS72: 1428 | FT72: 1560 | FU72: 1626 | FV72: 1665 | FW72: 1677 | FX72: 1692 | FY72: 1728 | FZ72: 1728 | GA72: 1728 | GB72: 1728 | GD72: 727 | GE72: XX499 | GG72: FL070 | GH72: VOLUSIA COUNTY, FL
B73: E2 | C73: 1884 | D73: 1884 | E73: 1884 | F73: 1884 | H73: 1884 | J73: 1884 | L73: 1884 | N73: 1884 | P73: 1884 | R73: 1884 | T73: 1884 | V73: 1884 | X73: 1884 | Z73: 1884 | AB73: 1884 | AD73: 1884 | AF73: 1884 | AH73: 1884 | AJ73: 1884 | AL73: 1884 | AN73: 1884 | AP73: 1884 | DX73: FL423 | DY73: 1560 | DZ73: 1560 | EA73: 1560 | EB73: 1560 | EC73: 1644 | ED73: 1869 | EE73: 1887 | EF73: 1911 | EG73: 1956 | EH73: 1881 | EI73: 1899 | EJ73: 1929 | EK73: 1971 | EL73: 2025 | EM73: 1890 | EN73: 1920 | EO73: 1977 | EP73: 1671 | EQ73: 1866 | ER73: 1926 | ES73: 2040 | ET73: 2121 | EU73: 2139 | EV73: 2154 | EW73: 2154 | EX73: 2154 | EY73: 2154 | FA73: FL423 | FB73: 1293 | FC73: 1293 | FD73: 1293 | FE73: 1293 | FF73: 1404 | FG73: 1479 | FH73: 1560 | FI73: 1689 | FJ73: 1755 | FK73: 1539 | FL73: 1686 | FM73: 1764 | FN73: 1872 | FO73: 1893 | FP73: 1644 | FQ73: 1743 | FR73: 1863 | FS73: 1473 | FT73: 1617 | FU73: 1785 | FV73: 1881 | FW73: 1896 | FX73: 1908 | FY73: 1950 | FZ73: 1950 | GA73: 1950 | GB73: 1950 | GD73: 728 | GE73: XX499 | GG73: FL423 | GH73: FORT PIERCE, FL
B74: E2 1 Drill | C74: 62.8 | D74: 62.8 | E74: 62.8 | F74: 62.8 | H74: 62.8 | J74: 62.8 | L74: 62.8 | N74: 62.8 | P74: 62.8 | R74: 62.8 | T74: 62.8 | V74: 62.8 | X74: 62.8 | Z74: 62.8 | AB74: 62.8 | AD74: 62.8 | AF74: 62.8 | AH74: 62.8 | AJ74: 62.8 | AL74: 62.8 | AN74: 62.8 | AP74: 62.8 | DX74: FL424 | DY74: 1698 | DZ74: 1698 | EA74: 1698 | EB74: 1698 | EC74: 1770 | ED74: 1836 | EE74: 1968 | EF74: 2121 | EG74: 2232 | EH74: 1845 | EI74: 2034 | EJ74: 2220 | EK74: 2238 | EL74: 2262 | EM74: 1998 | EN74: 2190 | EO74: 2241 | EP74: 1779 | EQ74: 1833 | ER74: 2214 | ES74: 2265 | ET74: 2295 | EU74: 2313 | EV74: 2334 | EW74: 2334 | EX74: 2334 | EY74: 2334 | FA74: FL424 | FB74: 1395 | FC74: 1395 | FD74: 1395 | FE74: 1395 | FF74: 1536 | FG74: 1623 | FH74: 1695 | FI74: 1785 | FJ74: 1800 | FK74: 1680 | FL74: 1782 | FM74: 1803 | FN74: 1863 | FO74: 2001 | FP74: 1770 | FQ74: 1797 | FR74: 1824 | FS74: 1620 | FT74: 1749 | FU74: 1806 | FV74: 1977 | FW74: 2064 | FX74: 2202 | FY74: 2250 | FZ74: 2250 | GA74: 2250 | GB74: 2250 | GD74: 729 | GE74: XX499 | GG74: FL424 | GH74: FT MYERS BCH, FL
B75: E2 4 Drills | C75: 251.2 | D75: 251.2 | E75: 251.2 | F75: 251.2 | H75: 251.2 | J75: 251.2 | L75: 251.2 | N75: 251.2 | P75: 251.2 | R75: 251.2 | T75: 251.2 | V75: 251.2 | X75: 251.2 | Z75: 251.2 | AB75: 251.2 | AD75: 251.2 | AF75: 251.2 | AH75: 251.2 | AJ75: 251.2 | AL75: 251.2 | AN75: 251.2 | AP75: 251.2 | DX75: GA071 | DY75: 1938 | DZ75: 1938 | EA75: 1938 | EB75: 1938 | EC75: 1953 | ED75: 2067 | EE75: 2079 | EF75: 2088 | EG75: 2136 | EH75: 2076 | EI75: 2085 | EJ75: 2097 | EK75: 2157 | EL75: 2247 | EM75: 2082 | EN75: 2091 | EO75: 2169 | EP75: 1971 | EQ75: 2064 | ER75: 2094 | ES75: 2271 | ET75: 2409 | EU75: 2430 | EV75: 2448 | EW75: 2448 | EX75: 2448 | EY75: 2448 | FA75: GA071 | FB75: 1599 | FC75: 1599 | FD75: 1599 | FE75: 1599 | FF75: 1806 | FG75: 1923 | FH75: 1947 | FI75: 1980 | FJ75: 2007 | FK75: 1944 | FL75: 1977 | FM75: 2013 | FN75: 2064 | FO75: 2070 | FP75: 1956 | FQ75: 2001 | FR75: 2058 | FS75: 1920 | FT75: 1953 | FU75: 2022 | FV75: 2067 | FW75: 2073 | FX75: 2076 | FY75: 2109 | FZ75: 2109 | GA75: 2109 | GB75: 2109 | GD75: 730 | GE75: XX499 | GG75: GA071 | GH75: ATLANTA, GA
B76: E1 | C76: 1680.9 | DX76: GA072 | DY76: 939 | DZ76: 939 | EA76: 939 | EB76: 939 | EC76: 963 | ED76: 1008 | EE76: 1128 | EF76: 1260 | EG76: 1407 | EH76: 1017 | EI76: 1185 | EJ76: 1350 | EK76: 1431 | EL76: 1533 | EM76: 1152 | EN76: 1320 | EO76: 1446 | EP76: 972 | EQ76: 1005 | ER76: 1341 | ES76: 1563 | ET76: 1722 | EU76: 1734 | EV76: 1746 | EW76: 1746 | EX76: 1746 | EY76: 1746 | FA76: GA072 | FB76: 705 | FC76: 705 | FD76: 705 | FE76: 705 | FF76: 834 | FG76: 915 | FH76: 945 | FI76: 975 | FJ76: 1056 | FK76: 942 | FL76: 972 | FM76: 1059 | FN76: 1089 | FO76: 1176 | FP76: 963 | FQ76: 990 | FR76: 1086 | FS76: 912 | FT76: 957 | FU76: 1062 | FV76: 1173 | FW76: 1293 | FX76: 1332 | FY76: 1359 | FZ76: 1359 | GA76: 1359 | GB76: 1359 | GD76: 731 | GE76: XX499 | GG76: GA072 | GH76: ALBANY, GA
B77: E1>4 1 Drill | C77: 56.03 | DX77: GA073 | DY77: 1314 | DZ77: 1314 | EA77: 1314 | EB77: 1314 | EC77: 1383 | ED77: 1431 | EE77: 1443 | EF77: 1452 | EG77: 1521 | EH77: 1440 | EI77: 1449 | EJ77: 1461 | EK77: 1548 | EL77: 1662 | EM77: 1446 | EN77: 1455 | EO77: 1563 | EP77: 1389 | EQ77: 1428 | ER77: 1458 | ES77: 1695 | ET77: 1872 | EU77: 1884 | EV77: 1899 | EW77: 1899 | EX77: 1899 | EY77: 1899 | FA77: GA073 | FB77: 1134 | FC77: 1134 | FD77: 1134 | FE77: 1134 | FF77: 1197 | FG77: 1242 | FH77: 1311 | FI77: 1395 | FJ77: 1404 | FK77: 1299 | FL77: 1392 | FM77: 1407 | FN77: 1425 | FO77: 1437 | FP77: 1383 | FQ77: 1401 | FR77: 1419 | FS77: 1239 | FT77: 1362 | FU77: 1410 | FV77: 1428 | FW77: 1440 | FX77: 1443 | FY77: 1470 | FZ77: 1470 | GA77: 1470 | GB77: 1470 | GD77: 732 | GE77: XX499 | GG77: GA073 | GH77: FORT GORDON, GA
B78: E1>4 4 Drills | C78: 224.12 | DX78: GA074 | DY78: 1284 | DZ78: 1284 | EA78: 1284 | EB78: 1284 | EC78: 1329 | ED78: 1449 | EE78: 1461 | EF78: 1470 | EG78: 1518 | EH78: 1458 | EI78: 1467 | EJ78: 1479 | EK78: 1539 | EL78: 1635 | EM78: 1464 | EN78: 1473 | EO78: 1551 | EP78: 1347 | EQ78: 1446 | ER78: 1476 | ES78: 1665 | ET78: 1812 | EU78: 1827 | EV78: 1839 | EW78: 1839 | EX78: 1839 | EY78: 1839 | FA78: GA074 | FB78: 1005 | FC78: 1005 | FD78: 1005 | FE78: 1005 | FF78: 1149 | FG78: 1239 | FH78: 1281 | FI78: 1356 | FJ78: 1386 | FK78: 1278 | FL78: 1353 | FM78: 1392 | FN78: 1443 | FO78: 1449 | FP78: 1329 | FQ78: 1380 | FR78: 1437 | FS78: 1236 | FT78: 1317 | FU78: 1401 | FV78: 1446 | FW78: 1452 | FX78: 1455 | FY78: 1476 | FZ78: 1476 | GA78: 1476 | GB78: 1476 | GD78: 733 | GE78: XX499 | GG78: GA074 | GH78: KINGS BAY/BRUNSWICK, GA
B79: E1<4 | C79: 1554.08 | DX79: GA075 | DY79: 1218 | DZ79: 1218 | EA79: 1218 | EB79: 1218 | EC79: 1293 | ED79: 1557 | EE79: 1572 | EF79: 1581 | EG79: 1599 | EH79: 1569 | EI79: 1578 | EJ79: 1590 | EK79: 1614 | EL79: 1671 | EM79: 1575 | EN79: 1584 | EO79: 1620 | EP79: 1326 | EQ79: 1554 | ER79: 1587 | ES79: 1686 | ET79: 1773 | EU79: 1785 | EV79: 1797 | EW79: 1797 | EX79: 1797 | EY79: 1797 | FA79: GA075 | FB79: 972 | FC79: 972 | FD79: 972 | FE79: 972 | FF79: 1074 | FG79: 1167 | FH79: 1215 | FI79: 1347 | FJ79: 1425 | FK79: 1200 | FL79: 1344 | FM79: 1434 | FN79: 1557 | FO79: 1563 | FP79: 1293 | FQ79: 1407 | FR79: 1551 | FS79: 1137 | FT79: 1269 | FU79: 1458 | FV79: 1560 | FW79: 1566 | FX79: 1569 | FY79: 1584 | FZ79: 1584 | GA79: 1584 | GB79: 1584 | GD79: 734 | GE79: XX499 | GG79: GA075 | GH79: FORT BENNING, GA
B80: E1<4 1 Drill | C80: 51.8 | DX80: GA076 | DY80: 1149 | DZ80: 1149 | EA80: 1149 | EB80: 1149 | EC80: 1224 | ED80: 1353 | EE80: 1389 | EF80: 1434 | EG80: 1542 | EH80: 1362 | EI80: 1410 | EJ80: 1467 | EK80: 1572 | EL80: 1701 | EM80: 1398 | EN80: 1455 | EO80: 1590 | EP80: 1242 | EQ80: 1350 | ER80: 1464 | ES80: 1743 | ET80: 1947 | EU80: 1962 | EV80: 1977 | EW80: 1977 | EX80: 1977 | EY80: 1977 | FA80: GA076 | FB80: 945 | FC80: 945 | FD80: 945 | FE80: 945 | FF80: 1023 | FG80: 1077 | FH80: 1149 | FI80: 1251 | FJ80: 1284 | FK80: 1134 | FL80: 1248 | FM80: 1290 | FN80: 1359 | FO80: 1398 | FP80: 1224 | FQ80: 1278 | FR80: 1344 | FS80: 1074 | FT80: 1200 | FU80: 1302 | FV80: 1386 | FW80: 1461 | FX80: 1473 | FY80: 1482 | FZ80: 1482 | GA80: 1482 | GB80: 1482 | GD80: 735 | GE80: XX499 | GG80: GA076 | GH80: ROBINS AFB, GA
B81: E1<4 4 Drills | C81: 207.2 | DX81: GA077 | DY81: 1461 | DZ81: 1461 | EA81: 1461 | EB81: 1461 | EC81: 1566 | ED81: 1641 | EE81: 1653 | EF81: 1662 | EG81: 1707 | EH81: 1650 | EI81: 1659 | EJ81: 1671 | EK81: 1728 | EL81: 1809 | EM81: 1656 | EN81: 1665 | EO81: 1737 | EP81: 1578 | EQ81: 1638 | ER81: 1668 | ES81: 1833 | ET81: 1959 | EU81: 1974 | EV81: 1989 | EW81: 1989 | EX81: 1989 | EY81: 1989 | FA81: GA077 | FB81: 1128 | FC81: 1128 | FD81: 1128 | FE81: 1128 | FF81: 1272 | FG81: 1362 | FH81: 1464 | FI81: 1584 | FJ81: 1599 | FK81: 1434 | FL81: 1581 | FM81: 1605 | FN81: 1638 | FO81: 1647 | FP81: 1566 | FQ81: 1596 | FR81: 1632 | FS81: 1356 | FT81: 1533 | FU81: 1611 | FV81: 1641 | FW81: 1650 | FX81: 1653 | FY81: 1680 | FZ81: 1680 | GA81: 1680 | GB81: 1680 | GD81: 736 | GE81: XX499 | GG81: GA077 | GH81: SAVANNAH, GA
DX82: GA079 | DY82: 1281 | DZ82: 1281 | EA82: 1281 | EB82: 1281 | EC82: 1293 | ED82: 1791 | EE82: 1809 | EF82: 1818 | EG82: 1839 | EH82: 1806 | EI82: 1815 | EJ82: 1827 | EK82: 1851 | EL82: 1911 | EM82: 1812 | EN82: 1821 | EO82: 1857 | EP82: 1353 | EQ82: 1788 | ER82: 1824 | ES82: 1923 | ET82: 2010 | EU82: 2025 | EV82: 2043 | EW82: 2043 | EX82: 2043 | EY82: 2043 | FA82: GA079 | FB82: 1068 | FC82: 1068 | FD82: 1068 | FE82: 1068 | FF82: 1194 | FG82: 1344 | FH82: 1359 | FI82: 1392 | FJ82: 1545 | FK82: 1356 | FL82: 1389 | FM82: 1563 | FN82: 1794 | FO82: 1800 | FP82: 1365 | FQ82: 1512 | FR82: 1788 | FS82: 1269 | FT82: 1362 | FU82: 1611 | FV82: 1797 | FW82: 1803 | FX82: 1806 | FY82: 1827 | FZ82: 1827 | GA82: 1827 | GB82: 1827 | GD82: 737 | GE82: XX499 | GG82: GA079 | GH82: DAHLONEGA, GA
B83: Actual BAH | C83: BAH W/ Dep | D83: BAH W/O Dep | E83: Partial | F83: Differential | I83: Projected BAH | J83: BAH W/ Dep | K83: BAH W/O Dep | L83: Partial | M83: Differential | P83: =AZIP ->  | Q83: =PZIP ->  | DX83: GA080 | DY83: 1308 | DZ83: 1308 | EA83: 1308 | EB83: 1308 | EC83: 1368 | ED83: 1416 | EE83: 1464 | EF83: 1524 | EG83: 1614 | EH83: 1425 | EI83: 1491 | EJ83: 1566 | EK83: 1638 | EL83: 1725 | EM83: 1476 | EN83: 1551 | EO83: 1647 | EP83: 1377 | EQ83: 1413 | ER83: 1563 | ES83: 1752 | ET83: 1887 | EU83: 1902 | EV83: 1917 | EW83: 1917 | EX83: 1917 | EY83: 1917 | FA83: GA080 | FB83: 1122 | FC83: 1122 | FD83: 1122 | FE83: 1122 | FF83: 1194 | FG83: 1245 | FH83: 1305 | FI83: 1380 | FJ83: 1389 | FK83: 1296 | FL83: 1377 | FM83: 1392 | FN83: 1422 | FO83: 1476 | FP83: 1368 | FQ83: 1386 | FR83: 1404 | FS83: 1242 | FT83: 1350 | FU83: 1395 | FV83: 1461 | FW83: 1494 | FX83: 1548 | FY83: 1581 | FZ83: 1581 | GA83: 1581 | GB83: 1581 | GD83: 738 | GE83: XX499 | GG83: GA080 | GH83: FORT STEWART, GA
B84: O10 | C84: =VLOOKUP(P$84,BAHW,28) ->  | D84: =VLOOKUP(P$84,BAHWO,28) ->  | E84: 50.7 | F84: 348.6 | G84: =VLOOKUP(P$87,BAHW,28) ->  | H84: =VLOOKUP(P$87,BAHWO,28) ->  | I84: O10 | J84: =VLOOKUP(Q$84,BAHW,28) ->  | K84: =VLOOKUP(Q$84,BAHWO,28) ->  | L84: 50.7 | M84: 348.6 | N84: =VLOOKUP(Q$87,BAHW,28) ->  | O84: =VLOOKUP(Q$87,BAHWO,28) ->  | P84: =VLOOKUP(P83,ZIPS,2,FALSE) ->  | Q84: =VLOOKUP(Q83,ZIPS,2,FALSE) ->  | DX84: GA081 | DY84: 1059 | DZ84: 1059 | EA84: 1059 | EB84: 1059 | EC84: 1101 | ED84: 1332 | EE84: 1383 | EF84: 1443 | EG84: 1530 | EH84: 1344 | EI84: 1410 | EJ84: 1485 | EK84: 1551 | EL84: 1632 | EM84: 1395 | EN84: 1470 | EO84: 1560 | EP84: 1131 | EQ84: 1329 | ER84: 1482 | ES84: 1656 | ET84: 1782 | EU84: 1794 | EV84: 1806 | EW84: 1806 | EX84: 1806 | EY84: 1806 | FA84: GA081 | FB84: 897 | FC84: 897 | FD84: 897 | FE84: 897 | FF84: 966 | FG84: 1017 | FH84: 1059 | FI84: 1149 | FJ84: 1215 | FK84: 1056 | FL84: 1146 | FM84: 1224 | FN84: 1344 | FO84: 1395 | FP84: 1101 | FQ84: 1203 | FR84: 1326 | FS84: 1014 | FT84: 1089 | FU84: 1245 | FV84: 1383 | FW84: 1413 | FX84: 1467 | FY84: 1497 | FZ84: 1497 | GA84: 1497 | GB84: 1497 | GD84: 739 | GE84: XX499 | GG84: GA081 | GH84: MOODY AFB, GA
B85: O9 | C85: =VLOOKUP(P$84,BAHW,27) ->  | D85: =VLOOKUP(P$84,BAHWO,27) ->  | E85: 50.7 | F85: 348.6 | G85: =VLOOKUP(P$87,BAHW,27) ->  | H85: =VLOOKUP(P$87,BAHWO,27) ->  | I85: O9 | J85: =VLOOKUP(Q$84,BAHW,27) ->  | K85: =VLOOKUP(Q$84,BAHWO,27) ->  | L85: 50.7 | M85: 348.6 | N85: =VLOOKUP(Q$87,BAHW,27) ->  | O85: =VLOOKUP(Q$87,BAHWO,27) ->  | DX85: HI407 | DY85: 2277 | DZ85: 2277 | EA85: 2277 | EB85: 2277 | EC85: 2466 | ED85: 3525 | EE85: 3585 | EF85: 3648 | EG85: 3699 | EH85: 3540 | EI85: 3615 | EJ85: 3693 | EK85: 3705 | EL85: 3723 | EM85: 3597 | EN85: 3678 | EO85: 3708 | EP85: 2586 | EQ85: 3510 | ER85: 3690 | ES85: 3726 | ET85: 3741 | EU85: 3774 | EV85: 3807 | EW85: 3807 | EX85: 3807 | EY85: 3807 | FA85: HI407 | FB85: 1737 | FC85: 1737 | FD85: 1737 | FE85: 1737 | FF85: 1962 | FG85: 2643 | FH85: 2688 | FI85: 2736 | FJ85: 3003 | FK85: 2655 | FL85: 2712 | FM85: 3039 | FN85: 3540 | FO85: 3600 | FP85: 2697 | FQ85: 2931 | FR85: 3522 | FS85: 2085 | FT85: 2691 | FU85: 3144 | FV85: 3585 | FW85: 3618 | FX85: 3675 | FY85: 3753 | FZ85: 3753 | GA85: 3753 | GB85: 3753 | GD85: 740 | GE85: XX499 | GG85: HI407 | GH85: MAUI COUNTY, HI
B86: O8 | C86: =VLOOKUP(P$84,BAHW,26) ->  | D86: =VLOOKUP(P$84,BAHWO,26) ->  | E86: 50.7 | F86: 348.6 | G86: =VLOOKUP(P$87,BAHW,26) ->  | H86: =VLOOKUP(P$87,BAHWO,26) ->  | I86: O8 | J86: =VLOOKUP(Q$84,BAHW,26) ->  | K86: =VLOOKUP(Q$84,BAHWO,26) ->  | L86: 50.7 | M86: 348.6 | N86: =VLOOKUP(Q$87,BAHW,26) ->  | O86: =VLOOKUP(Q$87,BAHWO,26) ->  | P86: =AZIP2 -> 0 | Q86: =PZIP2 -> 0 | DX86: HI408 | DY86: 2850 | DZ86: 2850 | EA86: 2850 | EB86: 2850 | EC86: 3039 | ED86: 3105 | EE86: 3276 | EF86: 3465 | EG86: 3648 | EH86: 3114 | EI86: 3357 | EJ86: 3591 | EK86: 3672 | EL86: 3768 | EM86: 3312 | EN86: 3555 | EO86: 3684 | EP86: 3051 | EQ86: 3102 | ER86: 3582 | ES86: 3798 | ET86: 3948 | EU86: 3984 | EV86: 4020 | EW86: 4020 | EX86: 4020 | EY86: 4020 | FA86: HI408 | FB86: 2139 | FC86: 2139 | FD86: 2139 | FE86: 2139 | FF86: 2445 | FG86: 2676 | FH86: 2856 | FI86: 3057 | FJ86: 3069 | FK86: 2790 | FL86: 3054 | FM86: 3075 | FN86: 3144 | FO86: 3318 | FP86: 3039 | FQ86: 3066 | FR86: 3096 | FS86: 2658 | FT86: 2979 | FU86: 3078 | FV86: 3288 | FW86: 3396 | FX86: 3573 | FY86: 3648 | FZ86: 3648 | GA86: 3648 | GB86: 3648 | GD86: 741 | GE86: XX499 | GG86: HI408 | GH86: HONOLULU COUNTY, HI
B87: O7 | C87: =VLOOKUP(P$84,BAHW,25) ->  | D87: =VLOOKUP(P$84,BAHWO,25) ->  | E87: 50.7 | F87: 348.6 | G87: =VLOOKUP(P$87,BAHW,25) ->  | H87: =VLOOKUP(P$87,BAHWO,25) ->  | I87: O7 | J87: =VLOOKUP(Q$84,BAHW,25) ->  | K87: =VLOOKUP(Q$84,BAHWO,25) ->  | L87: 50.7 | M87: 348.6 | N87: =VLOOKUP(Q$87,BAHW,25) ->  | O87: =VLOOKUP(Q$87,BAHWO,25) ->  | P87: =VLOOKUP(P86,ZIPS,2,FALSE) ->  | Q87: =VLOOKUP(Q86,ZIPS,2,FALSE) ->  | DX87: HI409 | DY87: 2097 | DZ87: 2097 | EA87: 2097 | EB87: 2097 | EC87: 2205 | ED87: 2679 | EE87: 2766 | EF87: 2856 | EG87: 2934 | EH87: 2694 | EI87: 2805 | EJ87: 2919 | EK87: 2940 | EL87: 2970 | EM87: 2784 | EN87: 2898 | EO87: 2943 | EP87: 2262 | EQ87: 2676 | ER87: 2913 | ES87: 2973 | ET87: 3012 | EU87: 3039 | EV87: 3063 | EW87: 3063 | EX87: 3063 | EY87: 3063 | FA87: HI409 | FB87: 1572 | FC87: 1572 | FD87: 1572 | FE87: 1572 | FF87: 1812 | FG87: 2010 | FH87: 2097 | FI87: 2301 | FJ87: 2445 | FK87: 2067 | FL87: 2298 | FM87: 2463 | FN87: 2703 | FO87: 2787 | FP87: 2205 | FQ87: 2415 | FR87: 2676 | FS87: 1986 | FT87: 2172 | FU87: 2508 | FV87: 2766 | FW87: 2817 | FX87: 2901 | FY87: 2961 | FZ87: 2961 | GA87: 2961 | GB87: 2961 | GD87: 742 | GE87: XX499 | GG87: HI409 | GH87: HAWAII COUNTY, HI
B88: O6 | C88: =VLOOKUP(P$84,BAHW,24) ->  | D88: =VLOOKUP(P$84,BAHWO,24) ->  | E88: 39.6 | F88: 296.4 | G88: =VLOOKUP(P$87,BAHW,24) ->  | H88: =VLOOKUP(P$87,BAHWO,24) ->  | I88: O6 | J88: =VLOOKUP(Q$84,BAHW,24) ->  | K88: =VLOOKUP(Q$84,BAHWO,24) ->  | L88: 39.6 | M88: 296.4 | N88: =VLOOKUP(Q$87,BAHW,24) ->  | O88: =VLOOKUP(Q$87,BAHWO,24) ->  | DX88: HI414 | DY88: 2160 | DZ88: 2160 | EA88: 2160 | EB88: 2160 | EC88: 2322 | ED88: 2655 | EE88: 2733 | EF88: 2817 | EG88: 2964 | EH88: 2670 | EI88: 2769 | EJ88: 2874 | EK88: 3000 | EL88: 3156 | EM88: 2748 | EN88: 2856 | EO88: 3024 | EP88: 2361 | EQ88: 2652 | ER88: 2868 | ES88: 3207 | ET88: 3450 | EU88: 3480 | EV88: 3510 | EW88: 3510 | EX88: 3510 | EY88: 3510 | FA88: HI414 | FB88: 1620 | FC88: 1620 | FD88: 1620 | FE88: 1620 | FF88: 1845 | FG88: 2010 | FH88: 2163 | FI88: 2388 | FJ88: 2490 | FK88: 2109 | FL88: 2385 | FM88: 2502 | FN88: 2676 | FO88: 2751 | FP88: 2322 | FQ88: 2469 | FR88: 2652 | FS88: 1995 | FT88: 2268 | FU88: 2535 | FV88: 2733 | FW88: 2781 | FX88: 2856 | FY88: 2916 | FZ88: 2916 | GA88: 2916 | GB88: 2916 | GD88: 744 | GE88: XX499 | GG88: HI414 | GH88: KAUAI COUNTY,HI
B89: O5 | C89: =VLOOKUP(P$84,BAHW,23) ->  | D89: =VLOOKUP(P$84,BAHWO,23) ->  | E89: 33 | F89: 286.5 | G89: =VLOOKUP(P$87,BAHW,23) ->  | H89: =VLOOKUP(P$87,BAHWO,23) ->  | I89: O5 | J89: =VLOOKUP(Q$84,BAHW,23) ->  | K89: =VLOOKUP(Q$84,BAHWO,23) ->  | L89: 33 | M89: 286.5 | N89: =VLOOKUP(Q$87,BAHW,23) ->  | O89: =VLOOKUP(Q$87,BAHWO,23) ->  | DX89: IA082 | DY89: 1299 | DZ89: 1299 | EA89: 1299 | EB89: 1299 | EC89: 1455 | ED89: 1683 | EE89: 1776 | EF89: 1875 | EG89: 2022 | EH89: 1695 | EI89: 1818 | EJ89: 1944 | EK89: 2055 | EL89: 2190 | EM89: 1794 | EN89: 1923 | EO89: 2073 | EP89: 1485 | EQ89: 1680 | ER89: 1938 | ES89: 2232 | ET89: 2442 | EU89: 2463 | EV89: 2484 | EW89: 2484 | EX89: 2484 | EY89: 2484 | FA89: IA082 | FB89: 1011 | FC89: 1011 | FD89: 1011 | FE89: 1011 | FF89: 1092 | FG89: 1260 | FH89: 1332 | FI89: 1503 | FJ89: 1569 | FK89: 1272 | FL89: 1500 | FM89: 1578 | FN89: 1704 | FO89: 1797 | FP89: 1455 | FQ89: 1557 | FR89: 1677 | FS89: 1137 | FT89: 1404 | FU89: 1599 | FV89: 1776 | FW89: 1833 | FX89: 1926 | FY89: 1968 | FZ89: 1968 | GA89: 1968 | GB89: 1968 | GD89: 745 | GE89: XX499 | GG89: IA082 | GH89: DES MOINES, IA
B90: O4 | C90: =VLOOKUP(P$84,BAHW,22) ->  | D90: =VLOOKUP(P$84,BAHWO,22) ->  | E90: 26.7 | F90: 190.8 | G90: =VLOOKUP(P$87,BAHW,22) ->  | H90: =VLOOKUP(P$87,BAHWO,22) ->  | I90: O4 | J90: =VLOOKUP(Q$84,BAHW,22) ->  | K90: =VLOOKUP(Q$84,BAHWO,22) ->  | L90: 26.7 | M90: 190.8 | N90: =VLOOKUP(Q$87,BAHW,22) ->  | O90: =VLOOKUP(Q$87,BAHWO,22) ->  | DX90: ID084 | DY90: 1155 | DZ90: 1155 | EA90: 1155 | EB90: 1155 | EC90: 1197 | ED90: 1479 | EE90: 1533 | EF90: 1596 | EG90: 1686 | EH90: 1491 | EI90: 1560 | EJ90: 1638 | EK90: 1707 | EL90: 1791 | EM90: 1545 | EN90: 1623 | EO90: 1716 | EP90: 1233 | EQ90: 1476 | ER90: 1635 | ES90: 1815 | ET90: 1947 | EU90: 1962 | EV90: 1977 | EW90: 1977 | EX90: 1977 | EY90: 1977 | FA90: ID084 | FB90: 903 | FC90: 903 | FD90: 903 | FE90: 903 | FF90: 1035 | FG90: 1116 | FH90: 1155 | FI90: 1254 | FJ90: 1338 | FK90: 1152 | FL90: 1251 | FM90: 1350 | FN90: 1491 | FO90: 1545 | FP90: 1197 | FQ90: 1320 | FR90: 1473 | FS90: 1113 | FT90: 1185 | FU90: 1374 | FV90: 1533 | FW90: 1566 | FX90: 1620 | FY90: 1656 | FZ90: 1656 | GA90: 1656 | GB90: 1656 | GD90: 751 | GE90: XX499 | GG90: ID084 | GH90: BOISE, ID
B91: O3 | C91: =VLOOKUP(P$84,BAHW,21) ->  | D91: =VLOOKUP(P$84,BAHWO,21) ->  | E91: 22.2 | F91: 190.5 | G91: =VLOOKUP(P$87,BAHW,21) ->  | H91: =VLOOKUP(P$87,BAHWO,21) ->  | I91: O3 | J91: =VLOOKUP(Q$84,BAHW,21) ->  | K91: =VLOOKUP(Q$84,BAHWO,21) ->  | L91: 22.2 | M91: 190.5 | N91: =VLOOKUP(Q$87,BAHW,21) ->  | O91: =VLOOKUP(Q$87,BAHWO,21) ->  | DX91: ID086 | DY91: 987 | DZ91: 987 | EA91: 987 | EB91: 987 | EC91: 1119 | ED91: 1416 | EE91: 1458 | EF91: 1506 | EG91: 1572 | EH91: 1428 | EI91: 1482 | EJ91: 1542 | EK91: 1587 | EL91: 1647 | EM91: 1467 | EN91: 1527 | EO91: 1593 | EP91: 1155 | EQ91: 1413 | ER91: 1539 | ES91: 1662 | ET91: 1752 | EU91: 1764 | EV91: 1776 | EW91: 1776 | EX91: 1776 | EY91: 1776 | FA91: ID086 | FB91: 798 | FC91: 798 | FD91: 798 | FE91: 798 | FF91: 840 | FG91: 1059 | FH91: 1095 | FI91: 1179 | FJ91: 1266 | FK91: 1071 | FL91: 1176 | FM91: 1278 | FN91: 1425 | FO91: 1470 | FP91: 1119 | FQ91: 1248 | FR91: 1410 | FS91: 867 | FT91: 1098 | FU91: 1308 | FV91: 1455 | FW91: 1482 | FX91: 1524 | FY91: 1557 | FZ91: 1557 | GA91: 1557 | GB91: 1557 | GD91: 754 | GE91: XX499 | GG91: ID086 | GH91: MOUNTAIN HOME AFB, ID
B92: O2 | C92: =VLOOKUP(P$84,BAHW,20) ->  | D92: =VLOOKUP(P$84,BAHWO,20) ->  | E92: 17.7 | F92: 224.7 | G92: =VLOOKUP(P$87,BAHW,20) ->  | H92: =VLOOKUP(P$87,BAHWO,20) ->  | I92: O2 | J92: =VLOOKUP(Q$84,BAHW,20) ->  | K92: =VLOOKUP(Q$84,BAHWO,20) ->  | L92: 17.7 | M92: 224.7 | N92: =VLOOKUP(Q$87,BAHW,20) ->  | O92: =VLOOKUP(Q$87,BAHWO,20) ->  | DX92: IL088 | DY92: 1002 | DZ92: 1002 | EA92: 1002 | EB92: 1002 | EC92: 1071 | ED92: 1278 | EE92: 1344 | EF92: 1419 | EG92: 1551 | EH92: 1287 | EI92: 1377 | EJ92: 1470 | EK92: 1584 | EL92: 1725 | EM92: 1356 | EN92: 1452 | EO92: 1605 | EP92: 1098 | EQ92: 1275 | ER92: 1467 | ES92: 1770 | ET92: 1989 | EU92: 2004 | EV92: 2019 | EW92: 2019 | EX92: 2019 | EY92: 2019 | FA92: IL088 | FB92: 765 | FC92: 765 | FD92: 765 | FE92: 765 | FF92: 864 | FG92: 954 | FH92: 1008 | FI92: 1116 | FJ92: 1173 | FK92: 987 | FL92: 1113 | FM92: 1182 | FN92: 1290 | FO92: 1359 | FP92: 1071 | FQ92: 1161 | FR92: 1269 | FS92: 927 | FT92: 1050 | FU92: 1200 | FV92: 1344 | FW92: 1491 | FX92: 1503 | FY92: 1515 | FZ92: 1515 | GA92: 1515 | GB92: 1515 | GD92: 757 | GE92: XX499 | GG92: IL088 | GH92: CHAMPAIGN/URBANA, IL
B93: O1 | C93: =VLOOKUP(P$84,BAHW,19) ->  | D93: =VLOOKUP(P$84,BAHWO,19) ->  | E93: 13.2 | F93: 242.7 | G93: =VLOOKUP(P$87,BAHW,19) ->  | H93: =VLOOKUP(P$87,BAHWO,19) ->  | I93: O1 | J93: =VLOOKUP(Q$84,BAHW,19) ->  | K93: =VLOOKUP(Q$84,BAHWO,19) ->  | L93: 13.2 | M93: 242.7 | N93: =VLOOKUP(Q$87,BAHW,19) ->  | O93: =VLOOKUP(Q$87,BAHWO,19) ->  | DX93: IL089 | DY93: 1353 | DZ93: 1353 | EA93: 1353 | EB93: 1353 | EC93: 1521 | ED93: 1836 | EE93: 1971 | EF93: 2118 | EG93: 2274 | EH93: 1848 | EI93: 2034 | EJ93: 2217 | EK93: 2298 | EL93: 2394 | EM93: 2001 | EN93: 2187 | EO93: 2310 | EP93: 1557 | EQ93: 1833 | ER93: 2211 | ES93: 2424 | ET93: 2574 | EU93: 2595 | EV93: 2616 | EW93: 2616 | EX93: 2616 | EY93: 2616 | FA93: IL089 | FB93: 1014 | FC93: 1014 | FD93: 1014 | FE93: 1014 | FF93: 1140 | FG93: 1374 | FH93: 1479 | FI93: 1590 | FJ93: 1707 | FK93: 1386 | FL93: 1581 | FM93: 1710 | FN93: 1869 | FO93: 2004 | FP93: 1521 | FQ93: 1659 | FR93: 1830 | FS93: 1185 | FT93: 1482 | FU93: 1719 | FV93: 1977 | FW93: 2064 | FX93: 2199 | FY93: 2247 | FZ93: 2247 | GA93: 2247 | GB93: 2247 | GD93: 765 | GE93: XX499 | GG93: IL089 | GH93: ROCK ISLAND, IL
B94: O3E | C94: =VLOOKUP(P$84,BAHW,18) ->  | D94: =VLOOKUP(P$84,BAHWO,18) ->  | E94: 22.2 | F94: 199.5 | G94: =VLOOKUP(P$87,BAHW,18) ->  | H94: =VLOOKUP(P$87,BAHWO,18) ->  | I94: O3E | J94: =VLOOKUP(Q$84,BAHW,18) ->  | K94: =VLOOKUP(Q$84,BAHWO,18) ->  | L94: 22.2 | M94: 199.5 | N94: =VLOOKUP(Q$87,BAHW,18) ->  | O94: =VLOOKUP(Q$87,BAHWO,18) ->  | DX94: IL090 | DY94: 1191 | DZ94: 1191 | EA94: 1191 | EB94: 1191 | EC94: 1317 | ED94: 1740 | EE94: 1857 | EF94: 1980 | EG94: 2103 | EH94: 1755 | EI94: 1911 | EJ94: 2064 | EK94: 2121 | EL94: 2193 | EM94: 1881 | EN94: 2037 | EO94: 2130 | EP94: 1368 | EQ94: 1737 | ER94: 2058 | ES94: 2214 | ET94: 2325 | EU94: 2343 | EV94: 2361 | EW94: 2361 | EX94: 2361 | EY94: 2361 | FA94: IL090 | FB94: 915 | FC94: 915 | FD94: 915 | FE94: 915 | FF94: 1002 | FG94: 1305 | FH94: 1392 | FI94: 1485 | FJ94: 1578 | FK94: 1317 | FL94: 1434 | FM94: 1581 | FN94: 1770 | FO94: 1884 | FP94: 1410 | FQ94: 1527 | FR94: 1737 | FS94: 1059 | FT94: 1395 | FU94: 1587 | FV94: 1860 | FW94: 1932 | FX94: 2046 | FY94: 2088 | FZ94: 2088 | GA94: 2088 | GB94: 2088 | GD94: 766 | GE94: XX499 | GG94: IL090 | GH94: PEORIA, IL
B95: O2E | C95: =VLOOKUP(P$84,BAHW,17) ->  | D95: =VLOOKUP(P$84,BAHWO,17) ->  | E95: 17.7 | F95: 238.8 | G95: =VLOOKUP(P$87,BAHW,17) ->  | H95: =VLOOKUP(P$87,BAHWO,17) ->  | I95: O2E | J95: =VLOOKUP(Q$84,BAHW,17) ->  | K95: =VLOOKUP(Q$84,BAHWO,17) ->  | L95: 17.7 | M95: 238.8 | N95: =VLOOKUP(Q$87,BAHW,17) ->  | O95: =VLOOKUP(Q$87,BAHWO,17) ->  | DX95: IL092 | DY95: 1566 | DZ95: 1566 | EA95: 1566 | EB95: 1566 | EC95: 1719 | ED95: 2403 | EE95: 2442 | EF95: 2484 | EG95: 2616 | EH95: 2418 | EI95: 2463 | EJ95: 2514 | EK95: 2658 | EL95: 2829 | EM95: 2451 | EN95: 2502 | EO95: 2682 | EP95: 1797 | EQ95: 2394 | ER95: 2511 | ES95: 2889 | ET95: 3162 | EU95: 3189 | EV95: 3216 | EW95: 3216 | EX95: 3216 | EY95: 3216 | FA95: IL092 | FB95: 1185 | FC95: 1185 | FD95: 1185 | FE95: 1185 | FF95: 1326 | FG95: 1803 | FH95: 1833 | FI95: 1863 | FJ95: 2067 | FK95: 1815 | FL95: 1851 | FM95: 2091 | FN95: 2415 | FO95: 2451 | FP95: 1839 | FQ95: 2022 | FR95: 2400 | FS95: 1410 | FT95: 1836 | FU95: 2157 | FV95: 2439 | FW95: 2460 | FX95: 2496 | FY95: 2547 | FZ95: 2547 | GA95: 2547 | GB95: 2547 | GD95: 767 | GE95: XX499 | GG95: IL092 | GH95: GREAT LAKES NAVTRACEN, IL
B96: O1E | C96: =VLOOKUP(P$84,BAHW,16) ->  | D96: =VLOOKUP(P$84,BAHWO,16) ->  | E96: 13.2 | F96: 279.9 | G96: =VLOOKUP(P$87,BAHW,16) ->  | H96: =VLOOKUP(P$87,BAHWO,16) ->  | I96: O1E | J96: =VLOOKUP(Q$84,BAHW,16) ->  | K96: =VLOOKUP(Q$84,BAHWO,16) ->  | L96: 13.2 | M96: 279.9 | N96: =VLOOKUP(Q$87,BAHW,16) ->  | O96: =VLOOKUP(Q$87,BAHWO,16) ->  | DX96: IL093 | DY96: 1092 | DZ96: 1092 | EA96: 1092 | EB96: 1092 | EC96: 1119 | ED96: 1308 | EE96: 1416 | EF96: 1536 | EG96: 1695 | EH96: 1317 | EI96: 1467 | EJ96: 1617 | EK96: 1725 | EL96: 1857 | EM96: 1440 | EN96: 1593 | EO96: 1743 | EP96: 1143 | EQ96: 1305 | ER96: 1611 | ES96: 1899 | ET96: 2103 | EU96: 2121 | EV96: 2136 | EW96: 2136 | EX96: 2136 | EY96: 2136 | FA96: IL093 | FB96: 858 | FC96: 858 | FD96: 858 | FE96: 858 | FF96: 984 | FG96: 1065 | FH96: 1095 | FI96: 1158 | FJ96: 1272 | FK96: 1092 | FL96: 1155 | FM96: 1275 | FN96: 1332 | FO96: 1443 | FP96: 1119 | FQ96: 1200 | FR96: 1308 | FS96: 1062 | FT96: 1113 | FU96: 1278 | FV96: 1425 | FW96: 1578 | FX96: 1599 | FY96: 1635 | FZ96: 1635 | GA96: 1635 | GB96: 1635 | GD96: 769 | GE96: XX499 | GG96: IL093 | GH96: SCOTT AFB, IL
B97: W5 | C97: =VLOOKUP(P$84,BAHW,15) ->  | D97: =VLOOKUP(P$84,BAHWO,15) ->  | E97: 25.2 | F97: 119.1 | G97: =VLOOKUP(P$87,BAHW,15) ->  | H97: =VLOOKUP(P$87,BAHWO,15) ->  | I97: W5 | J97: =VLOOKUP(Q$84,BAHW,15) ->  | K97: =VLOOKUP(Q$84,BAHWO,15) ->  | L97: 25.2 | M97: 119.1 | N97: =VLOOKUP(Q$87,BAHW,15) ->  | O97: =VLOOKUP(Q$87,BAHWO,15) ->  | DX97: IL325 | DY97: 1986 | DZ97: 1986 | EA97: 1986 | EB97: 1986 | EC97: 2058 | ED97: 2139 | EE97: 2205 | EF97: 2283 | EG97: 2391 | EH97: 2148 | EI97: 2241 | EJ97: 2337 | EK97: 2412 | EL97: 2508 | EM97: 2220 | EN97: 2319 | EO97: 2424 | EP97: 2070 | EQ97: 2136 | ER97: 2334 | ES97: 2535 | ET97: 2679 | EU97: 2700 | EV97: 2721 | EW97: 2721 | EX97: 2721 | EY97: 2721 | FA97: IL325 | FB97: 1491 | FC97: 1491 | FD97: 1491 | FE97: 1491 | FF97: 1749 | FG97: 1911 | FH97: 1983 | FI97: 2076 | FJ97: 2094 | FK97: 1968 | FL97: 2073 | FM97: 2100 | FN97: 2151 | FO97: 2223 | FP97: 2058 | FQ97: 2091 | FR97: 2127 | FS97: 1908 | FT97: 2037 | FU97: 2106 | FV97: 2205 | FW97: 2250 | FX97: 2319 | FY97: 2370 | FZ97: 2370 | GA97: 2370 | GB97: 2370 | GD97: 771 | GE97: XX499 | GG97: IL325 | GH97: CHICAGO, IL
B98: W4 | C98: =VLOOKUP(P$84,BAHW,14) ->  | D98: =VLOOKUP(P$84,BAHWO,14) ->  | E98: 25.2 | F98: 146.7 | G98: =VLOOKUP(P$87,BAHW,14) ->  | H98: =VLOOKUP(P$87,BAHWO,14) ->  | I98: W4 | J98: =VLOOKUP(Q$84,BAHW,14) ->  | K98: =VLOOKUP(Q$84,BAHWO,14) ->  | L98: 25.2 | M98: 146.7 | N98: =VLOOKUP(Q$87,BAHW,14) ->  | O98: =VLOOKUP(Q$87,BAHWO,14) ->  | DX98: IL335 | DY98: 912 | DZ98: 912 | EA98: 912 | EB98: 912 | EC98: 984 | ED98: 1425 | EE98: 1491 | EF98: 1557 | EG98: 1617 | EH98: 1440 | EI98: 1521 | EJ98: 1605 | EK98: 1623 | EL98: 1650 | EM98: 1503 | EN98: 1587 | EO98: 1626 | EP98: 1035 | EQ98: 1422 | ER98: 1599 | ES98: 1653 | ET98: 1686 | EU98: 1698 | EV98: 1710 | EW98: 1710 | EX98: 1710 | EY98: 1710 | FA98: IL335 | FB98: 756 | FC98: 756 | FD98: 756 | FE98: 756 | FF98: 801 | FG98: 1068 | FH98: 1119 | FI98: 1167 | FJ98: 1212 | FK98: 1080 | FL98: 1140 | FM98: 1224 | FN98: 1443 | FO98: 1503 | FP98: 1128 | FQ98: 1191 | FR98: 1422 | FS98: 837 | FT98: 1122 | FU98: 1266 | FV98: 1488 | FW98: 1527 | FX98: 1587 | FY98: 1620 | FZ98: 1620 | GA98: 1620 | GB98: 1620 | GD98: 772 | GE98: XX499 | GG98: IL335 | GH98: SPRINGFIELD/DECATUR,IL
B99: W3 | C99: =VLOOKUP(P$84,BAHW,13) ->  | D99: =VLOOKUP(P$84,BAHWO,13) ->  | E99: 20.7 | F99: 221.4 | G99: =VLOOKUP(P$87,BAHW,13) ->  | H99: =VLOOKUP(P$87,BAHWO,13) ->  | I99: W3 | J99: =VLOOKUP(Q$84,BAHW,13) ->  | K99: =VLOOKUP(Q$84,BAHWO,13) ->  | L99: 20.7 | M99: 221.4 | N99: =VLOOKUP(Q$87,BAHW,13) ->  | O99: =VLOOKUP(Q$87,BAHWO,13) ->  | DX99: IN094 | DY99: 1341 | DZ99: 1341 | EA99: 1341 | EB99: 1341 | EC99: 1434 | ED99: 1500 | EE99: 1545 | EF99: 1599 | EG99: 1674 | EH99: 1509 | EI99: 1569 | EJ99: 1638 | EK99: 1689 | EL99: 1752 | EM99: 1554 | EN99: 1626 | EO99: 1695 | EP99: 1443 | EQ99: 1497 | ER99: 1635 | ES99: 1767 | ET99: 1863 | EU99: 1875 | EV99: 1890 | EW99: 1890 | EX99: 1890 | EY99: 1890 | FA99: IN094 | FB99: 1041 | FC99: 1041 | FD99: 1041 | FE99: 1041 | FF99: 1167 | FG99: 1248 | FH99: 1341 | FI99: 1449 | FJ99: 1464 | FK99: 1317 | FL99: 1446 | FM99: 1467 | FN99: 1506 | FO99: 1557 | FP99: 1434 | FQ99: 1461 | FR99: 1488 | FS99: 1242 | FT99: 1404 | FU99: 1470 | FV99: 1542 | FW99: 1572 | FX99: 1620 | FY99: 1656 | FZ99: 1656 | GA99: 1656 | GB99: 1656 | GD99: 773 | GE99: XX499 | GG99: IN094 | GH99: INDIANAPOLIS, IN
B100: W2 | C100: =VLOOKUP(P$84,BAHW,12) ->  | D100: =VLOOKUP(P$84,BAHWO,12) ->  | E100: 15.9 | F100: 234 | G100: =VLOOKUP(P$87,BAHW,12) ->  | H100: =VLOOKUP(P$87,BAHWO,12) ->  | I100: W2 | J100: =VLOOKUP(Q$84,BAHW,12) ->  | K100: =VLOOKUP(Q$84,BAHWO,12) ->  | L100: 15.9 | M100: 234 | N100: =VLOOKUP(Q$87,BAHW,12) ->  | O100: =VLOOKUP(Q$87,BAHWO,12) ->  | DX100: IN097 | DY100: 1125 | DZ100: 1125 | EA100: 1125 | EB100: 1125 | EC100: 1236 | ED100: 1329 | EE100: 1404 | EF100: 1488 | EG100: 1596 | EH100: 1338 | EI100: 1440 | EJ100: 1545 | EK100: 1617 | EL100: 1704 | EM100: 1419 | EN100: 1527 | EO100: 1626 | EP100: 1251 | EQ100: 1326 | ER100: 1542 | ES100: 1728 | ET100: 1863 | EU100: 1875 | EV100: 1890 | EW100: 1890 | EX100: 1890 | EY100: 1890 | FA100: IN097 | FB100: 870 | FC100: 870 | FD100: 870 | FE100: 870 | FF100: 954 | FG100: 1017 | FH100: 1125 | FI100: 1257 | FJ100: 1278 | FK100: 1092 | FL100: 1254 | FM100: 1284 | FN100: 1344 | FO100: 1422 | FP100: 1236 | FQ100: 1275 | FR100: 1320 | FS100: 1008 | FT100: 1203 | FU100: 1293 | FV100: 1404 | FW100: 1452 | FX100: 1527 | FY100: 1560 | FZ100: 1560 | GA100: 1560 | GB100: 1560 | GD100: 775 | GE100: XX499 | GG100: IN097 | GH100: FORT WAYNE, IN
B101: W1 | C101: =VLOOKUP(P$84,BAHW,11) ->  | D101: =VLOOKUP(P$84,BAHWO,11) ->  | E101: 13.8 | F101: 226.5 | G101: =VLOOKUP(P$87,BAHW,11) ->  | H101: =VLOOKUP(P$87,BAHWO,11) ->  | I101: W1 | J101: =VLOOKUP(Q$84,BAHW,11) ->  | K101: =VLOOKUP(Q$84,BAHWO,11) ->  | L101: 13.8 | M101: 226.5 | N101: =VLOOKUP(Q$87,BAHW,11) ->  | O101: =VLOOKUP(Q$87,BAHWO,11) ->  | DX101: IN338 | DY101: 957 | DZ101: 957 | EA101: 957 | EB101: 957 | EC101: 1023 | ED101: 1125 | EE101: 1188 | EF101: 1263 | EG101: 1347 | EH101: 1134 | EI101: 1221 | EJ101: 1314 | EK101: 1365 | EL101: 1428 | EM101: 1200 | EN101: 1296 | EO101: 1371 | EP101: 1038 | EQ101: 1122 | ER101: 1308 | ES101: 1443 | ET101: 1539 | EU101: 1551 | EV101: 1563 | EW101: 1563 | EX101: 1563 | EY101: 1563 | FA101: IN338 | FB101: 717 | FC101: 717 | FD101: 717 | FE101: 717 | FF101: 819 | FG101: 891 | FH101: 954 | FI101: 1047 | FJ101: 1071 | FK101: 942 | FL101: 1044 | FM101: 1077 | FN101: 1134 | FO101: 1203 | FP101: 1023 | FQ101: 1065 | FR101: 1113 | FS101: 888 | FT101: 1002 | FU101: 1083 | FV101: 1188 | FW101: 1227 | FX101: 1296 | FY101: 1323 | FZ101: 1323 | GA101: 1323 | GB101: 1323 | GD101: 777 | GE101: XX499 | GG101: IN338 | GH101: TERRE HAUTE, IN
B102: E9 | C102: =VLOOKUP(P$84,BAHW,10) ->  | D102: =VLOOKUP(P$84,BAHWO,10) ->  | E102: 18.6 | F102: 298.8 | G102: =VLOOKUP(P$87,BAHW,10) ->  | H102: =VLOOKUP(P$87,BAHWO,10) ->  | I102: E9 | J102: =VLOOKUP(Q$84,BAHW,10) ->  | K102: =VLOOKUP(Q$84,BAHWO,10) ->  | L102: 18.6 | M102: 298.8 | N102: =VLOOKUP(Q$87,BAHW,10) ->  | O102: =VLOOKUP(Q$87,BAHWO,10) ->  | DX102: IN399 | DY102: 1083 | DZ102: 1083 | EA102: 1083 | EB102: 1083 | EC102: 1146 | ED102: 1314 | EE102: 1452 | EF102: 1608 | EG102: 1758 | EH102: 1323 | EI102: 1518 | EJ102: 1710 | EK102: 1779 | EL102: 1866 | EM102: 1482 | EN102: 1677 | EO102: 1791 | EP102: 1167 | EQ102: 1311 | ER102: 1701 | ES102: 1890 | ET102: 2025 | EU102: 2040 | EV102: 2055 | EW102: 2055 | EX102: 2055 | EY102: 2055 | FA102: IN399 | FB102: 858 | FC102: 858 | FD102: 858 | FE102: 858 | FF102: 954 | FG102: 1020 | FH102: 1089 | FI102: 1206 | FJ102: 1320 | FK102: 1071 | FL102: 1179 | FM102: 1323 | FN102: 1347 | FO102: 1488 | FP102: 1146 | FQ102: 1257 | FR102: 1344 | FS102: 1017 | FT102: 1128 | FU102: 1326 | FV102: 1461 | FW102: 1548 | FX102: 1692 | FY102: 1728 | FZ102: 1728 | GA102: 1728 | GB102: 1728 | GD102: 778 | GE102: XX499 | GG102: IN399 | GH102: BLOOMINGTON, IN
B103: E8 | C103: =VLOOKUP(P$84,BAHW,9) ->  | D103: =VLOOKUP(P$84,BAHWO,9) ->  | E103: 15.3 | F103: 280.2 | G103: =VLOOKUP(P$87,BAHW,9) ->  | H103: =VLOOKUP(P$87,BAHWO,9) ->  | I103: E8 | J103: =VLOOKUP(Q$84,BAHW,9) ->  | K103: =VLOOKUP(Q$84,BAHWO,9) ->  | L103: 15.3 | M103: 280.2 | N103: =VLOOKUP(Q$87,BAHW,9) ->  | O103: =VLOOKUP(Q$87,BAHWO,9) ->  | DX103: KS100 | DY103: 1038 | DZ103: 1038 | EA103: 1038 | EB103: 1038 | EC103: 1083 | ED103: 1287 | EE103: 1335 | EF103: 1389 | EG103: 1476 | EH103: 1299 | EI103: 1362 | EJ103: 1428 | EK103: 1494 | EL103: 1578 | EM103: 1344 | EN103: 1416 | EO103: 1506 | EP103: 1110 | EQ103: 1284 | ER103: 1425 | ES103: 1602 | ET103: 1725 | EU103: 1740 | EV103: 1752 | EW103: 1752 | EX103: 1752 | EY103: 1752 | FA103: KS100 | FB103: 843 | FC103: 843 | FD103: 843 | FE103: 843 | FF103: 933 | FG103: 993 | FH103: 1035 | FI103: 1125 | FJ103: 1185 | FK103: 1032 | FL103: 1122 | FM103: 1194 | FN103: 1296 | FO103: 1347 | FP103: 1083 | FQ103: 1173 | FR103: 1281 | FS103: 990 | FT103: 1071 | FU103: 1212 | FV103: 1332 | FW103: 1362 | FX103: 1410 | FY103: 1443 | FZ103: 1443 | GA103: 1443 | GB103: 1443 | GD103: 780 | GE103: XX499 | GG103: KS100 | GH103: FORT RILEY, KS
B104: E7 | C104: =VLOOKUP(P$84,BAHW,8) ->  | D104: =VLOOKUP(P$84,BAHWO,8) ->  | E104: 12 | F104: 324.3 | G104: =VLOOKUP(P$87,BAHW,8) ->  | H104: =VLOOKUP(P$87,BAHWO,8) ->  | I104: E7 | J104: =VLOOKUP(Q$84,BAHW,8) ->  | K104: =VLOOKUP(Q$84,BAHWO,8) ->  | L104: 12 | M104: 324.3 | N104: =VLOOKUP(Q$87,BAHW,8) ->  | O104: =VLOOKUP(Q$87,BAHWO,8) ->  | DX104: KS101 | DY104: 1092 | DZ104: 1092 | EA104: 1092 | EB104: 1092 | EC104: 1143 | ED104: 1245 | EE104: 1311 | EF104: 1386 | EG104: 1482 | EH104: 1254 | EI104: 1344 | EJ104: 1437 | EK104: 1503 | EL104: 1584 | EM104: 1323 | EN104: 1419 | EO104: 1512 | EP104: 1158 | EQ104: 1242 | ER104: 1434 | ES104: 1608 | ET104: 1734 | EU104: 1746 | EV104: 1758 | EW104: 1758 | EX104: 1758 | EY104: 1758 | FA104: KS101 | FB104: 876 | FC104: 876 | FD104: 876 | FE104: 876 | FF104: 972 | FG104: 1038 | FH104: 1089 | FI104: 1167 | FJ104: 1191 | FK104: 1083 | FL104: 1164 | FM104: 1197 | FN104: 1257 | FO104: 1326 | FP104: 1143 | FQ104: 1188 | FR104: 1236 | FS104: 1035 | FT104: 1128 | FU104: 1206 | FV104: 1311 | FW104: 1350 | FX104: 1419 | FY104: 1449 | FZ104: 1449 | GA104: 1449 | GB104: 1449 | GD104: 782 | GE104: XX499 | GG104: KS101 | GH104: WICHITA/MCCONNELL AFB, KS
B105: E6 | C105: =VLOOKUP(P$84,BAHW,7) ->  | D105: =VLOOKUP(P$84,BAHWO,7) ->  | E105: 9.9 | F105: 313.8 | G105: =VLOOKUP(P$87,BAHW,7) ->  | H105: =VLOOKUP(P$87,BAHWO,7) ->  | I105: E6 | J105: =VLOOKUP(Q$84,BAHW,7) ->  | K105: =VLOOKUP(Q$84,BAHWO,7) ->  | L105: 9.9 | M105: 313.8 | N105: =VLOOKUP(Q$87,BAHW,7) ->  | O105: =VLOOKUP(Q$87,BAHWO,7) ->  | DX105: KS102 | DY105: 1161 | DZ105: 1161 | EA105: 1161 | EB105: 1161 | EC105: 1263 | ED105: 1350 | EE105: 1452 | EF105: 1566 | EG105: 1680 | EH105: 1359 | EI105: 1500 | EJ105: 1644 | EK105: 1695 | EL105: 1761 | EM105: 1473 | EN105: 1617 | EO105: 1704 | EP105: 1278 | EQ105: 1347 | ER105: 1638 | ES105: 1779 | ET105: 1878 | EU105: 1893 | EV105: 1905 | EW105: 1905 | EX105: 1905 | EY105: 1905 | FA105: KS102 | FB105: 927 | FC105: 927 | FD105: 927 | FE105: 927 | FF105: 1005 | FG105: 1065 | FH105: 1164 | FI105: 1284 | FJ105: 1302 | FK105: 1134 | FL105: 1281 | FM105: 1308 | FN105: 1371 | FO105: 1476 | FP105: 1263 | FQ105: 1299 | FR105: 1341 | FS105: 1056 | FT105: 1233 | FU105: 1314 | FV105: 1455 | FW105: 1521 | FX105: 1626 | FY105: 1659 | FZ105: 1659 | GA105: 1659 | GB105: 1659 | GD105: 783 | GE105: XX499 | GG105: KS102 | GH105: FORT LEAVENWORTH, KS
B106: E5 | C106: =VLOOKUP(P$84,BAHW,6) ->  | D106: =VLOOKUP(P$84,BAHWO,6) ->  | E106: 8.7 | F106: 267 | G106: =VLOOKUP(P$87,BAHW,6) ->  | H106: =VLOOKUP(P$87,BAHWO,6) ->  | I106: E5 | J106: =VLOOKUP(Q$84,BAHW,6) ->  | K106: =VLOOKUP(Q$84,BAHWO,6) ->  | L106: 8.7 | M106: 267 | N106: =VLOOKUP(Q$87,BAHW,6) ->  | O106: =VLOOKUP(Q$87,BAHWO,6) ->  | DX106: KS105 | DY106: 1035 | DZ106: 1035 | EA106: 1035 | EB106: 1035 | EC106: 1164 | ED106: 1287 | EE106: 1311 | EF106: 1344 | EG106: 1431 | EH106: 1296 | EI106: 1326 | EJ106: 1368 | EK106: 1458 | EL106: 1572 | EM106: 1317 | EN106: 1356 | EO106: 1473 | EP106: 1179 | EQ106: 1284 | ER106: 1365 | ES106: 1608 | ET106: 1785 | EU106: 1797 | EV106: 1812 | EW106: 1812 | EX106: 1812 | EY106: 1812 | FA106: KS105 | FB106: 777 | FC106: 777 | FD106: 777 | FE106: 777 | FF106: 873 | FG106: 960 | FH106: 1038 | FI106: 1191 | FJ106: 1221 | FK106: 996 | FL106: 1188 | FM106: 1230 | FN106: 1290 | FO106: 1317 | FP106: 1164 | FQ106: 1215 | FR106: 1278 | FS106: 903 | FT106: 1122 | FU106: 1239 | FV106: 1308 | FW106: 1338 | FX106: 1347 | FY106: 1377 | FZ106: 1377 | GA106: 1377 | GB106: 1377 | GD106: 784 | GE106: XX499 | GG106: KS105 | GH106: TOPEKA, KS
B107: E4 | C107: =VLOOKUP(P$84,BAHW,5) ->  | D107: =VLOOKUP(P$84,BAHWO,5) ->  | E107: 8.1 | F107: 230.4 | G107: =VLOOKUP(P$87,BAHW,5) ->  | H107: =VLOOKUP(P$87,BAHWO,5) ->  | I107: E4 | J107: =VLOOKUP(Q$84,BAHW,5) ->  | K107: =VLOOKUP(Q$84,BAHWO,5) ->  | L107: 8.1 | M107: 230.4 | N107: =VLOOKUP(Q$87,BAHW,5) ->  | O107: =VLOOKUP(Q$87,BAHWO,5) ->  | DX107: KY106 | DY107: 1323 | DZ107: 1323 | EA107: 1323 | EB107: 1323 | EC107: 1353 | ED107: 1431 | EE107: 1587 | EF107: 1761 | EG107: 1911 | EH107: 1443 | EI107: 1662 | EJ107: 1875 | EK107: 1926 | EL107: 1992 | EM107: 1620 | EN107: 1842 | EO107: 1935 | EP107: 1365 | EQ107: 1428 | ER107: 1866 | ES107: 2007 | ET107: 2103 | EU107: 2121 | EV107: 2136 | EW107: 2136 | EX107: 2136 | EY107: 2136 | FA107: KY106 | FB107: 1077 | FC107: 1077 | FD107: 1077 | FE107: 1077 | FF107: 1209 | FG107: 1290 | FH107: 1326 | FI107: 1371 | FJ107: 1434 | FK107: 1323 | FL107: 1368 | FM107: 1437 | FN107: 1467 | FO107: 1626 | FP107: 1353 | FQ107: 1386 | FR107: 1452 | FS107: 1287 | FT107: 1347 | FU107: 1440 | FV107: 1596 | FW107: 1698 | FX107: 1857 | FY107: 1899 | FZ107: 1899 | GA107: 1899 | GB107: 1899 | GD107: 785 | GE107: XX499 | GG107: KY106 | GH107: FORT CAMPBELL, KY
B108: E3 | C108: =VLOOKUP(P$84,BAHW,4) ->  | D108: =VLOOKUP(P$84,BAHWO,4) ->  | E108: 7.8 | F108: 189.3 | G108: =VLOOKUP(P$87,BAHW,4) ->  | H108: =VLOOKUP(P$87,BAHWO,4) ->  | I108: E3 | J108: =VLOOKUP(Q$84,BAHW,4) ->  | K108: =VLOOKUP(Q$84,BAHWO,4) ->  | L108: 7.8 | M108: 189.3 | N108: =VLOOKUP(Q$87,BAHW,4) ->  | O108: =VLOOKUP(Q$87,BAHWO,4) ->  | DX108: KY107 | DY108: 1239 | DZ108: 1239 | EA108: 1239 | EB108: 1239 | EC108: 1365 | ED108: 1593 | EE108: 1608 | EF108: 1626 | EG108: 1698 | EH108: 1605 | EI108: 1617 | EJ108: 1641 | EK108: 1725 | EL108: 1827 | EM108: 1611 | EN108: 1632 | EO108: 1737 | EP108: 1395 | EQ108: 1590 | ER108: 1638 | ES108: 1857 | ET108: 2016 | EU108: 2034 | EV108: 2049 | EW108: 2049 | EX108: 2049 | EY108: 2049 | FA108: KY107 | FB108: 930 | FC108: 930 | FD108: 930 | FE108: 930 | FF108: 1035 | FG108: 1194 | FH108: 1242 | FI108: 1413 | FJ108: 1479 | FK108: 1203 | FL108: 1410 | FM108: 1488 | FN108: 1596 | FO108: 1611 | FP108: 1365 | FQ108: 1467 | FR108: 1587 | FS108: 1110 | FT108: 1326 | FU108: 1509 | FV108: 1602 | FW108: 1614 | FX108: 1623 | FY108: 1656 | FZ108: 1656 | GA108: 1656 | GB108: 1656 | GD108: 786 | GE108: XX499 | GG108: KY107 | GH108: LEXINGTON, KY
B109: E2 | C109: =VLOOKUP(P$84,BAHW,3) ->  | D109: =VLOOKUP(P$84,BAHWO,3) ->  | E109: 7.2 | F109: 252.6 | G109: =VLOOKUP(P$87,BAHW,3) ->  | H109: =VLOOKUP(P$87,BAHWO,3) ->  | I109: E2 | J109: =VLOOKUP(Q$84,BAHW,3) ->  | K109: =VLOOKUP(Q$84,BAHWO,3) ->  | L109: 7.2 | M109: 252.6 | N109: =VLOOKUP(Q$87,BAHW,3) ->  | O109: =VLOOKUP(Q$87,BAHWO,3) ->  | DX109: KY109 | DY109: 1422 | DZ109: 1422 | EA109: 1422 | EB109: 1422 | EC109: 1497 | ED109: 1659 | EE109: 1671 | EF109: 1680 | EG109: 1743 | EH109: 1668 | EI109: 1677 | EJ109: 1689 | EK109: 1773 | EL109: 1902 | EM109: 1674 | EN109: 1683 | EO109: 1791 | EP109: 1518 | EQ109: 1656 | ER109: 1686 | ES109: 1944 | ET109: 2142 | EU109: 2160 | EV109: 2178 | EW109: 2178 | EX109: 2178 | EY109: 2178 | FA109: KY109 | FB109: 1068 | FC109: 1068 | FD109: 1068 | FE109: 1068 | FF109: 1242 | FG109: 1344 | FH109: 1419 | FI109: 1533 | FJ109: 1575 | FK109: 1404 | FL109: 1530 | FM109: 1584 | FN109: 1656 | FO109: 1662 | FP109: 1497 | FQ109: 1566 | FR109: 1650 | FS109: 1341 | FT109: 1473 | FU109: 1596 | FV109: 1659 | FW109: 1665 | FX109: 1668 | FY109: 1686 | FZ109: 1686 | GA109: 1686 | GB109: 1686 | GD109: 791 | GE109: XX499 | GG109: KY109 | GH109: LOUISVILLE, KY
B110: E1 | C110: =VLOOKUP(P$84,BAHW,2) ->  | D110: =VLOOKUP(P$84,BAHWO,2) ->  | E110: 6.9 | F110: 298.8 | G110: =VLOOKUP(P$87,BAHW,2) ->  | H110: =VLOOKUP(P$87,BAHWO,2) ->  | I110: E1 | J110: =VLOOKUP(Q$84,BAHW,2) ->  | K110: =VLOOKUP(Q$84,BAHWO,2) ->  | L110: 6.9 | M110: 298.8 | N110: =VLOOKUP(Q$87,BAHW,2) ->  | O110: =VLOOKUP(Q$87,BAHWO,2) ->  | DX110: KY110 | DY110: 828 | DZ110: 828 | EA110: 828 | EB110: 828 | EC110: 915 | ED110: 1155 | EE110: 1251 | EF110: 1356 | EG110: 1488 | EH110: 1167 | EI110: 1296 | EJ110: 1428 | EK110: 1515 | EL110: 1623 | EM110: 1269 | EN110: 1404 | EO110: 1530 | EP110: 945 | EQ110: 1152 | ER110: 1422 | ES110: 1656 | ET110: 1824 | EU110: 1839 | EV110: 1851 | EW110: 1851 | EX110: 1851 | EY110: 1851 | FA110: KY110 | FB110: 642 | FC110: 642 | FD110: 642 | FE110: 642 | FF110: 699 | FG110: 864 | FH110: 939 | FI110: 1017 | FJ110: 1116 | FK110: 876 | FL110: 972 | FM110: 1119 | FN110: 1176 | FO110: 1272 | FP110: 951 | FQ110: 1053 | FR110: 1149 | FS110: 738 | FT110: 942 | FU110: 1122 | FV110: 1254 | FW110: 1368 | FX110: 1410 | FY110: 1440 | FZ110: 1440 | GA110: 1440 | GB110: 1440 | GD110: 792 | GE110: XX499 | GG110: KY110 | GH110: FORT KNOX, KY
DX111: KY339 | DY111: 870 | DZ111: 870 | EA111: 870 | EB111: 870 | EC111: 906 | ED111: 1044 | EE111: 1176 | EF111: 1326 | EG111: 1449 | EH111: 1053 | EI111: 1239 | EJ111: 1425 | EK111: 1461 | EL111: 1509 | EM111: 1206 | EN111: 1395 | EO111: 1467 | EP111: 924 | EQ111: 1041 | ER111: 1416 | ES111: 1518 | ET111: 1587 | EU111: 1596 | EV111: 1608 | EW111: 1608 | EX111: 1608 | EY111: 1608 | FA111: KY339 | FB111: 699 | FC111: 699 | FD111: 699 | FE111: 699 | FF111: 780 | FG111: 834 | FH111: 882 | FI111: 996 | FJ111: 1086 | FK111: 870 | FL111: 933 | FM111: 1089 | FN111: 1104 | FO111: 1209 | FP111: 906 | FQ111: 1047 | FR111: 1101 | FS111: 831 | FT111: 897 | FU111: 1092 | FV111: 1185 | FW111: 1269 | FX111: 1407 | FY111: 1437 | FZ111: 1437 | GA111: 1437 | GB111: 1437 | GD111: 794 | GE111: XX499 | GG111: KY339 | GH111: FRANKFORT, KY
DX112: KY430 | DY112: 939 | DZ112: 939 | EA112: 939 | EB112: 939 | EC112: 1026 | ED112: 1236 | EE112: 1302 | EF112: 1377 | EG112: 1479 | EH112: 1245 | EI112: 1335 | EJ112: 1431 | EK112: 1500 | EL112: 1587 | EM112: 1317 | EN112: 1413 | EO112: 1509 | EP112: 1053 | EQ112: 1233 | ER112: 1425 | ES112: 1611 | ET112: 1743 | EU112: 1755 | EV112: 1770 | EW112: 1770 | EX112: 1770 | EY112: 1770 | FA112: KY430 | FB112: 723 | FC112: 723 | FD112: 723 | FE112: 723 | FF112: 798 | FG112: 924 | FH112: 978 | FI112: 1068 | FJ112: 1128 | FK112: 933 | FL112: 1065 | FM112: 1137 | FN112: 1248 | FO112: 1317 | FP112: 1026 | FQ112: 1116 | FR112: 1227 | FS112: 849 | FT112: 999 | FU112: 1155 | FV112: 1302 | FW112: 1344 | FX112: 1413 | FY112: 1443 | FZ112: 1443 | GA112: 1443 | GB112: 1443 | GD112: 795 | GE112: XX499 | GG112: KY430 | GH112: PADUCAH, KY
B113: TRICARE DENTAL | C113: 2018-04-30 | D113: 2019-05-01 | G113: Inception Date | H113: TSP Since Inception as of December 2017 | K113: Monthly Withholding Table | DX113: LA113 | DY113: 969 | DZ113: 969 | EA113: 969 | EB113: 969 | EC113: 1011 | ED113: 1101 | EE113: 1119 | EF113: 1143 | EG113: 1236 | EH113: 1110 | EI113: 1131 | EJ113: 1164 | EK113: 1266 | EL113: 1392 | EM113: 1122 | EN113: 1155 | EO113: 1284 | EP113: 1026 | EQ113: 1098 | ER113: 1161 | ES113: 1431 | ET113: 1626 | EU113: 1638 | EV113: 1650 | EW113: 1650 | EX113: 1650 | EY113: 1650 | FA113: LA113 | FB113: 798 | FC113: 798 | FD113: 798 | FE113: 798 | FF113: 873 | FG113: 927 | FH113: 969 | FI113: 1032 | FJ113: 1053 | FK113: 966 | FL113: 1029 | FM113: 1059 | FN113: 1101 | FO113: 1122 | FP113: 1011 | FQ113: 1050 | FR113: 1089 | FS113: 924 | FT113: 1002 | FU113: 1065 | FV113: 1113 | FW113: 1221 | FX113: 1230 | FY113: 1239 | FZ113: 1239 | GA113: 1239 | GB113: 1239 | GD113: 801 | GE113: XX499 | GG113: LA113 | GH113: ALEXANDRIA, LA
B114: 1 Dep | C114: 11.1 | D114: 11.54 | G114: 1987-04-01 | H114: G Fund | I114: 0.0509 | K114: Exemption | L114: 350 | DX114: LA114 | DY114: 1461 | DZ114: 1461 | EA114: 1461 | EB114: 1461 | EC114: 1563 | ED114: 1710 | EE114: 1776 | EF114: 1848 | EG114: 1920 | EH114: 1719 | EI114: 1806 | EJ114: 1899 | EK114: 1932 | EL114: 1974 | EM114: 1788 | EN114: 1881 | EO114: 1935 | EP114: 1584 | EQ114: 1707 | ER114: 1893 | ES114: 1983 | ET114: 2043 | EU114: 2061 | EV114: 2076 | EW114: 2076 | EX114: 2076 | EY114: 2076 | FA114: LA114 | FB114: 1170 | FC114: 1170 | FD114: 1170 | FE114: 1170 | FF114: 1287 | FG114: 1362 | FH114: 1461 | FI114: 1596 | FJ114: 1635 | FK114: 1434 | FL114: 1593 | FM114: 1641 | FN114: 1722 | FO114: 1791 | FP114: 1563 | FQ114: 1626 | FR114: 1701 | FS114: 1356 | FT114: 1530 | FU114: 1653 | FV114: 1773 | FW114: 1815 | FX114: 1881 | FY114: 1920 | FZ114: 1920 | GA114: 1920 | GB114: 1920 | GD114: 802 | GE114: XX499 | GG114: LA114 | GH114: BATON ROUGE, LA
B115: Fam Plan | C115: 28.87 | D115: 30 | G115: 1988-01-29 | H115: F Fund | I115: 0.0624 | K115: Single | L115: 0 | M115: 317 | DX115: LA115 | DY115: 924 | DZ115: 924 | EA115: 924 | EB115: 924 | EC115: 984 | ED115: 1305 | EE115: 1347 | EF115: 1389 | EG115: 1461 | EH115: 1320 | EI115: 1365 | EJ115: 1422 | EK115: 1479 | EL115: 1554 | EM115: 1353 | EN115: 1407 | EO115: 1488 | EP115: 1023 | EQ115: 1302 | ER115: 1419 | ES115: 1575 | ET115: 1689 | EU115: 1701 | EV115: 1716 | EW115: 1716 | EX115: 1716 | EY115: 1716 | FA115: LA115 | FB115: 747 | FC115: 747 | FD115: 747 | FE115: 747 | FF115: 813 | FG115: 978 | FH115: 1011 | FI115: 1050 | FJ115: 1146 | FK115: 990 | FL115: 1047 | FM115: 1158 | FN115: 1314 | FO115: 1353 | FP115: 1017 | FQ115: 1125 | FR115: 1302 | FS115: 861 | FT115: 1014 | FU115: 1188 | FV115: 1341 | FW115: 1365 | FX115: 1401 | FY115: 1434 | FZ115: 1434 | GA115: 1434 | GB115: 1434 | GD115: 803 | GE115: XX499 | GG115: LA115 | GH115: FORT POLK, LA
B116: None Elected | C116: 0 | G116: 1988-01-29 | H116: C Fund | I116: 0.1053 | L116: =M115+0.01 -> 317.01 | M116: 1125 | N116: 0.1 | O116: 0 | DX116: LA116 | DY116: 1281 | DZ116: 1281 | EA116: 1281 | EB116: 1281 | EC116: 1389 | ED116: 1857 | EE116: 1902 | EF116: 1947 | EG116: 2031 | EH116: 1872 | EI116: 1923 | EJ116: 1983 | EK116: 2052 | EL116: 2139 | EM116: 1908 | EN116: 1971 | EO116: 2061 | EP116: 1446 | EQ116: 1854 | ER116: 1980 | ES116: 2163 | ET116: 2295 | EU116: 2313 | EV116: 2334 | EW116: 2334 | EX116: 2334 | EY116: 2334 | FA116: LA116 | FB116: 1008 | FC116: 1008 | FD116: 1008 | FE116: 1008 | FF116: 1107 | FG116: 1392 | FH116: 1428 | FI116: 1482 | FJ116: 1626 | FK116: 1404 | FL116: 1479 | FM116: 1644 | FN116: 1869 | FO116: 1911 | FP116: 1434 | FQ116: 1596 | FR116: 1854 | FS116: 1167 | FT116: 1431 | FU116: 1689 | FV116: 1899 | FW116: 1923 | FX116: 1965 | FY116: 2007 | FZ116: 2007 | GA116: 2007 | GB116: 2007 | GD116: 804 | GE116: XX499 | GG116: LA116 | GH116: NEW ORLEANS, LA
B117: BAS | D117: Deductible meal rate | G117: 2001-05-01 | H117: S Fund | I117: 0.0936 | L117: 1125.01 | M117: 3606 | N117: 0.12 | O117: 80.8 | DX117: LA117 | DY117: 1302 | DZ117: 1302 | EA117: 1302 | EB117: 1302 | EC117: 1404 | ED117: 1575 | EE117: 1644 | EF117: 1725 | EG117: 1836 | EH117: 1584 | EI117: 1680 | EJ117: 1779 | EK117: 1857 | EL117: 1956 | EM117: 1659 | EN117: 1761 | EO117: 1872 | EP117: 1428 | EQ117: 1572 | ER117: 1776 | ES117: 1986 | ET117: 2136 | EU117: 2154 | EV117: 2172 | EW117: 2172 | EX117: 2172 | EY117: 2172 | FA117: LA117 | FB117: 1065 | FC117: 1065 | FD117: 1065 | FE117: 1065 | FF117: 1143 | FG117: 1203 | FH117: 1302 | FI117: 1440 | FJ117: 1488 | FK117: 1275 | FL117: 1437 | FM117: 1497 | FN117: 1590 | FO117: 1662 | FP117: 1404 | FQ117: 1479 | FR117: 1566 | FS117: 1197 | FT117: 1374 | FU117: 1509 | FV117: 1644 | FW117: 1689 | FX117: 1761 | FY117: 1800 | FZ117: 1800 | GA117: 1800 | GB117: 1800 | GD117: 805 | GE117: XX499 | GG117: LA117 | GH117: SHREVEPORT/BARKSDALE AFB, L
B118: Cooking N/A | D118: 10.15 | E118: a day | G118: 2001-05-01 | H118: I Fund | I118: 0.0525 | L118: 3606.01 | M118: 7333 | N118: 0.22 | O118: 378.52 | DX118: LA118 | DY118: 1215 | DZ118: 1215 | EA118: 1215 | EB118: 1215 | EC118: 1368 | ED118: 1548 | EE118: 1632 | EF118: 1725 | EG118: 1860 | EH118: 1560 | EI118: 1674 | EJ118: 1791 | EK118: 1887 | EL118: 2007 | EM118: 1650 | EN118: 1770 | EO118: 1902 | EP118: 1392 | EQ118: 1545 | ER118: 1785 | ES118: 2043 | ET118: 2229 | EU118: 2247 | EV118: 2262 | EW118: 2262 | EX118: 2262 | EY118: 2262 | FA118: LA118 | FB118: 912 | FC118: 912 | FD118: 912 | FE118: 912 | FF118: 1026 | FG118: 1158 | FH118: 1224 | FI118: 1407 | FJ118: 1458 | FK118: 1170 | FL118: 1404 | FM118: 1464 | FN118: 1566 | FO118: 1653 | FP118: 1368 | FQ118: 1446 | FR118: 1542 | FS118: 1059 | FT118: 1320 | FU118: 1482 | FV118: 1635 | FW118: 1686 | FX118: 1773 | FY118: 1809 | FZ118: 1809 | GA118: 1809 | GB118: 1809 | GD118: 820 | GE118: XX499 | GG118: LA118 | GH118: LAFAYETTE, LA
B119: Standard | C119: 369.39 | G119: 2005-08-01 | H119: L Income | I119: 0.0415 | L119: 7333.01 | M119: 13710 | N119: 0.24 | O119: 1198.46 | DX119: LA326 | DY119: 1149 | DZ119: 1149 | EA119: 1149 | EB119: 1149 | EC119: 1230 | ED119: 1281 | EE119: 1341 | EF119: 1413 | EG119: 1500 | EH119: 1290 | EI119: 1374 | EJ119: 1464 | EK119: 1518 | EL119: 1584 | EM119: 1356 | EN119: 1446 | EO119: 1524 | EP119: 1239 | EQ119: 1278 | ER119: 1461 | ES119: 1599 | ET119: 1701 | EU119: 1713 | EV119: 1725 | EW119: 1725 | EX119: 1725 | EY119: 1725 | FA119: LA326 | FB119: 867 | FC119: 867 | FD119: 867 | FE119: 867 | FF119: 990 | FG119: 1071 | FH119: 1149 | FI119: 1245 | FJ119: 1254 | FK119: 1131 | FL119: 1242 | FM119: 1257 | FN119: 1290 | FO119: 1356 | FP119: 1230 | FQ119: 1251 | FR119: 1269 | FS119: 1065 | FT119: 1206 | FU119: 1260 | FV119: 1341 | FW119: 1380 | FX119: 1446 | FY119: 1476 | FZ119: 1476 | GA119: 1476 | GB119: 1476 | GD119: 821 | GE119: XX499 | GG119: LA326 | GH119: ST MARY AND TERREBONNE, LA
B120: Partial | G120: 2005-08-01 | H120: L 2020 | I120: 0.0556 | L120: 13710.01 | M120: 17325 | N120: 0.32 | O120: 2728.94 | DX120: LA370 | DY120: 1563 | DZ120: 1563 | EA120: 1563 | EB120: 1563 | EC120: 1683 | ED120: 1800 | EE120: 1833 | EF120: 1875 | EG120: 1941 | EH120: 1809 | EI120: 1851 | EJ120: 1905 | EK120: 1959 | EL120: 2025 | EM120: 1839 | EN120: 1893 | EO120: 1965 | EP120: 1698 | EQ120: 1797 | ER120: 1902 | ES120: 2043 | ET120: 2148 | EU120: 2163 | EV120: 2181 | EW120: 2181 | EX120: 2181 | EY120: 2181 | FA120: LA370 | FB120: 1260 | FC120: 1260 | FD120: 1260 | FE120: 1260 | FF120: 1371 | FG120: 1446 | FH120: 1563 | FI120: 1707 | FJ120: 1737 | FK120: 1527 | FL120: 1704 | FM120: 1743 | FN120: 1803 | FO120: 1842 | FP120: 1683 | FQ120: 1731 | FR120: 1791 | FS120: 1437 | FT120: 1644 | FU120: 1752 | FV120: 1830 | FW120: 1851 | FX120: 1887 | FY120: 1926 | FZ120: 1926 | GA120: 1926 | GB120: 1926 | GD120: 822 | GE120: XX499 | GG120: LA370 | GH120: LAKE CHARLES, LA
B121: Rations not Avail | G121: 2005-08-01 | H121: L 2030 | I121: 0.0631 | L121: 17325.01 | N121: 0.35 | O121: 3885.74 | DX121: LA371 | DY121: 951 | DZ121: 951 | EA121: 951 | EB121: 951 | EC121: 1008 | ED121: 1254 | EE121: 1323 | EF121: 1398 | EG121: 1491 | EH121: 1263 | EI121: 1356 | EJ121: 1449 | EK121: 1506 | EL121: 1578 | EM121: 1335 | EN121: 1431 | EO121: 1515 | EP121: 1038 | EQ121: 1251 | ER121: 1446 | ES121: 1599 | ET121: 1707 | EU121: 1719 | EV121: 1731 | EW121: 1731 | EX121: 1731 | EY121: 1731 | FA121: LA371 | FB121: 744 | FC121: 744 | FD121: 744 | FE121: 744 | FF121: 834 | FG121: 936 | FH121: 993 | FI121: 1059 | FJ121: 1131 | FK121: 948 | FL121: 1056 | FM121: 1140 | FN121: 1269 | FO121: 1338 | FP121: 1008 | FQ121: 1116 | FR121: 1245 | FS121: 891 | FT121: 996 | FU121: 1161 | FV121: 1320 | FW121: 1362 | FX121: 1431 | FY121: 1464 | FZ121: 1464 | GA121: 1464 | GB121: 1464 | GD121: 823 | GE121: XX499 | GG121: LA371 | GH121: MONROE, LA
B122: Officer | C122: 254.39 | G122: 2005-08-01 | H122: L 2040 | I122: 0.0673 | K122: Married | L122: 0 | M122: 983 | DX122: MA119 | DY122: 2991 | DZ122: 2991 | EA122: 2991 | EB122: 2991 | EC122: 3000 | ED122: 3291 | EE122: 3399 | EF122: 3516 | EG122: 3741 | EH122: 3303 | EI122: 3450 | EJ122: 3594 | EK122: 3801 | EL122: 4047 | EM122: 3420 | EN122: 3570 | EO122: 3837 | EP122: 3036 | EQ122: 3288 | ER122: 3588 | ES122: 4137 | ET122: 4530 | EU122: 4569 | EV122: 4611 | EW122: 4611 | EX122: 4611 | EY122: 4611 | FA122: MA119 | FB122: 2244 | FC122: 2244 | FD122: 2244 | FE122: 2244 | FF122: 2676 | FG122: 2982 | FH122: 3000 | FI122: 3060 | FJ122: 3144 | FK122: 2997 | FL122: 3057 | FM122: 3156 | FN122: 3315 | FO122: 3423 | FP122: 3006 | FQ122: 3126 | FR122: 3285 | FS122: 2979 | FT122: 3003 | FU122: 3183 | FV122: 3402 | FW122: 3468 | FX122: 3576 | FY122: 3651 | FZ122: 3651 | GA122: 3651 | GB122: 3651 | GD122: 824 | GE122: XX499 | GG122: MA119 | GH122: NANTUCKET, MA
B123: FSA | C123: 250 | G123: 2011-01-31 | H123: L 2050 | I123: 0.1053 | L123: =M122+0.01 -> 983.01 | M123: 2600 | N123: 0.1 | O123: 0 | DX123: MA120 | DY123: 2976 | DZ123: 2976 | EA123: 2976 | EB123: 2976 | EC123: 3042 | ED123: 3249 | EE123: 3375 | EF123: 3519 | EG123: 3759 | EH123: 3258 | EI123: 3438 | EJ123: 3612 | EK123: 3816 | EL123: 4059 | EM123: 3402 | EN123: 3582 | EO123: 3849 | EP123: 3069 | EQ123: 3246 | ER123: 3603 | ES123: 4143 | ET123: 4530 | EU123: 4572 | EV123: 4611 | EW123: 4611 | EX123: 4611 | EY123: 4611 | FA123: MA120 | FB123: 2568 | FC123: 2568 | FD123: 2568 | FE123: 2568 | FF123: 2787 | FG123: 2910 | FH123: 2976 | FI123: 3087 | FJ123: 3144 | FK123: 2961 | FL123: 3084 | FM123: 3153 | FN123: 3276 | FO123: 3408 | FP123: 3042 | FQ123: 3132 | FR123: 3240 | FS123: 2907 | FT123: 3024 | FU123: 3171 | FV123: 3381 | FW123: 3462 | FX123: 3594 | FY123: 3669 | FZ123: 3669 | GA123: 3669 | GB123: 3669 | GD123: 830 | GE123: XX499 | GG123: MA120 | GH123: BOSTON, MA
B124: SGLI | H124: Flat rate | I124: 0.1 | L124: 2600.01 | M124: 7563 | N124: 0.12 | O124: 161.7 | DX124: MA122 | DY124: 2007 | DZ124: 2007 | EA124: 2007 | EB124: 2007 | EC124: 2010 | ED124: 2340 | EE124: 2469 | EF124: 2610 | EG124: 2775 | EH124: 2352 | EI124: 2529 | EJ124: 2703 | EK124: 2805 | EL124: 2934 | EM124: 2496 | EN124: 2673 | EO124: 2823 | EP124: 2046 | EQ124: 2337 | ER124: 2694 | ES124: 2976 | ET124: 3174 | EU124: 3201 | EV124: 3228 | EW124: 3228 | EX124: 3228 | EY124: 3228 | FA124: MA122 | FB124: 1779 | FC124: 1779 | FD124: 1779 | FE124: 1779 | FF124: 1920 | FG124: 2007 | FH124: 2022 | FI124: 2073 | FJ124: 2172 | FK124: 2019 | FL124: 2070 | FM124: 2187 | FN124: 2370 | FO124: 2499 | FP124: 2028 | FQ124: 2151 | FR124: 2334 | FS124: 2004 | FT124: 2025 | FU124: 2217 | FV124: 2475 | FW124: 2556 | FX124: 2685 | FY124: 2739 | FZ124: 2739 | GA124: 2739 | GB124: 2739 | GD124: 831 | GE124: XX499 | GG124: MA122 | GH124: WORCESTER, MA
B125: 50000 | C125: =B125*$C$135/1000 -> 3 | H125: Ret. Age | I125: 62.5 | L125: 7563.01 | M125: 15017 | N125: 0.22 | O125: 757.26 | DX125: MA123 | DY125: 2046 | DZ125: 2046 | EA125: 2046 | EB125: 2046 | EC125: 2154 | ED125: 2637 | EE125: 2667 | EF125: 2700 | EG125: 2871 | EH125: 2652 | EI125: 2682 | EJ125: 2724 | EK125: 2928 | EL125: 3180 | EM125: 2673 | EN125: 2712 | EO125: 2964 | EP125: 2211 | EQ125: 2634 | ER125: 2721 | ES125: 3267 | ET125: 3663 | EU125: 3693 | EV125: 3726 | EW125: 3726 | EX125: 3726 | EY125: 3726 | FA125: MA123 | FB125: 1701 | FC125: 1701 | FD125: 1701 | FE125: 1701 | FF125: 1848 | FG125: 1977 | FH125: 2046 | FI125: 2250 | FJ125: 2400 | FK125: 2013 | FL125: 2247 | FM125: 2418 | FN125: 2646 | FO125: 2673 | FP125: 2154 | FQ125: 2367 | FR125: 2634 | FS125: 1932 | FT125: 2121 | FU125: 2463 | FV125: 2664 | FW125: 2748 | FX125: 2769 | FY125: 2796 | FZ125: 2796 | GA125: 2796 | GB125: 2796 | GD125: 840 | GE125: XX499 | GG125: MA123 | GH125: FITCHBURG, MA
... 156 more rows
